Workbook

Sheet RA Score Sheet
A6: Department of Commerce-NOAA
A7: Preliminary Risk Assessment
A8: Fiscal Year 20XXA
A10: Risk Assessment Summary by Assessable Unit | E10: Highest possible score for each category:
E11: 15 | F11: 15 | G11: 15 | H11: 15 | I11: 10 | J11: 10 | K11: 10 | L11: 5 | M11: 5 | N11: =SUM(E11:M11) -> 100
A12: Line Office | B12: Program Description | C12: Fiscal Year 2018 | D12: Fiscal Year 2019 | E12: Magnitude | F12: Non-Appropriated Funds | G12: Contracts Score | H12: Grants Score | I12: Change in Obligation | J12: GAO/OIG/ FPCD | K12: Change in Performance Measure | L12: Erroneous Payment | M12: Mgt. Control Review | N12: Total Risk Score
A68: Materiality The smallest assessable units had aggregate funding of $XXX million, or approximately 10% of the total $X.XXX billion of obligated funds. These were excluded from the risk assessment. The remaining XX assessable units, totaling $X.XXX billion, are included in the analysis.
A70: Sources We obtained the two prior fiscal year obligation totals from the Commerce Business System (CBS) that included all program obligation data from the Standard General Ledger accounts 4801, 4802, 4881, 4882, 4901, 4902, 4981, and 4982. The data contained current active fund codes at the Program 3 Level. We also requested Fund Code and Fund Type data to be included, in order to obtain a break out of funds that are non-appropriated. Information and data were also obtained from the following: Government Accountability Office (GAO) and Department of Commerce, Office of Inspector General (OIG) audit reports and other information made publicly available on their respective websites; 20XXB NOAA Budget Estimate; inquiry of NOAA finance and administrative management and staff. The total obligated funds for FY 20XXC was $X.XXX billion.
A72: Calculations for Risk Score
A74: Program Magnitude - The programs that consisted of 2.0% or more of the total funding on our risk assessment were given a risk score of 15 points. The programs between 1.5% and 2.0% were given a risk score of 12 points. The programs between 1.0% and 1.5% were given a risk score of 9 points. The programs between 1.0% and .5% were given a risk score of 6 points. The programs less than .5% received a risk score of 3 points.
A76: Non-Appropriated Funds - Programs with obligated funds from sources other than Appropriated funds are considered to be at greater risk. Those programs with total obligated funds consisting of 1-20% of non-appropriated funds were given a risk score of 7; those between 21-40% were given a score of 9; those between 41-60% were given a score of 11; those between 61-80% were given a score of 13; and those between 81-100% were given a score of 15.
A78: Contracts/Grants - We obtained obligation data including the document types (i.e. contract, grant, labor, other, etc.) from CBS for each program in our assessment. Those programs with obligations for contracts or grants totaling 0-20% of their total obligations received a risk score of 5 pts.; those between 21-40% received a score of 10pts.; and programs greater than 41% received a score of 15 pts.
A80: Substantial Change in Obligations - Those programs with a change in obligations from 20XXC to 20XXB of 0-20% received a score of 2; 21-40% received a score of 4; 41-60% received a score of 6; 61-80% received a score of 8; and those programs that changed more than 81% received a score of 10.
A82: GAO/OIG/FPCD Reports - Scoring for this category is grouped by line office. We totaled the number of GAO, OIG, and Financial Policy and Compliance Division (FPCD) reports from the past five years for each line office and divided this number by two. This number was subtracted from the base score of 10. For example: 8 audit reports were published that related to OAR, so the risk score for all OAR programs is 6 (8/2=4) then (10-4=6). Additionally, if a report(s) could be tied to a specific program in the assessment, that program was scored one point lower for each report issued.
A84: Substantial Change in Performance Measure - All programs will receive a base score of 5. Those programs that either slightly missed their performance goals or had a change in their performance measures greater than 10% received a score of 10.
A86: Erroneous Payments - All programs received a risk score of 1 due to the potential for erroneous payments to occur in any program. Overall, history has proven that NOAA programs are at minimal to no risk for making erroneous payments.
A88: Mgt. Control Reviews - We collected data from FY 20XXB on the Management Control Reviews performed during that fiscal year. We found that some management reviews related to the entire line office, and for these we subtracted the number of reviews performed during the fiscal year from the base score of 5. Other management reviews we were able to tie to a specific program in the assessment, and so we subtracted the number of reviews performed that related to the program from the base score of 5.
A90: Notes:
A91: We have not added loans as a risk category due to the low impact this would have over the broad range of programs in the assessment. Also, Traditional Loans is already a program in the assessment, and accounts for the overwhelming majority of loan obligations as a whole.
A93: 20XXA | B93: = Current Fiscal Year.
A95: 20XXB | B95: = Fiscal Year immediately proceeding current year.
A97: 20XXC | B97: = Fiscal Year two years proceeding current year.

Sheet Pivot (hidden)
A3: Sum of Total Oblig Amount
A4: Program1 Code | B4: RPM Goal Code | C4: Program3 Descr | D4: Total
A5: 1 | B5: CT | C5: COASTAL OCEAN SCIENCE | D5: 1910.32
C6: GEODESY | D6: 29338657.11
C7: MAPPING & CHARTING | D7: 4428315.269
C8: MAPPING AND CHARTING | D8: 78745097.64
C9: RESPONSE & RESTORATION | D9: 349.541515
C10: RESPONSE AND RESTORATION | D10: 14169950.93
C11: TIDE & CURRENT DATA | D11: 2445405.269
C12: TIDE AND CURRENT DATA | D12: 21454192.59
B13: CT Total | D13: 150583878.7
B14: EC | C14: COASTAL & ESTUARINE LAND CONSERVATION | D14: 230644.4924
C15: COASTAL & ESTUARINE LAND CONSRVTN PGM | D15: 25210337.38
C16: COASTAL ASSESSMENT PROGRAM | D16: 307439.6308
C17: COASTAL MANAGEMENT | D17: 96607864.26
C18: COASTAL OCEAN SCIENCE | D18: 4533.74
C19: COASTAL&ESTUARINE LAND CONSERVATION PROG | D19: 2275874.08
C20: ESTUARINE & COASTAL ASSESSMENT | D20: 36115.5
C21: ESTUARINE LAND ACQUIS & CONSTRUCTION | D21: 9467879.82
C22: ESTUARINE LAND ACQUISITION & CONSTRUCTN | D22: 0
C23: ESTUARINE LAND ACQUSITION & CONSTRUCTION | D23: 0
C24: MAPPING & CHARTING | D24: 0
C25: MAPPING AND CHARTING | D25: 400000
C26: MARINE SANCTUARIES CONSTRUCTION | D26: 10939.3607
C27: NATIONAL CTRS FOR COASTAL OCEAN SCIENCE | D27: 46303196.88
C28: NATIONAL CTRS FOR COASTL OCEAN SCIENCE | D28: 145784.2145
C29: OCEAN ASSESSMENT PROGRAM | D29: 53539067.34
C30: OCEAN MANAGEMENT | D30: 44285574.08
C31: RESPONSE & RESTORATION | D31: 5261185.611
C32: RESPONSE AND RESTORATION | D32: 10901523.29
C33: SEC. 2(FWCA) COASTAL ESTUARINE LAND | D33: 0
C34: SEC.2 (FWCA) COASTAL ESTUARINE LAND ACAQ | D34: 0
B35: EC Total | D35: 294987959.7
B36: MS | C36: COASTAL & ESTUARINE LAND CONSERVATION | D36: 12420.62763
C37: COASTAL & ESTUARINE LAND CONSRVTN PGM | D37: 2248107.91
C38: COASTAL ASSESSMENT PROGRAM | D38: 4813.801146
C39: COASTAL MANAGEMENT | D39: 542350.2099
C40: COASTAL&ESTUARINE LAND CONSERVATION PROG | D40: 0
C41: GEODESY | D41: 2095033.068
C42: INTEGRATED OCEAN OBSERVING SYSTEM | D42: 579.97863
C43: MAPPING & CHARTING | D43: 215301.9809
C44: MAPPING AND CHARTING | D44: 5910605.98
C45: MARINE SANCTUARIES CONSTRUCTION | D45: 21.079298
C46: MARINE SANCTUARIES CONSTRUCTION/ACQUISTN | D46: 9226695.34
C47: NATIONAL CTRS FOR COASTAL OCEAN SCIENCE | D47: 12316462.42
C48: NATIONAL CTRS FOR COASTL OCEAN SCIENCE | D48: 2630.725482
C49: OCEAN ASSESSMENT PROGRAM | D49: 1566217.37
C50: OCEAN MANAGEMENT | D50: 2269416.99
C51: OTHER NOS CONSTRUCTION/ACQUISITION | D51: 10444873.11
C52: OTHER NOS FACILITIES | D52: 2035179.51
C53: RESPONSE & RESTORATION | D53: 758286.8475
C54: RESPONSE AND RESTORATION | D54: 9124036.27
C55: SEC. 2(FWCA) COASTAL ESTUARINE LAND | D55: 0
C56: TIDE & CURRENT DATA | D56: 5502.251
C57: TIDE AND CURRENT DATA | D57: 2696463.281
B58: MS Total | D58: 61474998.75
B59: WW | C59: COASTAL ASSESSMENT PROGRAM | D59: 14076.84806
C60: ESTUARINE & COASTAL ASSESSMENT | D60: 0
C61: INTEGRATED OCEAN OBSERVING SYSTEM | D61: 24984044.12
C62: OCEAN ASSESSMENT PROGRAM | D62: 1232106.66
C63: OTHER NOS FACILITIES | D63: 303.41
C64: TIDE AND CURRENT DATA | D64: 120000
B65: WW Total | D65: 26350531.04
B66: XX | C66: COASTAL ASSESSMENT PROGRAM | D66: 106337
C67: COASTAL MANAGEMENT | D67: 0
C68: COASTAL&ESTUARINE LAND CONSERVATION PROG | D68: 0
C69: ESTUARINE & COASTAL ASSESSMENT | D69: 11401
C70: GEODESY | D70: 0
C71: NATIONAL CTRS FOR COASTAL OCEAN SCIENCE | D71: 743947.44
C72: OCEAN MANAGEMENT | D72: 209392.37
C73: RESPONSE & RESTORATION | D73: 0
B74: XX Total | D74: 1071077.81
A75: 1 Total | D75: 534468446
A76: 2 | B76: CL | C76: OTHER PROGRAMS | D76: 1346261.86
B77: CL Total | D77: 1346261.86
B78: EC | C78: AK COMPOSITE RESEARCH & DEVELOPMENT PGM | D78: 50198255.6
C79: ALASKA GROUNDFISH MONITORING | D79: 527.49
C80: AMERICAN FISHERIES ACT | D80: 0
C81: ATLANTIC SALMON | D81: 5537285.28
C82: BOTTLENOSE DOLPHINS | D82: 4265151.18
C83: COOPERATIVE RESEARCH | D83: 12170888.05
C84: CORE FISHERIES PROGRAMS | D84: 98028595.67
C85: ENFORCEMENT | D85: -12403.7
C86: ENFORCEMENT & SURVEILLANCE | D86: 51125980.49
C87: EXPAND STOCK ASSESSMENT- IMPR DATA COLL | D87: 154607.31
C88: EXPAND STOCK ASSESSMENTS - IMP DATA COLL | D88: 24171651.62
C89: FISH INFORMATION NETWORKS | D89: 22158068.71
C90: FISHERIES DEVELOPMENT PROGRAM | D90: 0
C91: FISHERIES HABITAT RESTORATION | D91: 23910366.76
C92: FISHERIES MANAGEMENT PROGRAMS | D92: 45836.68
C93: FISHERIES MANAGMENT PROGRAMS | D93: 62653292.77
C94: FISHERIES RESTORATION | D94: 15380.34
C95: FISHERY INDUSTRY INFORMATION | D95: 0
C96: FRMS - CONSERVATION & MANAGEMENT | D96: 141743.98
C97: FRMS - SCIENCE & TECHNOLOGY | D97: 280230.83
C98: HALIBUT/SABLEFISH | D98: 0
C99: INFORMATION ANALYSIS & DISSEMINATION | D99: 0
C100: MAGNUSON-STEVENS IMPLEMENTATION OFF AK | D100: 0
C101: MAMMALS | D101: 17084878.73
C102: NMFS CONSTRUCTION | D102: 229960.15
C103: NMFS SYSTEMS | D103: 1411928.59
C104: OBSERVERS/TRAINING | D104: 26115708.26
C105: OTHER FISHERIES - RELATED PROJECTS | D105: 10164158.63
C106: OTHER PROGRAMS | D106: 189609358.5
C107: OTHER PROJECTS | D107: 7164688.65
C108: PACIFIC SALMON | D108: 54715480.36
C109: PROTECTED RESOURCES RESEARCH & MGMT | D109: 412152.26
C110: PROTECTED SPECIES MANAGEMENT | D110: 65845.43
C111: PROTECTED SPECIES RESEARCH & MANAGEMENT | D111: 20895610.17
C112: PRRMS - CONSERVATION & MGMT SERVICES | D112: -92714.4
C113: PRRMS - SCIENCE & TECHNOLOGY | D113: 37296.12
C114: REG. COUNCILS & FISHERIES COMMISSIONS | D114: 48373.43
C115: REGIONAL COUNCILS AND FISHERIES COMM. | D115: 25054733.73
C116: RESOURCE INFORMATION | D116: 102286.49
C117: SALARIES AND EXPENSES | D117: 14829.35
C118: SALMON | D118: 0
C119: SALMON MANAGEMENT ACTIVITIES | D119: 24180187.97
C120: SEA TURTLES & OTHER PROTECTED SPECIES | D120: 17963151.71
C121: SEALS AND SEA LIONS | D121: 1701692.25
C122: STELLER SEA LIONS | D122: -1.998401444e-15
C123: SURVEY AND MONITORING PROJECTS | D123: 15989199.8
C124: SUSTAINABLE HABITAT MANAGEMENT | D124: 16739560.13
C125: SUSTAINABLE HABITAT MGMT | D125: -2535.15
C126: WHALES | D126: 9500451.68
B127: EC Total | D127: 793951742
B128: MS | C128: ATLANTIC SALMON | D128: 280407.95
C129: CORE FISHERIES PROGRAMS | D129: 1760867.03
C130: ENFORCEMENT & SURVEILLANCE | D130: 210439.86
C131: EXPAND STOCK ASSESSMENTS - IMP DATA COLL | D131: 415576.8
C132: FISH INFORMATION NETWORKS | D132: 252412.01
C133: FISHERIES MANAGEMENT PROGRAMS | D133: 0
C134: FISHERIES MANAGMENT PROGRAMS | D134: 14822723.05
C135: INFORMATION ANALYSIS & DISSEMINATION | D135: 0
C136: MAMMALS | D136: 110989.69
C137: NMFS CONSTRUCTION | D137: 29792190.6
C138: NMFS FLEET REPLACEMENT | D138: 2632.2
C139: NMFS SYSTEMS | D139: 54508.73
C140: OBSERVERS/TRAINING | D140: 302406.52
C141: OTHER FISHERIES - RELATED PROJECTS | D141: 249580.76
C142: OTHER PROGRAMS | D142: 2547913.03
C143: PACIFIC SALMON | D143: 2305058.7
C144: PROTECTED RESOURCES RESEARCH & MGMT | D144: 9121.68
C145: PROTECTED SPECIES RESEARCH & MANAGEMENT | D145: 5294025.85
C146: SEA TURTLES & OTHER PROTECTED SPECIES | D146: 342823.47
C147: SUSTAINABLE HABITAT MANAGEMENT | D147: 2814953.025
C148: WHALES | D148: 183966.55
B149: MS Total | D149: 61752597.51
B150: XX | C150: AK COMPOSITE RESEARCH & DEVELOPMENT PGM | D150: 644993
C151: COOPERATIVE ENFORCEMENT PROGRAMS | D151: 0
C152: CORE FISHERIES PROGRAMS | D152: 0
C153: FISH INFORMATION NETWORKS | D153: 68773.61
C154: FISHERIES MANAGEMENT PROGRAMS | D154: 27148.31
C155: FISHERIES MANAGMENT PROGRAMS | D155: 670256.61
C156: NMFS CONSTRUCTION | D156: 1080135.64
C157: OTHER PROGRAMS | D157: 50425.29
C158: PACIFIC SALMON | D158: 318013.08
C159: PROTECTED RESOURCES RESEARCH & MGMT | D159: 70726.61
B160: XX Total | D160: 2930472.15
A161: 2 Total | D161: 859981073.5
A162: 3 | B162: CL | C162: CLIMATE & AIR QUALITY RES | D162: 0
C163: CLIMATE & GLOBAL CHANGE PROGRAM | D163: 112882759.7
C164: CLIMATE OBSERVATIONS & SERVICES | D164: 4171887.017
C165: CLIMATE PARTNERSHIP PROGRAMS | D165: 9663.33856
C166: GLOBAL CHANGE | D166: 88235.77036
C167: INTEGRATED OCEAN OBSERVING SYSTEM | D167: 14937.20556
C168: LABORATORIES & JOINT INSTITUTES | D168: 48585760.34
C169: OAR CONSTRUCTION | D169: 1697941
C170: OAR SYSTEMS | D170: 0
C171: OAR SYSTEMS ACQUISITION | D171: 19380245.33
C172: OTHER PARTNERSHIP PROGRAMS | D172: 3202729.716
C173: PARTNERSHIP PROGRAMS | D173: 2977.60566
B174: CL Total | D174: 190037137.1
B175: EC | C175: ACQUISITION OF DATA | D175: 298.5
C176: AQUACULTURE | D176: 4876430.313
C177: EXPLORATION AND UNDERSEA RESEARCH | D177: 26798340.06
C178: INFO. TECH. R&D & SCIENCE EDUCATION | D178: 8638.8
C179: INVASIVE SPECIES PROGRAM | D179: 34221.80516
C180: INVASIVE SPECIES PROGRAMS | D180: 4547004.172
C181: MARINE PREDICTION RESEARCH | D181: 1460.03
C182: NATIONAL SEA GRANT COLLEGE PROGRAM | D182: 54022271.7
C183: NAT'L SEA GRANT COLLEGE PROGRAM | D183: 57934.72776
C184: OAR CONSTRUCTION | D184: 10100.2
C185: OAR SYSTEMS | D185: 0
C186: OCEAN EXPLORATION | D186: 52302.17342
C187: OCEAN, COASTAL & GREAT LAKES RESEARCH | D187: 21735987.15
C188: OCEAN, OCASTAL & GREAT LAKES RESEARCH | D188: 288606.1421
C189: OTHER PARTNERSHIP PROGRAMS | D189: 459.47078
C190: PARTNERSHIP PROGRAMS | D190: 938883.08
C191: SEA GRANT PROGRAMS | D191: 24917.96862
C192: WEATHER & AIR QUALITY RESEARCH | D192: 236018.0826
B193: EC Total | D193: 113633874.4
B194: MS | C194: AQUACULTURE | D194: 117011.4868
C195: CLIMATE & GLOBAL CHANGE PROGRAM | D195: 2823146.442
C196: CLIMATE OBSERVATIONS & SERVICES | D196: 1925.27296
C197: CLIMATE PARTNERSHIP PROGRAMS | D197: 229.72144
C198: EXPLORATION AND UNDERSEA RESEARCH | D198: 605243.1637
C199: GLOBAL CHANGE | D199: 2355.36964
C200: INFO. TECH. R&D & SCIENCE EDUCATION | D200: 0
C201: INTEGRATED OCEAN OBSERVING SYSTEM | D201: 398.73444
C202: INVASIVE SPECIES PROGRAM | D202: 179.17484
... 171 more rows

Sheet Detail (hidden)
A1: Workbook: Z PE-Reporting Worksheet: Goal/Prog/Act/CBS Prog/Project-Qtrly Amt Date Executed: 15-OCT-07 Parameters: Bureau Code (PPBES Summary) : '14' , Fiscal Year (PPBES Summary) : '2007' , Fiscal Month (PPBES Summary) : '12' , RPM Goal (PPBES Summary) : '%' , RPM Program (PPBES Summary) : '%' , P/A Flag (PPBES Summary) : 'P' , Program1 Code (Char) PPBES Summary : '%' Page 1 of 380 NOTE: Reports exclude the internal fund and associated FTE. RPM Goal/Program/Capability values are only relevant for FY 2007 and beyond. The PPBES-Reporting workbook should be used for Fiscal Years prior to 2007. NOTE: FTE data at the detail level may not be distributed correctly due to the internal fund not being distributed.
A3: Bureau Code:14 | B3: Fiscal Year:2007
A5: RPM Goal Code | B5: RPM Program Code | C5: RPM Capability Code | D5: NDW Approp Group | E5: Fund Code | F5: Program1 4 Code | G5: Program1 Code | H5: Project Code | I5: Plan Q1 Amount | J5: Oblig Q1 Amount | K5: Q1 Amt Diff | L5: Plan Q1 Fte SUM | M5: Oblig Q1 Fte SUM | N5: Q1 FTE Diff | O5: Plan Q2 Amount | P5: Oblig Q2 Amount | Q5: Q2 Amt Diff | R5: Plan Q2 Fte SUM | S5: Oblig Q2 Fte SUM | T5: Q2 FTE Diff | U5: Plan Q3 Amount | V5: Oblig Q3 Amount | W5: Q3 Amt Diff | X5: Plan Q3 Fte SUM | Y5: Oblig Q3 Fte SUM | Z5: Q3 FTE Diff | AA5: Plan Q4 Amount | AB5: Oblig Q4 Amount | AC5: Q4 Amt Diff | AD5: Plan Q4 Fte SUM | AE5: Oblig Q4 Fte SUM | AF5: Q4 FTE Diff | AG5: Total Plan Amount | AH5: Total Oblig Amount | AI5: Total Amt Diff | AJ5: Total Plan FTE | AK5: Total Oblig FTE | AL5: Total FTE Diff | AM5: Rpm Goal Descr | AN5: Rpm Program Descr | AO5: Rpm Capability Descr | AP5: Program1 Descr | AQ5: Program2 Descr | AR5: Program3 Descr | AS5: Program4 Descr | AT5: Project Descr | AU5: Org1 Code | AV5: Org1 Descr | AW5: Org2 Code | AX5: Org2 Descr
A6: CL | B6: CLE | C6: XXX | D6: ORF | E6: 37 | F6: 02-25-29-003 | G6: 2 | H6: D8LCA04 | I6: 0 | J6: 31.68 | K6: =I6-J6 -> -31.68 | L6: 0 | M6: -0.007692308 | N6: =L6-M6 -> 0.007692308 | O6: 12049.63 | P6: 11843.59 | Q6: =O6-P6 -> 206.04 | R6: 0 | S6: -4.808e-06 | T6: =R6-S6 -> 4.808e-06 | U6: 0 | V6: 174.36 | W6: =U6-V6 -> -174.36 | X6: 0 | Y6: 0 | Z6: =X6-Y6 -> 0 | AA6: 0 | AB6: -0.01 | AC6: =AA6-AB6 -> 0.01 | AD6: 0 | AE6: 0 | AF6: =AD6-AE6 -> 0 | AG6: =I6+O6+U6+AA6 -> 12049.63 | AH6: =J6+P6+V6+AB6 -> 12049.62 | AI6: =AG6-AH6 -> 0.009999999998 | AJ6: =L6+R6+X6+AD6 -> 0 | AK6: =M6+S6+Y6+AE6 -> -0.007697116 | AL6: =AJ6-AK6 -> 0.007697116 | AM6: CLIMATE | AN6: CLIMATE AND ECOSYSTEMS | AO6: UNKNOWN CAPABILITY | AP6: NATIONAL MARINE FISHERIES SERVICE | AQ6: OTHER ACTIVITIES SUPPORT FISHERIES | AR6: OTHER PROGRAMS | AS6: CLIMATE REGIMES & ECOSYSTEM PRODUCTIVITY | AT6: CLIMATE REGIMES & ECOSYSTEM PRODUCTIVITY | AU6: 30 | AV6: NAT. MARINE FISHERIES SER - OFF OF ASST | AW6: 61 | AX6: ALASKA FISHERIES SCIENCE CENTER
A7: CL | B7: CLE | C7: XXX | D7: ORF | E7: 37 | F7: 02-25-29-003 | G7: 2 | H7: D8LCA04 | I7: 0 | J7: 0 | K7: =I7-J7 -> 0 | L7: 0 | M7: 0 | N7: =L7-M7 -> 0 | O7: 0 | P7: 0 | Q7: =O7-P7 -> 0 | R7: 0 | S7: 0 | T7: =R7-S7 -> 0 | U7: 0 | V7: 0 | W7: =U7-V7 -> 0 | X7: 0 | Y7: 0 | Z7: =X7-Y7 -> 0 | AA7: 0 | AB7: 915.35 | AC7: =AA7-AB7 -> -915.35 | AD7: 0 | AE7: 0 | AF7: =AD7-AE7 -> 0 | AG7: =I7+O7+U7+AA7 -> 0 | AH7: 915.35 | AI7: =AG7-AH7 -> -915.35 | AJ7: =L7+R7+X7+AD7 -> 0 | AK7: 0 | AL7: =AJ7-AK7 -> 0 | AM7: CLIMATE | AN7: CLIMATE AND ECOSYSTEMS | AO7: UNKNOWN CAPABILITY | AP7: NATIONAL MARINE FISHERIES SERVICE | AQ7: OTHER ACTIVITIES SUPPORT FISHERIES | AR7: OTHER PROGRAMS | AS7: CLIMATE REGIMES & ECOSYSTEM PRODUCTIVITY | AT7: CLIMATE REGIMES & ECOSYSTEM PRODUCTIVITY | AU7: 06 | AV7: STAFF OFCS OF THE OFC OF THE UNDER SEC | AW7: 99 | AX7: COMMON SERVICES
A8: CL | B8: CLE | C8: XXX | D8: ORF | E8: 37 | F8: 02-25-29-003 | G8: 2 | H8: D8LCA04 | I8: 0 | J8: 0 | K8: 0 | L8: 0 | M8: 0 | N8: 0 | O8: 0 | P8: 0 | Q8: 0 | R8: 0 | S8: 0 | T8: 0 | U8: 0 | V8: 0 | W8: 0 | X8: 0 | Y8: 0 | Z8: 0 | AA8: 0 | AB8: 0 | AC8: 0 | AD8: 0 | AE8: 0 | AF8: 0 | AG8: 0 | AH8: 0 | AI8: 0 | AJ8: 0 | AK8: 0 | AL8: 0 | AM8: CLIMATE | AN8: CLIMATE AND ECOSYSTEMS | AO8: UNKNOWN CAPABILITY | AP8: NATIONAL MARINE FISHERIES SERVICE | AQ8: OTHER ACTIVITIES SUPPORT FISHERIES | AR8: OTHER PROGRAMS | AS8: CLIMATE REGIMES & ECOSYSTEM PRODUCTIVITY | AT8: CLIMATE REGIMES & ECOSYSTEM PRODUCTIVITY | AU8: 30 | AV8: NAT. MARINE FISHERIES SER - OFF OF ASST | AW8: 11 | AX8: NATL MARINE FISHERIES SERV OFC OF ASST A
A9: CL | B9: CLE | C9: XXX | D9: ORF | E9: 37 | F9: 02-25-29-003 | G9: 2 | H9: D8LCA04 | I9: 0 | J9: 0 | K9: 0 | L9: 0 | M9: 0 | N9: 0 | O9: 0 | P9: 0 | Q9: 0 | R9: 0 | S9: 0 | T9: 0 | U9: 0 | V9: 51600 | W9: -51600 | X9: 0 | Y9: 0 | Z9: 0 | AA9: 0 | AB9: -51600 | AC9: 51600 | AD9: 0 | AE9: 0 | AF9: 0 | AG9: 0 | AH9: 0 | AI9: 0 | AJ9: 0 | AK9: 0 | AL9: 0 | AM9: CLIMATE | AN9: CLIMATE AND ECOSYSTEMS | AO9: UNKNOWN CAPABILITY | AP9: NATIONAL MARINE FISHERIES SERVICE | AQ9: OTHER ACTIVITIES SUPPORT FISHERIES | AR9: OTHER PROGRAMS | AS9: CLIMATE REGIMES & ECOSYSTEM PRODUCTIVITY | AT9: CLIMATE REGIMES & ECOSYSTEM PRODUCTIVITY | AU9: 30 | AV9: NAT. MARINE FISHERIES SER - OFF OF ASST | AW9: 21 | AX9: NORTHEAST FISHERIES SCIENCE CENTER
A10: CL | B10: CLE | C10: XXX | D10: ORF | E10: 37 | F10: 02-25-29-003 | G10: 2 | H10: D8LCA04 | I10: 0 | J10: 460.69 | K10: -460.69 | L10: 0 | M10: 0.003365384 | N10: -0.003365384 | O10: 0 | P10: -460.69 | Q10: 460.69 | R10: 0 | S10: -0.003365385 | T10: 0.003365385 | U10: 0 | V10: 0 | W10: 0 | X10: 0 | Y10: 0 | Z10: 0 | AA10: 0 | AB10: 0 | AC10: 0 | AD10: 0 | AE10: 0 | AF10: 0 | AG10: 0 | AH10: 0 | AI10: 0 | AJ10: 0 | AK10: -1e-09 | AL10: 1e-09 | AM10: CLIMATE | AN10: CLIMATE AND ECOSYSTEMS | AO10: UNKNOWN CAPABILITY | AP10: NATIONAL MARINE FISHERIES SERVICE | AQ10: OTHER ACTIVITIES SUPPORT FISHERIES | AR10: OTHER PROGRAMS | AS10: CLIMATE REGIMES & ECOSYSTEM PRODUCTIVITY | AT10: CLIMATE REGIMES & ECOSYSTEM PRODUCTIVITY | AU10: 30 | AV10: NAT. MARINE FISHERIES SER - OFF OF ASST | AW10: 16 | AX10: OFFICE OF SCIENCE AND TECHNOLOGY
A11: CL | B11: CLE | C11: XXX | D11: ORF | E11: 37 | F11: 03-01-07-013 | G11: 3 | H11: D8R1VRS | I11: 0 | J11: 577.39 | K11: -577.39 | L11: 0 | M11: 0 | N11: 0 | O11: 75900 | P11: 34801.24 | Q11: 41098.76 | R11: 0.24 | S11: 0.176610577 | T11: 0.063389423 | U11: 0 | V11: -590.17 | W11: 590.17 | X11: 0 | Y11: 0 | Z11: 0 | AA11: 0 | AB11: 40803.74 | AC11: -40803.74 | AD11: 0 | AE11: 0 | AF11: 0 | AG11: 75900 | AH11: 75592.2 | AI11: 307.8 | AJ11: 0.24 | AK11: 0.176610577 | AL11: 0.063389423 | AM11: CLIMATE | AN11: CLIMATE AND ECOSYSTEMS | AO11: UNKNOWN CAPABILITY | AP11: OCEANIC & ATMOSPHERIC RESEARCH | AQ11: CLIMATE RESEARCH | AR11: LABORATORIES & JOINT INSTITUTES | AS11: JOINT INST. FOR THE N. GULF OF MEXICO | AT11: OAR/HQ SUPPORT | AU11: 30 | AV11: NAT. MARINE FISHERIES SER - OFF OF ASST | AW11: 31 | AX11: SOUTHEAST FISHERIES SCIENCE CENTER
A12: CL | B12: CLE | C12: XXX | D12: ORF | E12: 37 | F12: 03-01-07-013 | G12: 3 | H12: D8R1VRS | I12: 7268.98 | J12: 0 | K12: 7268.98 | L12: 0 | M12: 0 | N12: 0 | O12: 0 | P12: 0 | Q12: 0 | R12: 0 | S12: 0 | T12: 0 | U12: 0 | V12: 7268.98 | W12: -7268.98 | X12: 0 | Y12: 0 | Z12: 0 | AA12: 0 | AB12: 0 | AC12: 0 | AD12: 0 | AE12: 0 | AF12: 0 | AG12: 7268.98 | AH12: 7268.98 | AI12: 0 | AJ12: 0 | AK12: 0 | AL12: 0 | AM12: CLIMATE | AN12: CLIMATE AND ECOSYSTEMS | AO12: UNKNOWN CAPABILITY | AP12: OCEANIC & ATMOSPHERIC RESEARCH | AQ12: CLIMATE RESEARCH | AR12: LABORATORIES & JOINT INSTITUTES | AS12: JOINT INST. FOR THE N. GULF OF MEXICO | AT12: OAR/HQ SUPPORT | AU12: 50 | AV12: OFFICE OF OCEANIC & ATMOSPHERIC RESEARCH | AW12: 01 | AX12: OFFICE OF OCEANIC & ATMOSPHERIC RESEARCH
A13: CL | B13: CLE | C13: XXX | D13: ORF | E13: 37 | F13: 03-01-07-013 | G13: 3 | H13: D8R1VRS | I13: 0 | J13: 0 | K13: 0 | L13: 0 | M13: 0 | N13: 0 | O13: 0 | P13: 0 | Q13: 0 | R13: 0 | S13: 0 | T13: 0 | U13: 0 | V13: 0 | W13: 0 | X13: 0 | Y13: 0 | Z13: 0 | AA13: 0 | AB13: 0 | AC13: 0 | AD13: 0 | AE13: 0 | AF13: 0 | AG13: 0 | AH13: 0 | AI13: 0 | AJ13: 0 | AK13: 0 | AL13: 0 | AM13: CLIMATE | AN13: CLIMATE AND ECOSYSTEMS | AO13: UNKNOWN CAPABILITY | AP13: OCEANIC & ATMOSPHERIC RESEARCH | AQ13: CLIMATE RESEARCH | AR13: LABORATORIES & JOINT INSTITUTES | AS13: JOINT INST. FOR THE N. GULF OF MEXICO | AT13: OAR/HQ SUPPORT | AU13: 50 | AV13: OFFICE OF OCEANIC & ATMOSPHERIC RESEARCH | AW13: 26 | AX13: NATIONAL SEVERE STORMS LABORATORY
A14: CL | B14: CLE | C14: XXX | D14: ORF | E14: 37 | F14: 03-01-07-013 | G14: 3 | H14: D8R1VRS | I14: 0 | J14: 0 | K14: 0 | L14: 0 | M14: 0 | N14: 0 | O14: 0 | P14: 0 | Q14: 0 | R14: 0 | S14: 0 | T14: 0 | U14: 0 | V14: 0 | W14: 0 | X14: 0 | Y14: 0 | Z14: 0 | AA14: 0 | AB14: 0 | AC14: 0 | AD14: 0 | AE14: 0 | AF14: 0 | AG14: 0 | AH14: 0 | AI14: 0 | AJ14: 0 | AK14: 0 | AL14: 0 | AM14: CLIMATE | AN14: CLIMATE AND ECOSYSTEMS | AO14: UNKNOWN CAPABILITY | AP14: OCEANIC & ATMOSPHERIC RESEARCH | AQ14: CLIMATE RESEARCH | AR14: LABORATORIES & JOINT INSTITUTES | AS14: JOINT INST. FOR THE N. GULF OF MEXICO | AT14: OAR/HQ SUPPORT | AU14: 40 | AV14: NAT ENV SATELLITE, DATA & INFO SERVICE | AW14: 07 | AX14: NATIONAL OCEANOGRAPHIC DATA CENTER, NESD
A15: CL | B15: CLE | C15: XXX | D15: ORF | E15: 37 | F15: 03-01-07-013 | G15: 3 | H15: D8R1VRS | I15: 3097 | J15: 0 | K15: 3097 | L15: 0 | M15: 0 | N15: 0 | O15: 2803 | P15: 0 | Q15: 2803 | R15: 0 | S15: 0 | T15: 0 | U15: 10000 | V15: 5461 | W15: 4539 | X15: 0 | Y15: 0 | Z15: 0 | AA15: 0 | AB15: 10439 | AC15: -10439 | AD15: 0 | AE15: 0 | AF15: 0 | AG15: 15900 | AH15: 15900 | AI15: 0 | AJ15: 0 | AK15: 0 | AL15: 0 | AM15: CLIMATE | AN15: CLIMATE AND ECOSYSTEMS | AO15: UNKNOWN CAPABILITY | AP15: OCEANIC & ATMOSPHERIC RESEARCH | AQ15: CLIMATE RESEARCH | AR15: LABORATORIES & JOINT INSTITUTES | AS15: JOINT INST. FOR THE N. GULF OF MEXICO | AT15: OAR/HQ SUPPORT | AU15: 10 | AV15: NATIONAL OCEAN SERVICE - ASST ADM | AW15: 13 | AX15: NATIONAL CENTERS FOR COASTAL OCEAN SCI
A16: CL | B16: CLE | C16: XXX | D16: ORF | E16: 37 | F16: 03-01-07-013 | G16: 3 | H16: D8R1VRS | I16: 0 | J16: 1115.21 | K16: -1115.21 | L16: 0 | M16: 0 | N16: 0 | O16: 0 | P16: 1116.6 | Q16: -1116.6 | R16: 0 | S16: 0 | T16: 0 | U16: 0 | V16: 12.74 | W16: -12.74 | X16: 0 | Y16: 0 | Z16: 0 | AA16: 0 | AB16: -2096.38 | AC16: 2096.38 | AD16: 0 | AE16: 0 | AF16: 0 | AG16: 0 | AH16: 148.17 | AI16: -148.17 | AJ16: 0 | AK16: 0 | AL16: 0 | AM16: CLIMATE | AN16: CLIMATE AND ECOSYSTEMS | AO16: UNKNOWN CAPABILITY | AP16: OCEANIC & ATMOSPHERIC RESEARCH | AQ16: CLIMATE RESEARCH | AR16: LABORATORIES & JOINT INSTITUTES | AS16: JOINT INST. FOR THE N. GULF OF MEXICO | AT16: OAR/HQ SUPPORT | AU16: 50 | AV16: OFFICE OF OCEANIC & ATMOSPHERIC RESEARCH | AW16: 19 | AX16: LABORATORIES AND COOPERATIVE INSTITUTES
A17: CL | B17: CLE | C17: XXX | D17: ORF | E17: 37 | F17: 03-01-07-013 | G17: 3 | H17: D8R1VRS | I17: 0 | J17: 0 | K17: 0 | L17: 0 | M17: 0 | N17: 0 | O17: 0 | P17: 0 | Q17: 0 | R17: 0 | S17: 0 | T17: 0 | U17: 550 | V17: 0 | W17: 550 | X17: 0 | Y17: 0 | Z17: 0 | AA17: 11750 | AB17: 12300 | AC17: -550 | AD17: 0.08 | AE17: 0.05 | AF17: 0.03 | AG17: 12300 | AH17: 12300 | AI17: 0 | AJ17: 0.08 | AK17: 0.05 | AL17: 0.03 | AM17: CLIMATE | AN17: CLIMATE AND ECOSYSTEMS | AO17: UNKNOWN CAPABILITY | AP17: OCEANIC & ATMOSPHERIC RESEARCH | AQ17: CLIMATE RESEARCH | AR17: LABORATORIES & JOINT INSTITUTES | AS17: JOINT INST. FOR THE N. GULF OF MEXICO | AT17: OAR/HQ SUPPORT | AU17: 50 | AV17: OFFICE OF OCEANIC & ATMOSPHERIC RESEARCH | AW17: 25 | AX17: GREAT LAKES ENVIRONMENTAL RESEARCH LAB
A18: CL | B18: CLE | C18: XXX | D18: ORF | E18: 37 | F18: 03-01-07-013 | G18: 3 | H18: D8R1VRS | I18: 0 | J18: 0 | K18: 0 | L18: 0 | M18: 0 | N18: 0 | O18: 0 | P18: 0 | Q18: 0 | R18: 0 | S18: 0 | T18: 0 | U18: 0 | V18: 0 | W18: 0 | X18: 0 | Y18: 0 | Z18: 0 | AA18: 0 | AB18: 100 | AC18: -100 | AD18: 0 | AE18: 0 | AF18: 0 | AG18: 0 | AH18: 100 | AI18: -100 | AJ18: 0 | AK18: 0 | AL18: 0 | AM18: CLIMATE | AN18: CLIMATE AND ECOSYSTEMS | AO18: UNKNOWN CAPABILITY | AP18: OCEANIC & ATMOSPHERIC RESEARCH | AQ18: CLIMATE RESEARCH | AR18: LABORATORIES & JOINT INSTITUTES | AS18: JOINT INST. FOR THE N. GULF OF MEXICO | AT18: OAR/HQ SUPPORT | AU18: 06 | AV18: STAFF OFCS OF THE OFC OF THE UNDER SEC | AW18: 99 | AX18: COMMON SERVICES
A19: CL | B19: CLE | C19: XXX | D19: ORF | E19: 37 | F19: 03-01-07-013 | G19: 3 | H19: D8R1VRS | I19: 0 | J19: 0 | K19: 0 | L19: 0 | M19: 0 | N19: 0 | O19: 0 | P19: -1089.8 | Q19: 1089.8 | R19: 0 | S19: 0 | T19: 0 | U19: 0 | V19: 0 | W19: 0 | X19: 0 | Y19: 0 | Z19: 0 | AA19: 0 | AB19: 1089.8 | AC19: -1089.8 | AD19: 0 | AE19: 0 | AF19: 0 | AG19: 0 | AH19: 0 | AI19: 0 | AJ19: 0 | AK19: 0 | AL19: 0 | AM19: CLIMATE | AN19: CLIMATE AND ECOSYSTEMS | AO19: UNKNOWN CAPABILITY | AP19: OCEANIC & ATMOSPHERIC RESEARCH | AQ19: CLIMATE RESEARCH | AR19: LABORATORIES & JOINT INSTITUTES | AS19: JOINT INST. FOR THE N. GULF OF MEXICO | AT19: OAR/HQ SUPPORT | AU19: 50 | AV19: OFFICE OF OCEANIC & ATMOSPHERIC RESEARCH | AW19: 23 | AX19: ATLANTIC OCEANOGRAPHIC & MET LAB
A20: CL | B20: CLE | C20: XXX | D20: ORF | E20: 85 | F20: 02-25-29-003 | G20: 2 | H20: E8LCA04 | I20: 0 | J20: 0 | K20: 0 | L20: 0 | M20: 0 | N20: 0 | O20: 0 | P20: 0 | Q20: 0 | R20: 0 | S20: 0 | T20: 0 | U20: 0 | V20: 0 | W20: 0 | X20: 0 | Y20: 0 | Z20: 0 | AA20: 637940 | AB20: 637103.59 | AC20: 836.41 | AD20: 1.24 | AE20: 1.06904327 | AF20: 0.17095673 | AG20: 637940 | AH20: 637103.59 | AI20: 836.41 | AJ20: 1.24 | AK20: 1.06904327 | AL20: 0.17095673 | AM20: CLIMATE | AN20: CLIMATE AND ECOSYSTEMS | AO20: UNKNOWN CAPABILITY | AP20: NATIONAL MARINE FISHERIES SERVICE | AQ20: OTHER ACTIVITIES SUPPORT FISHERIES | AR20: OTHER PROGRAMS | AS20: CLIMATE REGIMES & ECOSYSTEM PRODUCTIVITY | AT20: CLIMATE REGIMES & ECOSYSTEM PRODUCTIVITY | AU20: 50 | AV20: OFFICE OF OCEANIC & ATMOSPHERIC RESEARCH | AW20: 27 | AX20: PACIFIC MARINE ENVIRONMENTAL LABORATORY
A21: CL | B21: CLE | C21: XXX | D21: ORF | E21: 85 | F21: 02-25-29-003 | G21: 2 | H21: E8LCA04 | I21: 0 | J21: 77459.84 | K21: -77459.84 | L21: 0 | M21: 0.425865386 | N21: -0.425865386 | O21: 0 | P21: 72826.25 | Q21: -72826.25 | R21: 0 | S21: 0.367706731 | T21: -0.367706731 | U21: 0 | V21: -1544.24 | W21: 1544.24 | X21: 0 | Y21: 0.084163461 | Z21: -0.084163461 | AA21: 142519 | AB21: -9531.31 | AC21: 152050.31 | AD21: 1.28 | AE21: -0.004653848 | AF21: 1.284653848 | AG21: 142519 | AH21: 139210.54 | AI21: 3308.46 | AJ21: 1.28 | AK21: 0.87308173 | AL21: 0.40691827 | AM21: CLIMATE | AN21: CLIMATE AND ECOSYSTEMS | AO21: UNKNOWN CAPABILITY | AP21: NATIONAL MARINE FISHERIES SERVICE | AQ21: OTHER ACTIVITIES SUPPORT FISHERIES | AR21: OTHER PROGRAMS | AS21: CLIMATE REGIMES & ECOSYSTEM PRODUCTIVITY | AT21: CLIMATE REGIMES & ECOSYSTEM PRODUCTIVITY | AU21: 30 | AV21: NAT. MARINE FISHERIES SER - OFF OF ASST | AW21: 16 | AX21: OFFICE OF SCIENCE AND TECHNOLOGY
A22: CL | B22: CLE | C22: XXX | D22: ORF | E22: 85 | F22: 02-25-29-003 | G22: 2 | H22: E8LCA04 | I22: 0 | J22: 0 | K22: 0 | L22: 0 | M22: 0 | N22: 0 | O22: 0 | P22: 0 | Q22: 0 | R22: 0 | S22: 0 | T22: 0 | U22: 0 | V22: 4694.25 | W22: -4694.25 | X22: 0 | Y22: 0.057692308 | Z22: -0.057692308 | AA22: 0 | AB22: -4694.65 | AC22: 4694.65 | AD22: 0 | AE22: -0.052889423 | AF22: 0.052889423 | AG22: 0 | AH22: -0.4 | AI22: 0.4 | AJ22: 0 | AK22: 0.004802885 | AL22: -0.004802885 | AM22: CLIMATE | AN22: CLIMATE AND ECOSYSTEMS | AO22: UNKNOWN CAPABILITY | AP22: NATIONAL MARINE FISHERIES SERVICE | AQ22: OTHER ACTIVITIES SUPPORT FISHERIES | AR22: OTHER PROGRAMS | AS22: CLIMATE REGIMES & ECOSYSTEM PRODUCTIVITY | AT22: CLIMATE REGIMES & ECOSYSTEM PRODUCTIVITY | AU22: 30 | AV22: NAT. MARINE FISHERIES SER - OFF OF ASST | AW22: 40 | AX22: NORTHWEST REGION, NMFS
A23: CL | B23: CLE | C23: XXX | D23: ORF | E23: 85 | F23: 02-25-29-003 | G23: 2 | H23: E8LCA04 | I23: 0 | J23: 0 | K23: 0 | L23: 0 | M23: 0 | N23: 0 | O23: 0 | P23: 0 | Q23: 0 | R23: 0 | S23: 0 | T23: 0 | U23: 0 | V23: 0 | W23: 0 | X23: 0 | Y23: 0 | Z23: 0 | AA23: 100000 | AB23: 100000 | AC23: 0 | AD23: 0 | AE23: 0 | AF23: 0 | AG23: 100000 | AH23: 100000 | AI23: 0 | AJ23: 0 | AK23: 0 | AL23: 0 | AM23: CLIMATE | AN23: CLIMATE AND ECOSYSTEMS | AO23: UNKNOWN CAPABILITY | AP23: NATIONAL MARINE FISHERIES SERVICE | AQ23: OTHER ACTIVITIES SUPPORT FISHERIES | AR23: OTHER PROGRAMS | AS23: CLIMATE REGIMES & ECOSYSTEM PRODUCTIVITY | AT23: CLIMATE REGIMES & ECOSYSTEM PRODUCTIVITY | AU23: 30 | AV23: NAT. MARINE FISHERIES SER - OFF OF ASST | AW23: 21 | AX23: NORTHEAST FISHERIES SCIENCE CENTER
A24: CL | B24: CLE | C24: XXX | D24: ORF | E24: 85 | F24: 02-25-29-003 | G24: 2 | H24: E8LCA04 | I24: 0 | J24: 0 | K24: 0 | L24: 0 | M24: 0 | N24: 0 | O24: 0 | P24: 0 | Q24: 0 | R24: 0 | S24: 0 | T24: 0 | U24: 0 | V24: 0 | W24: 0 | X24: 0 | Y24: 0 | Z24: 0 | AA24: 914 | AB24: 914 | AC24: 0 | AD24: 0 | AE24: 0 | AF24: 0 | AG24: 914 | AH24: 914 | AI24: 0 | AJ24: 0 | AK24: 0 | AL24: 0 | AM24: CLIMATE | AN24: CLIMATE AND ECOSYSTEMS | AO24: UNKNOWN CAPABILITY | AP24: NATIONAL MARINE FISHERIES SERVICE | AQ24: OTHER ACTIVITIES SUPPORT FISHERIES | AR24: OTHER PROGRAMS | AS24: CLIMATE REGIMES & ECOSYSTEM PRODUCTIVITY | AT24: CLIMATE REGIMES & ECOSYSTEM PRODUCTIVITY | AU24: 50 | AV24: OFFICE OF OCEANIC & ATMOSPHERIC RESEARCH | AW24: 44 | AX24: CLIMATE PROGRAM OFFICE
A25: CL | B25: CLE | C25: XXX | D25: ORF | E25: 85 | F25: 02-25-29-003 | G25: 2 | H25: E8LCA04 | I25: 0 | J25: 0 | K25: 0 | L25: 0 | M25: 0 | N25: 0 | O25: 0 | P25: 0 | Q25: 0 | R25: 0 | S25: 0 | T25: 0 | U25: 0 | V25: 0 | W25: 0 | X25: 0 | Y25: 0 | Z25: 0 | AA25: 0 | AB25: 29 | AC25: -29 | AD25: 0 | AE25: 0 | AF25: 0 | AG25: 0 | AH25: 29 | AI25: -29 | AJ25: 0 | AK25: 0 | AL25: 0 | AM25: CLIMATE | AN25: CLIMATE AND ECOSYSTEMS | AO25: UNKNOWN CAPABILITY | AP25: NATIONAL MARINE FISHERIES SERVICE | AQ25: OTHER ACTIVITIES SUPPORT FISHERIES | AR25: OTHER PROGRAMS | AS25: CLIMATE REGIMES & ECOSYSTEM PRODUCTIVITY | AT25: CLIMATE REGIMES & ECOSYSTEM PRODUCTIVITY | AU25: 30 | AV25: NAT. MARINE FISHERIES SER - OFF OF ASST | AW25: 00 | AX25: BUDGET USE ONLY - NMFS
A26: CL | B26: CLE | C26: XXX | D26: ORF | E26: 85 | F26: 02-25-29-003 | G26: 2 | H26: E8LCA04 | I26: 0 | J26: 0 | K26: 0 | L26: 0 | M26: 0 | N26: 0 | O26: 0 | P26: 0 | Q26: 0 | R26: 0 | S26: 0 | T26: 0 | U26: 0 | V26: 0 | W26: 0 | X26: 0 | Y26: 0 | Z26: 0 | AA26: 0 | AB26: 100 | AC26: -100 | AD26: 0 | AE26: 0 | AF26: 0 | AG26: 0 | AH26: 100 | AI26: -100 | AJ26: 0 | AK26: 0 | AL26: 0 | AM26: CLIMATE | AN26: CLIMATE AND ECOSYSTEMS | AO26: UNKNOWN CAPABILITY | AP26: NATIONAL MARINE FISHERIES SERVICE | AQ26: OTHER ACTIVITIES SUPPORT FISHERIES | AR26: OTHER PROGRAMS | AS26: CLIMATE REGIMES & ECOSYSTEM PRODUCTIVITY | AT26: CLIMATE REGIMES & ECOSYSTEM PRODUCTIVITY | AU26: 30 | AV26: NAT. MARINE FISHERIES SER - OFF OF ASST | AW26: 60 | AX26: ALASKA REGION, NMFS
A27: CL | B27: CLE | C27: XXX | D27: ORF | E27: 85 | F27: 02-25-29-003 | G27: 2 | H27: E8LCA04 | I27: 0 | J27: 17884.68 | K27: -17884.68 | L27: 0 | M27: 0.256249999 | N27: -0.256249999 | O27: 0 | P27: -17884.71 | Q27: 17884.71 | R27: 0 | S27: -0.25625 | T27: 0.25625 | U27: 0 | V27: 11995.81 | W27: -11995.81 | X27: 0 | Y27: 0 | Z27: 0 | AA27: 458582 | AB27: 443944.38 | AC27: 14637.62 | AD27: 3.12 | AE27: 1.367307691 | AF27: 1.752692309 | AG27: 458582 | AH27: 455940.16 | AI27: 2641.84 | AJ27: 3.12 | AK27: 1.36730769 | AL27: 1.75269231 | AM27: CLIMATE | AN27: CLIMATE AND ECOSYSTEMS | AO27: UNKNOWN CAPABILITY | AP27: NATIONAL MARINE FISHERIES SERVICE | AQ27: OTHER ACTIVITIES SUPPORT FISHERIES | AR27: OTHER PROGRAMS | AS27: CLIMATE REGIMES & ECOSYSTEM PRODUCTIVITY | AT27: CLIMATE REGIMES & ECOSYSTEM PRODUCTIVITY | AU27: 30 | AV27: NAT. MARINE FISHERIES SER - OFF OF ASST | AW27: 61 | AX27: ALASKA FISHERIES SCIENCE CENTER
A28: CL | B28: CLE | C28: XXX | D28: ORF | E28: 85 | F28: 03-01-07-013 | G28: 3 | H28: 0000000 | I28: 0 | J28: 0 | K28: 0 | L28: 0 | M28: 0 | N28: 0 | O28: 0 | P28: 0 | Q28: 0 | R28: 0 | S28: 0 | T28: 0 | U28: 0 | V28: 0 | W28: 0 | X28: 0 | Y28: 0 | Z28: 0 | AA28: 469666 | AB28: 0 | AC28: 469666 | AD28: 0 | AE28: 0 | AF28: 0 | AG28: 469666 | AH28: 0 | AI28: 469666 | AJ28: 0 | AK28: 0 | AL28: 0 | AM28: CLIMATE | AN28: CLIMATE AND ECOSYSTEMS | AO28: UNKNOWN CAPABILITY | AP28: OCEANIC & ATMOSPHERIC RESEARCH | AQ28: CLIMATE RESEARCH | AR28: LABORATORIES & JOINT INSTITUTES | AS28: JOINT INST. FOR THE N. GULF OF MEXICO | AT28: NULL | AU28: 50 | AV28: OFFICE OF OCEANIC & ATMOSPHERIC RESEARCH | AW28: 23 | AX28: ATLANTIC OCEANOGRAPHIC & MET LAB
A29: CL | B29: CLE | C29: XXX | D29: ORF | E29: 85 | F29: 03-01-07-013 | G29: 3 | H29: E8R1VRS | I29: 0 | J29: 559.61 | K29: -559.61 | L29: 0 | M29: 0 | N29: 0 | O29: 0 | P29: -554.31 | Q29: 554.31 | R29: 0 | S29: 0 | T29: 0 | U29: 0 | V29: 492.1 | W29: -492.1 | X29: 0 | Y29: 0 | Z29: 0 | AA29: 781560 | AB29: 673680.31 | AC29: 107879.69 | AD29: 0.23 | AE29: 0.257182693 | AF29: -0.027182693 | AG29: 781560 | AH29: 674177.71 | AI29: 107382.29 | AJ29: 0.23 | AK29: 0.257182693 | AL29: -0.027182693 | AM29: CLIMATE | AN29: CLIMATE AND ECOSYSTEMS | AO29: UNKNOWN CAPABILITY | AP29: OCEANIC & ATMOSPHERIC RESEARCH | AQ29: CLIMATE RESEARCH | AR29: LABORATORIES & JOINT INSTITUTES | AS29: JOINT INST. FOR THE N. GULF OF MEXICO | AT29: OAR/HQ SUPPORT | AU29: 30 | AV29: NAT. MARINE FISHERIES SER - OFF OF ASST | AW29: 31 | AX29: SOUTHEAST FISHERIES SCIENCE CENTER
A30: CL | B30: CLE | C30: XXX | D30: ORF | E30: 85 | F30: 03-01-07-013 | G30: 3 | H30: E8R1VRS | I30: 0 | J30: 0 | K30: 0 | L30: 0 | M30: 0 | N30: 0 | O30: 0 | P30: 0 | Q30: 0 | R30: 0 | S30: 0 | T30: 0 | U30: 0 | V30: 0 | W30: 0 | X30: 0 | Y30: 0 | Z30: 0 | AA30: 156100 | AB30: 156100 | AC30: 0 | AD30: 0 | AE30: 0 | AF30: 0 | AG30: 156100 | AH30: 156100 | AI30: 0 | AJ30: 0 | AK30: 0 | AL30: 0 | AM30: CLIMATE | AN30: CLIMATE AND ECOSYSTEMS | AO30: UNKNOWN CAPABILITY | AP30: OCEANIC & ATMOSPHERIC RESEARCH | AQ30: CLIMATE RESEARCH | AR30: LABORATORIES & JOINT INSTITUTES | AS30: JOINT INST. FOR THE N. GULF OF MEXICO | AT30: OAR/HQ SUPPORT | AU30: 40 | AV30: NAT ENV SATELLITE, DATA & INFO SERVICE | AW30: 07 | AX30: NATIONAL OCEANOGRAPHIC DATA CENTER, NESD
A31: CL | B31: CLE | C31: XXX | D31: ORF | E31: 85 | F31: 03-01-07-013 | G31: 3 | H31: E8R1VRS | I31: 0 | J31: 0 | K31: 0 | L31: 0 | M31: 0 | N31: 0 | O31: 0 | P31: 0 | Q31: 0 | R31: 0 | S31: 0 | T31: 0 | U31: 0 | V31: 0 | W31: 0 | X31: 0 | Y31: 0 | Z31: 0 | AA31: 193475 | AB31: 156621.07 | AC31: 36853.93 | AD31: 0 | AE31: 0 | AF31: 0 | AG31: 193475 | AH31: 156621.07 | AI31: 36853.93 | AJ31: 0 | AK31: 0 | AL31: 0 | AM31: CLIMATE | AN31: CLIMATE AND ECOSYSTEMS | AO31: UNKNOWN CAPABILITY | AP31: OCEANIC & ATMOSPHERIC RESEARCH | AQ31: CLIMATE RESEARCH | AR31: LABORATORIES & JOINT INSTITUTES | AS31: JOINT INST. FOR THE N. GULF OF MEXICO | AT31: OAR/HQ SUPPORT | AU31: 10 | AV31: NATIONAL OCEAN SERVICE - ASST ADM | AW31: 13 | AX31: NATIONAL CENTERS FOR COASTAL OCEAN SCI
A32: CL | B32: CLE | C32: XXX | D32: ORF | E32: 85 | F32: 03-01-07-013 | G32: 3 | H32: E8R1VRS | I32: 0 | J32: 0 | K32: 0 | L32: 0 | M32: 0 | N32: 0 | O32: 0 | P32: 0 | Q32: 0 | R32: 0 | S32: 0 | T32: 0 | U32: 644999 | V32: 0 | W32: 644999 | X32: 0 | Y32: 0 | Z32: 0 | AA32: 0 | AB32: 644999 | AC32: -644999 | AD32: 0 | AE32: 0 | AF32: 0 | AG32: 644999 | AH32: 644999 | AI32: 0 | AJ32: 0 | AK32: 0 | AL32: 0 | AM32: CLIMATE | AN32: CLIMATE AND ECOSYSTEMS | AO32: UNKNOWN CAPABILITY | AP32: OCEANIC & ATMOSPHERIC RESEARCH | AQ32: CLIMATE RESEARCH | AR32: LABORATORIES & JOINT INSTITUTES | AS32: JOINT INST. FOR THE N. GULF OF MEXICO | AT32: OAR/HQ SUPPORT | AU32: 50 | AV32: OFFICE OF OCEANIC & ATMOSPHERIC RESEARCH | AW32: 19 | AX32: LABORATORIES AND COOPERATIVE INSTITUTES
A33: CL | B33: CLE | C33: XXX | D33: ORF | E33: 85 | F33: 03-01-07-013 | G33: 3 | H33: E8R1VRS | I33: 0 | J33: 0 | K33: 0 | L33: 0 | M33: 0 | N33: 0 | O33: 0 | P33: 0 | Q33: 0 | R33: 0 | S33: 0 | T33: 0 | U33: 0 | V33: 0 | W33: 0 | X33: 0 | Y33: 0 | Z33: 0 | AA33: 13200 | AB33: 13150.21 | AC33: 49.79 | AD33: 0.02 | AE33: 0.052884615 | AF33: -0.032884615 | AG33: 13200 | AH33: 13150.21 | AI33: 49.79 | AJ33: 0.02 | AK33: 0.052884615 | AL33: -0.032884615 | AM33: CLIMATE | AN33: CLIMATE AND ECOSYSTEMS | AO33: UNKNOWN CAPABILITY | AP33: OCEANIC & ATMOSPHERIC RESEARCH | AQ33: CLIMATE RESEARCH | AR33: LABORATORIES & JOINT INSTITUTES | AS33: JOINT INST. FOR THE N. GULF OF MEXICO | AT33: OAR/HQ SUPPORT | AU33: 50 | AV33: OFFICE OF OCEANIC & ATMOSPHERIC RESEARCH | AW33: 25 | AX33: GREAT LAKES ENVIRONMENTAL RESEARCH LAB
A34: CL | B34: CLE | C34: XXX | D34: ORF | E34: 85 | F34: 03-01-07-013 | G34: 3 | H34: E8R1VRS | I34: 0 | J34: 0 | K34: 0 | L34: 0 | M34: 0 | N34: 0 | O34: 0 | P34: 0 | Q34: 0 | R34: 0 | S34: 0 | T34: 0 | U34: 0 | V34: 0 | W34: 0 | X34: 0 | Y34: 0 | Z34: 0 | AA34: 0 | AB34: 469666 | AC34: -469666 | AD34: 0 | AE34: 0 | AF34: 0 | AG34: 0 | AH34: 469666 | AI34: -469666 | AJ34: 0 | AK34: 0 | AL34: 0 | AM34: CLIMATE | AN34: CLIMATE AND ECOSYSTEMS | AO34: UNKNOWN CAPABILITY | AP34: OCEANIC & ATMOSPHERIC RESEARCH | AQ34: CLIMATE RESEARCH | AR34: LABORATORIES & JOINT INSTITUTES | AS34: JOINT INST. FOR THE N. GULF OF MEXICO | AT34: OAR/HQ SUPPORT | AU34: 50 | AV34: OFFICE OF OCEANIC & ATMOSPHERIC RESEARCH | AW34: 23 | AX34: ATLANTIC OCEANOGRAPHIC & MET LAB
A35: CL | B35: CLF | C35: TBD | D35: ORF | E35: 37 | F35: 03-01-04-000 | G35: 3 | H35: D8R1D34 | I35: 0 | J35: 68.31 | K35: -68.31 | L35: 0 | M35: 0 | N35: 0 | O35: 0 | P35: 0 | Q35: 0 | R35: 0 | S35: 0 | T35: 0 | U35: 0 | V35: 0 | W35: 0 | X35: 0 | Y35: 0 | Z35: 0 | AA35: 0 | AB35: -40.28 | AC35: 40.28 | AD35: 0 | AE35: 0 | AF35: 0 | AG35: 0 | AH35: 28.03 | AI35: -28.03 | AJ35: 0 | AK35: 0 | AL35: 0 | AM35: CLIMATE | AN35: CLIMATE FORCING | AO35: TO BE DETERMINED | AP35: OCEANIC & ATMOSPHERIC RESEARCH | AQ35: CLIMATE RESEARCH | AR35: CLIMATE & GLOBAL CHANGE PROGRAM | AS35: CLIMATE AND GLOBAL CHANGE PROGRAM | AT35: ATMOSPHERIC COMP & CLIMATE PROGRAM | AU35: 50 | AV35: OFFICE OF OCEANIC & ATMOSPHERIC RESEARCH | AW35: 34 | AX35: GLOBAL MONITORING DIVISION
A36: CL | B36: CLF | C36: TBD | D36: ORF | E36: 85 | F36: 03-01-07-001 | G36: 3 | H36: E8R1GAL | I36: 0 | J36: 3089.22 | K36: -3089.22 | L36: 0 | M36: 0 | N36: 0 | O36: 0 | P36: -3047.53 | Q36: 3047.53 | R36: 0 | S36: 0 | T36: 0 | U36: 0 | V36: 8403.41 | W36: -8403.41 | X36: 0 | Y36: 0.025961539 | Z36: -0.025961539 | AA36: 0 | AB36: -8409.14 | AC36: 8409.14 | AD36: 0 | AE36: -0.025961538 | AF36: 0.025961538 | AG36: 0 | AH36: 35.96 | AI36: -35.96 | AJ36: 0 | AK36: 9.999999995e-10 | AL36: -9.999999995e-10 | AM36: CLIMATE | AN36: CLIMATE FORCING | AO36: TO BE DETERMINED | AP36: OCEANIC & ATMOSPHERIC RESEARCH | AQ36: CLIMATE RESEARCH | AR36: LABORATORIES & JOINT INSTITUTES | AS36: AERONOMY LABORATORY (AL) | AT36: AL LABOR DEFAULT | AU36: 50 | AV36: OFFICE OF OCEANIC & ATMOSPHERIC RESEARCH | AW36: 36 | AX36: CHEMICAL SCIENCES DIVISION
A37: CL | B37: CLF | C37: XXX | D37: ORF | E37: 1 | F37: 03-01-04-000 | G37: 3 | H37: DKR1DA1 | I37: 0 | J37: 0 | K37: 0 | L37: 0 | M37: 0 | N37: 0 | O37: 0 | P37: 0 | Q37: 0 | R37: 0 | S37: 0 | T37: 0 | U37: 0 | V37: 0 | W37: 0 | X37: 0 | Y37: 0 | Z37: 0 | AA37: 0 | AB37: 0 | AC37: 0 | AD37: 0 | AE37: 0 | AF37: 0 | AG37: 0 | AH37: 0 | AI37: 0 | AJ37: 0 | AK37: 0 | AL37: 0 | AM37: CLIMATE | AN37: CLIMATE FORCING | AO37: UNKNOWN CAPABILITY | AP37: OCEANIC & ATMOSPHERIC RESEARCH | AQ37: CLIMATE RESEARCH | AR37: GLOBAL CHANGE | AS37: BASE | AT37: HURRICANE SUPPLEMENTAL - KATRINA | AU37: 50 | AV37: OFFICE OF OCEANIC & ATMOSPHERIC RESEARCH | AW37: 19 | AX37: LABORATORIES AND COOPERATIVE INSTITUTES
A38: CL | B38: CLF | C38: XXX | D38: ORF | E38: 1 | F38: 03-01-07-001 | G38: 3 | H38: 38R1G79 | I38: 0 | J38: -15.584 | K38: 15.584 | L38: 0 | M38: 0 | N38: 0 | O38: 0 | P38: 0 | Q38: 0 | R38: 0 | S38: 0 | T38: 0 | U38: 0 | V38: 0 | W38: 0 | X38: 0 | Y38: 0 | Z38: 0 | AA38: 0 | AB38: 15.584 | AC38: -15.584 | AD38: 0 | AE38: 0 | AF38: 0 | AG38: 0 | AH38: 0 | AI38: 0 | AJ38: 0 | AK38: 0 | AL38: 0 | AM38: CLIMATE | AN38: CLIMATE FORCING | AO38: UNKNOWN CAPABILITY | AP38: OCEANIC & ATMOSPHERIC RESEARCH | AQ38: CLIMATE RESEARCH | AR38: LABORATORIES & JOINT INSTITUTES | AS38: AERONOMY LABORATORY (AL) | AT38: TROPOSPHERIC SAMPLING | AU38: 50 | AV38: OFFICE OF OCEANIC & ATMOSPHERIC RESEARCH | AW38: 21 | AX38: AERONOMY LABORATORY
A39: CL | B39: CLF | C39: XXX | D39: ORF | E39: 1 | F39: 03-01-07-001 | G39: 3 | H39: 38R1GA5 | I39: 0 | J39: 0 | K39: 0 | L39: 0 | M39: 0 | N39: 0 | O39: 0 | P39: 0 | Q39: 0 | R39: 0 | S39: 0 | T39: 0 | U39: 0 | V39: 0 | W39: 0 | X39: 0 | Y39: 0 | Z39: 0 | AA39: 0 | AB39: 0 | AC39: 0 | AD39: 0 | AE39: 0 | AF39: 0 | AG39: 0 | AH39: 0 | AI39: 0 | AJ39: 0 | AK39: 0 | AL39: 0 | AM39: CLIMATE | AN39: CLIMATE FORCING | AO39: UNKNOWN CAPABILITY | AP39: OCEANIC & ATMOSPHERIC RESEARCH | AQ39: CLIMATE RESEARCH | AR39: LABORATORIES & JOINT INSTITUTES | AS39: AERONOMY LABORATORY (AL) | AT39: POLLUTION CHEMISTRY | AU39: 50 | AV39: OFFICE OF OCEANIC & ATMOSPHERIC RESEARCH | AW39: 21 | AX39: AERONOMY LABORATORY
A40: CL | B40: CLF | C40: XXX | D40: ORF | E40: 1 | F40: 03-01-07-005 | G40: 3 | H40: 38R1M07 | I40: 0 | J40: 2237.29748 | K40: -2237.29748 | L40: 0 | M40: 0 | N40: 0 | O40: 0 | P40: 622.24964 | Q40: -622.24964 | R40: 0 | S40: 0 | T40: 0 | U40: 0 | V40: 0 | W40: 0 | X40: 0 | Y40: 0 | Z40: 0 | AA40: 0 | AB40: -2859.54712 | AC40: 2859.54712 | AD40: 0 | AE40: 0 | AF40: 0 | AG40: 0 | AH40: 0 | AI40: 0 | AJ40: 0 | AK40: 0 | AL40: 0 | AM40: CLIMATE | AN40: CLIMATE FORCING | AO40: UNKNOWN CAPABILITY | AP40: OCEANIC & ATMOSPHERIC RESEARCH | AQ40: CLIMATE RESEARCH | AR40: LABORATORIES & JOINT INSTITUTES | AS40: CLIMATE MONITORING & DIAGNOS. LAB (CMDL) | AT40: CARBON DIOXIDE | AU40: 50 | AV40: OFFICE OF OCEANIC & ATMOSPHERIC RESEARCH | AW40: 34 | AX40: GLOBAL MONITORING DIVISION
A41: CL | B41: CLF | C41: XXX | D41: ORF | E41: 1 | F41: 03-01-07-005 | G41: 3 | H41: 38R1M28 | I41: 0 | J41: 0 | K41: 0 | L41: 0 | M41: 0 | N41: 0 | O41: 0 | P41: 35.551 | Q41: -35.551 | R41: 0 | S41: 0 | T41: 0 | U41: 0 | V41: -35.551 | W41: 35.551 | X41: 0 | Y41: 0 | Z41: 0 | AA41: 0 | AB41: 0 | AC41: 0 | AD41: 0 | AE41: 0 | AF41: 0 | AG41: 0 | AH41: 0 | AI41: 0 | AJ41: 0 | AK41: 0 | AL41: 0 | AM41: CLIMATE | AN41: CLIMATE FORCING | AO41: UNKNOWN CAPABILITY | AP41: OCEANIC & ATMOSPHERIC RESEARCH | AQ41: CLIMATE RESEARCH | AR41: LABORATORIES & JOINT INSTITUTES | AS41: CLIMATE MONITORING & DIAGNOS. LAB (CMDL) | AT41: MONITOR AEROSOLS & RADIATION | AU41: 50 | AV41: OFFICE OF OCEANIC & ATMOSPHERIC RESEARCH | AW41: 34 | AX41: GLOBAL MONITORING DIVISION
A42: CL | B42: CLF | C42: XXX | D42: ORF | E42: 1 | F42: 03-01-07-005 | G42: 3 | H42: 38R1M34 | I42: 0 | J42: 0 | K42: 0 | L42: 0 | M42: 0 | N42: 0 | O42: 0 | P42: 0 | Q42: 0 | R42: 0 | S42: 0 | T42: 0 | U42: 0 | V42: 61.24512 | W42: -61.24512 | X42: 0 | Y42: 0 | Z42: 0 | AA42: 0 | AB42: -61.24512 | AC42: 61.24512 | AD42: 0 | AE42: 0 | AF42: 0 | AG42: 0 | AH42: 0 | AI42: 0 | AJ42: 0 | AK42: 0 | AL42: 0 | AM42: CLIMATE | AN42: CLIMATE FORCING | AO42: UNKNOWN CAPABILITY | AP42: OCEANIC & ATMOSPHERIC RESEARCH | AQ42: CLIMATE RESEARCH | AR42: LABORATORIES & JOINT INSTITUTES | AS42: CLIMATE MONITORING & DIAGNOS. LAB (CMDL) | AT42: STRATOSPHERIC RESEARCH & MONITORING | AU42: 50 | AV42: OFFICE OF OCEANIC & ATMOSPHERIC RESEARCH | AW42: 34 | AX42: GLOBAL MONITORING DIVISION
A43: CL | B43: CLF | C43: XXX | D43: ORF | E43: 1 | F43: 03-01-07-006 | G43: 3 | H43: 38R1NHP | I43: 0 | J43: 0 | K43: 0 | L43: 0 | M43: 0 | N43: 0 | O43: 0 | P43: 3399.0652 | Q43: -3399.0652 | R43: 0 | S43: 0 | T43: 0 | U43: 0 | V43: 0 | W43: 0 | X43: 0 | Y43: 0 | Z43: 0 | AA43: 0 | AB43: -3399.0652 | AC43: 3399.0652 | AD43: 0 | AE43: 0 | AF43: 0 | AG43: 0 | AH43: 0 | AI43: 0 | AJ43: 0 | AK43: 0 | AL43: 0 | AM43: CLIMATE | AN43: CLIMATE FORCING | AO43: UNKNOWN CAPABILITY | AP43: OCEANIC & ATMOSPHERIC RESEARCH | AQ43: CLIMATE RESEARCH | AR43: LABORATORIES & JOINT INSTITUTES | AS43: ENVIRONMENTAL TECHNOLOGY LAB. (ETL) | AT43: HIGH PERFORMANCE COMPUTING | AU43: 01 | AV43: OFFICE OF UNDER SECRETARY | AW43: 00 | AX43: OFFICE OF UNDER SECRETARY
A44: CL | B44: CLF | C44: XXX | D44: ORF | E44: 1 | F44: 03-01-07-006 | G44: 3 | H44: 38R1NHP | I44: 29820.958 | J44: 0 | K44: 29820.958 | L44: 0 | M44: 0 | N44: 0 | O44: 0 | P44: 0 | Q44: 0 | R44: 0 | S44: 0 | T44: 0 | U44: 0 | V44: 29820.958 | W44: -29820.958 | X44: 0 | Y44: 0 | Z44: 0 | AA44: 0 | AB44: 0 | AC44: 0 | AD44: 0 | AE44: 0 | AF44: 0 | AG44: 29820.958 | AH44: 29820.958 | AI44: 0 | AJ44: 0 | AK44: 0 | AL44: 0 | AM44: CLIMATE | AN44: CLIMATE FORCING | AO44: UNKNOWN CAPABILITY | AP44: OCEANIC & ATMOSPHERIC RESEARCH | AQ44: CLIMATE RESEARCH | AR44: LABORATORIES & JOINT INSTITUTES | AS44: ENVIRONMENTAL TECHNOLOGY LAB. (ETL) | AT44: HIGH PERFORMANCE COMPUTING | AU44: 50 | AV44: OFFICE OF OCEANIC & ATMOSPHERIC RESEARCH | AW44: 01 | AX44: OFFICE OF OCEANIC & ATMOSPHERIC RESEARCH
A45: CL | B45: CLF | C45: XXX | D45: ORF | E45: 37 | F45: 03-01-04-000 | G45: 3 | H45: D8R1DCM | I45: 0 | J45: 0 | K45: 0 | L45: 0 | M45: 0 | N45: 0 | O45: 0 | P45: 0 | Q45: 0 | R45: 0 | S45: 0 | T45: 0 | U45: 0 | V45: 0 | W45: 0 | X45: 0 | Y45: 0 | Z45: 0 | AA45: 0 | AB45: 0 | AC45: 0 | AD45: 0 | AE45: 0 | AF45: 0 | AG45: 0 | AH45: 0 | AI45: 0 | AJ45: 0 | AK45: 0 | AL45: 0 | AM45: CLIMATE | AN45: CLIMATE FORCING | AO45: UNKNOWN CAPABILITY | AP45: OCEANIC & ATMOSPHERIC RESEARCH | AQ45: CLIMATE RESEARCH | AR45: CLIMATE & GLOBAL CHANGE PROGRAM | AS45: CLIMATE AND GLOBAL CHANGE PROGRAM | AT45: IMPROVING CLIMATE MODELS | AU45: 50 | AV45: OFFICE OF OCEANIC & ATMOSPHERIC RESEARCH | AW45: 24 | AX45: GEOPHYSICAL FLUID DYNAMICS LABORATORY
A46: CL | B46: CLF | C46: XXX | D46: ORF | E46: 37 | F46: 03-01-06-000 | G46: 3 | H46: D8R1F18 | I46: 0 | J46: 0 | K46: 0 | L46: 0 | M46: 0 | N46: 0 | O46: 0 | P46: 0 | Q46: 0 | R46: 0 | S46: 0 | T46: 0 | U46: 0 | V46: 0 | W46: 0 | X46: 0 | Y46: 0 | Z46: 0 | AA46: 0 | AB46: 585.98762 | AC46: -585.98762 | AD46: 0 | AE46: 0 | AF46: 0 | AG46: 0 | AH46: 585.98762 | AI46: -585.98762 | AJ46: 0 | AK46: 0 | AL46: 0 | AM46: CLIMATE | AN46: CLIMATE FORCING | AO46: UNKNOWN CAPABILITY | AP46: OCEANIC & ATMOSPHERIC RESEARCH | AQ46: CLIMATE RESEARCH | AR46: CLIMATE OBSERVATIONS & SERVICES | AS46: OAR CLI. RSRCH OBSERVATIONS & SVCS BASE | AT46: BASELINE OBSERVATIONS | AU46: 06 | AV46: STAFF OFCS OF THE OFC OF THE UNDER SEC | AW46: 99 | AX46: COMMON SERVICES
A47: CL | B47: CLF | C47: XXX | D47: ORF | E47: 37 | F47: 03-01-06-000 | G47: 3 | H47: D8R1F18 | I47: 0 | J47: 2343.3953 | K47: -2343.3953 | L47: 0 | M47: 0.006672836 | N47: -0.006672836 | O47: 0 | P47: 0 | Q47: 0 | R47: 0 | S47: 0 | T47: 0 | U47: 0 | V47: 6.70112 | W47: -6.70112 | X47: 0 | Y47: 0 | Z47: 0 | AA47: 0 | AB47: 9937.25448 | AC47: -9937.25448 | AD47: 0 | AE47: 0 | AF47: 0 | AG47: 0 | AH47: 12287.3509 | AI47: -12287.3509 | AJ47: 0 | AK47: 0.006672836 | AL47: -0.006672836 | AM47: CLIMATE | AN47: CLIMATE FORCING | AO47: UNKNOWN CAPABILITY | AP47: OCEANIC & ATMOSPHERIC RESEARCH | AQ47: CLIMATE RESEARCH | AR47: CLIMATE OBSERVATIONS & SERVICES | AS47: OAR CLI. RSRCH OBSERVATIONS & SVCS BASE | AT47: BASELINE OBSERVATIONS | AU47: 50 | AV47: OFFICE OF OCEANIC & ATMOSPHERIC RESEARCH | AW47: 34 | AX47: GLOBAL MONITORING DIVISION
A48: CL | B48: CLF | C48: XXX | D48: ORF | E48: 37 | F48: 03-01-06-000 | G48: 3 | H48: D8R1F18 | I48: 0 | J48: 0 | K48: 0 | L48: 0 | M48: 0 | N48: 0 | O48: 0 | P48: 0 | Q48: 0 | R48: 0 | S48: 0 | T48: 0 | U48: 0 | V48: 0 | W48: 0 | X48: 0 | Y48: 0 | Z48: 0 | AA48: 0 | AB48: 0 | AC48: 0 | AD48: 0 | AE48: 0 | AF48: 0 | AG48: 0 | AH48: 0 | AI48: 0 | AJ48: 0 | AK48: 0 | AL48: 0 | AM48: CLIMATE | AN48: CLIMATE FORCING | AO48: UNKNOWN CAPABILITY | AP48: OCEANIC & ATMOSPHERIC RESEARCH | AQ48: CLIMATE RESEARCH | AR48: CLIMATE OBSERVATIONS & SERVICES | AS48: OAR CLI. RSRCH OBSERVATIONS & SVCS BASE | AT48: BASELINE OBSERVATIONS | AU48: 50 | AV48: OFFICE OF OCEANIC & ATMOSPHERIC RESEARCH | AW48: 27 | AX48: PACIFIC MARINE ENVIRONMENTAL LABORATORY
A49: CL | B49: CLF | C49: XXX | D49: ORF | E49: 37 | F49: 03-01-06-000 | G49: 3 | H49: D8R1F19 | I49: 0 | J49: 0 | K49: 0 | L49: 0 | M49: 0 | N49: 0 | O49: 0 | P49: 0 | Q49: 0 | R49: 0 | S49: 0 | T49: 0 | U49: 0 | V49: 0 | W49: 0 | X49: 0 | Y49: 0 | Z49: 0 | AA49: 0 | AB49: 0 | AC49: 0 | AD49: 0 | AE49: 0 | AF49: 0 | AG49: 0 | AH49: 0 | AI49: 0 | AJ49: 0 | AK49: 0 | AL49: 0 | AM49: CLIMATE | AN49: CLIMATE FORCING | AO49: UNKNOWN CAPABILITY | AP49: OCEANIC & ATMOSPHERIC RESEARCH | AQ49: CLIMATE RESEARCH | AR49: CLIMATE OBSERVATIONS & SERVICES | AS49: OAR CLI. RSRCH OBSERVATIONS & SVCS BASE | AT49: NCEP | AU49: 99 | AV49: CAMS SYSTEM - FINANCE USE ONLY | AW49: 03 | AX49: ACCOUNTING USE ONLY - NOAA
A50: CL | B50: CLF | C50: XXX | D50: ORF | E50: 37 | F50: 03-01-06-000 | G50: 3 | H50: D8R1F19 | I50: 0 | J50: 0 | K50: 0 | L50: 0 | M50: 0 | N50: 0 | O50: 0 | P50: 6795.83 | Q50: -6795.83 | R50: 0 | S50: 0 | T50: 0 | U50: 0 | V50: 0 | W50: 0 | X50: 0 | Y50: 0 | Z50: 0 | AA50: 0 | AB50: 0 | AC50: 0 | AD50: 0 | AE50: 0 | AF50: 0 | AG50: 0 | AH50: 6795.83 | AI50: -6795.83 | AJ50: 0 | AK50: 0 | AL50: 0 | AM50: CLIMATE | AN50: CLIMATE FORCING | AO50: UNKNOWN CAPABILITY | AP50: OCEANIC & ATMOSPHERIC RESEARCH | AQ50: CLIMATE RESEARCH | AR50: CLIMATE OBSERVATIONS & SERVICES | AS50: OAR CLI. RSRCH OBSERVATIONS & SVCS BASE | AT50: NCEP | AU50: 20 | AV50: NATIONAL WEATHER SERVICE - OFFICE OF AA | AW50: 70 | AX50: NATIONAL CENTERS FOR ENVIRONMENTAL PREDI
A51: CL | B51: CLF | C51: XXX | D51: ORF | E51: 37 | F51: 03-01-06-000 | G51: 3 | H51: D8R1F21 | I51: 0 | J51: 0 | K51: 0 | L51: 0 | M51: 0 | N51: 0 | O51: 0 | P51: 0 | Q51: 0 | R51: 0 | S51: 0 | T51: 0 | U51: 0 | V51: 0 | W51: 0 | X51: 0 | Y51: 0 | Z51: 0 | AA51: 0 | AB51: 0 | AC51: 0 | AD51: 0 | AE51: 0 | AF51: 0 | AG51: 0 | AH51: 0 | AI51: 0 | AJ51: 0 | AK51: 0 | AL51: 0 | AM51: CLIMATE | AN51: CLIMATE FORCING | AO51: UNKNOWN CAPABILITY | AP51: OCEANIC & ATMOSPHERIC RESEARCH | AQ51: CLIMATE RESEARCH | AR51: CLIMATE OBSERVATIONS & SERVICES | AS51: OAR CLI. RSRCH OBSERVATIONS & SVCS BASE | AT51: CARBON CYCLE | AU51: 99 | AV51: CAMS SYSTEM - FINANCE USE ONLY | AW51: 03 | AX51: ACCOUNTING USE ONLY - NOAA
A52: CL | B52: CLF | C52: XXX | D52: ORF | E52: 37 | F52: 03-01-06-000 | G52: 3 | H52: D8R1F21 | I52: 0 | J52: 0 | K52: 0 | L52: 0 | M52: 0 | N52: 0 | O52: 0 | P52: 0 | Q52: 0 | R52: 0 | S52: 0 | T52: 0 | U52: 0 | V52: 0 | W52: 0 | X52: 0 | Y52: 0 | Z52: 0 | AA52: 0 | AB52: 2629.38118 | AC52: -2629.38118 | AD52: 0 | AE52: 0 | AF52: 0 | AG52: 0 | AH52: 2629.38118 | AI52: -2629.38118 | AJ52: 0 | AK52: 0 | AL52: 0 | AM52: CLIMATE | AN52: CLIMATE FORCING | AO52: UNKNOWN CAPABILITY | AP52: OCEANIC & ATMOSPHERIC RESEARCH | AQ52: CLIMATE RESEARCH | AR52: CLIMATE OBSERVATIONS & SERVICES | AS52: OAR CLI. RSRCH OBSERVATIONS & SVCS BASE | AT52: CARBON CYCLE | AU52: 06 | AV52: STAFF OFCS OF THE OFC OF THE UNDER SEC | AW52: 99 | AX52: COMMON SERVICES
A53: CL | B53: CLF | C53: XXX | D53: ORF | E53: 37 | F53: 03-01-06-000 | G53: 3 | H53: D8R1F21 | I53: 0 | J53: 0 | K53: 0 | L53: 0 | M53: 0 | N53: 0 | O53: 0 | P53: 0 | Q53: 0 | R53: 0 | S53: 0 | T53: 0 | U53: 0 | V53: 0 | W53: 0 | X53: 0 | Y53: 0 | Z53: 0 | AA53: 0 | AB53: 0 | AC53: 0 | AD53: 0 | AE53: 0 | AF53: 0 | AG53: 0 | AH53: 0 | AI53: 0 | AJ53: 0 | AK53: 0 | AL53: 0 | AM53: CLIMATE | AN53: CLIMATE FORCING | AO53: UNKNOWN CAPABILITY | AP53: OCEANIC & ATMOSPHERIC RESEARCH | AQ53: CLIMATE RESEARCH | AR53: CLIMATE OBSERVATIONS & SERVICES | AS53: OAR CLI. RSRCH OBSERVATIONS & SVCS BASE | AT53: CARBON CYCLE | AU53: 50 | AV53: OFFICE OF OCEANIC & ATMOSPHERIC RESEARCH | AW53: 24 | AX53: GEOPHYSICAL FLUID DYNAMICS LABORATORY
A54: CL | B54: CLF | C54: XXX | D54: ORF | E54: 37 | F54: 03-01-06-000 | G54: 3 | H54: D8R1F21 | I54: 0 | J54: -975.52918 | K54: 975.52918 | L54: 0 | M54: -0.014048077 | N54: 0.014048077 | O54: 0 | P54: 152.39204 | Q54: -152.39204 | R54: 0 | S54: 0 | T54: 0 | U54: 0 | V54: -1659.5499 | W54: 1659.5499 | X54: 0 | Y54: 0 | Z54: 0 | AA54: 0 | AB54: 0.6818 | AC54: -0.6818 | AD54: 0 | AE54: 0 | AF54: 0 | AG54: 0 | AH54: -2482.00524 | AI54: 2482.00524 | AJ54: 0 | AK54: -0.014048077 | AL54: 0.014048077 | AM54: CLIMATE | AN54: CLIMATE FORCING | AO54: UNKNOWN CAPABILITY | AP54: OCEANIC & ATMOSPHERIC RESEARCH | AQ54: CLIMATE RESEARCH | AR54: CLIMATE OBSERVATIONS & SERVICES | AS54: OAR CLI. RSRCH OBSERVATIONS & SVCS BASE | AT54: CARBON CYCLE | AU54: 50 | AV54: OFFICE OF OCEANIC & ATMOSPHERIC RESEARCH | AW54: 34 | AX54: GLOBAL MONITORING DIVISION
A55: CL | B55: CLF | C55: XXX | D55: ORF | E55: 37 | F55: 03-01-06-000 | G55: 3 | H55: D8R1F21 | I55: 0 | J55: 198.86158 | K55: -198.86158 | L55: 0 | M55: 0 | N55: 0 | O55: 0 | P55: 0 | Q55: 0 | R55: 0 | S55: 0 | T55: 0 | U55: 0 | V55: 0 | W55: 0 | X55: 0 | Y55: 0 | Z55: 0 | AA55: 0 | AB55: 0 | AC55: 0 | AD55: 0 | AE55: 0 | AF55: 0 | AG55: 0 | AH55: 198.86158 | AI55: -198.86158 | AJ55: 0 | AK55: 0 | AL55: 0 | AM55: CLIMATE | AN55: CLIMATE FORCING | AO55: UNKNOWN CAPABILITY | AP55: OCEANIC & ATMOSPHERIC RESEARCH | AQ55: CLIMATE RESEARCH | AR55: CLIMATE OBSERVATIONS & SERVICES | AS55: OAR CLI. RSRCH OBSERVATIONS & SVCS BASE | AT55: CARBON CYCLE | AU55: 20 | AV55: NATIONAL WEATHER SERVICE - OFFICE OF AA | AW55: 70 | AX55: NATIONAL CENTERS FOR ENVIRONMENTAL PREDI
A56: CL | B56: CLF | C56: XXX | D56: ORF | E56: 37 | F56: 03-01-06-000 | G56: 3 | H56: D8R1F21 | I56: 0 | J56: 0 | K56: 0 | L56: 0 | M56: 0 | N56: 0 | O56: 0 | P56: 0 | Q56: 0 | R56: 0 | S56: 0 | T56: 0 | U56: 0 | V56: 0 | W56: 0 | X56: 0 | Y56: 0 | Z56: 0 | AA56: 0 | AB56: 0 | AC56: 0 | AD56: 0 | AE56: 0 | AF56: 0 | AG56: 0 | AH56: 0 | AI56: 0 | AJ56: 0 | AK56: 0 | AL56: 0 | AM56: CLIMATE | AN56: CLIMATE FORCING | AO56: UNKNOWN CAPABILITY | AP56: OCEANIC & ATMOSPHERIC RESEARCH | AQ56: CLIMATE RESEARCH | AR56: CLIMATE OBSERVATIONS & SERVICES | AS56: OAR CLI. RSRCH OBSERVATIONS & SVCS BASE | AT56: CARBON CYCLE | AU56: 40 | AV56: NAT ENV SATELLITE, DATA & INFO SERVICE | AW56: 04 | AX56: OFFICE OF RESEARCH & APPLICATIONS, NESDI
A57: CL | B57: CLF | C57: XXX | D57: ORF | E57: 37 | F57: 03-01-06-000 | G57: 3 | H57: D8R1F24 | I57: 0 | J57: -6071.83808 | K57: 6071.83808 | L57: 0 | M57: -0.014984616 | N57: 0.014984616 | O57: 0 | P57: 0 | Q57: 0 | R57: 0 | S57: 0 | T57: 0 | U57: 0 | V57: 0 | W57: 0 | X57: 0 | Y57: 0 | Z57: 0 | AA57: 0 | AB57: 0 | AC57: 0 | AD57: 0 | AE57: 0 | AF57: 0 | AG57: 0 | AH57: -6071.83808 | AI57: 6071.83808 | AJ57: 0 | AK57: -0.014984616 | AL57: 0.014984616 | AM57: CLIMATE | AN57: CLIMATE FORCING | AO57: UNKNOWN CAPABILITY | AP57: OCEANIC & ATMOSPHERIC RESEARCH | AQ57: CLIMATE RESEARCH | AR57: CLIMATE OBSERVATIONS & SERVICES | AS57: OAR CLI. RSRCH OBSERVATIONS & SVCS BASE | AT57: AEROSOLS | AU57: 50 | AV57: OFFICE OF OCEANIC & ATMOSPHERIC RESEARCH | AW57: 27 | AX57: PACIFIC MARINE ENVIRONMENTAL LABORATORY
A58: CL | B58: CLF | C58: XXX | D58: ORF | E58: 37 | F58: 03-01-06-000 | G58: 3 | H58: D8R1F24 | I58: 0 | J58: 418.9661 | K58: -418.9661 | L58: 0 | M58: 0 | N58: 0 | O58: 0 | P58: 65.02424 | Q58: -65.02424 | R58: 0 | S58: 0 | T58: 0 | U58: 0 | V58: 0 | W58: 0 | X58: 0 | Y58: 0 | Z58: 0 | AA58: 0 | AB58: 0 | AC58: 0 | AD58: 0 | AE58: 0 | AF58: 0 | AG58: 0 | AH58: 483.99034 | AI58: -483.99034 | AJ58: 0 | AK58: 0 | AL58: 0 | AM58: CLIMATE | AN58: CLIMATE FORCING | AO58: UNKNOWN CAPABILITY | AP58: OCEANIC & ATMOSPHERIC RESEARCH | AQ58: CLIMATE RESEARCH | AR58: CLIMATE OBSERVATIONS & SERVICES | AS58: OAR CLI. RSRCH OBSERVATIONS & SVCS BASE | AT58: AEROSOLS | AU58: 50 | AV58: OFFICE OF OCEANIC & ATMOSPHERIC RESEARCH | AW58: 34 | AX58: GLOBAL MONITORING DIVISION
A59: CL | B59: CLF | C59: XXX | D59: ORF | E59: 37 | F59: 03-01-06-000 | G59: 3 | H59: D8R1F24 | I59: 0 | J59: 0 | K59: 0 | L59: 0 | M59: 0 | N59: 0 | O59: 0 | P59: 0 | Q59: 0 | R59: 0 | S59: 0 | T59: 0 | U59: 0 | V59: 0 | W59: 0 | X59: 0 | Y59: 0 | Z59: 0 | AA59: 0 | AB59: 0 | AC59: 0 | AD59: 0 | AE59: 0 | AF59: 0 | AG59: 0 | AH59: 0 | AI59: 0 | AJ59: 0 | AK59: 0 | AL59: 0 | AM59: CLIMATE | AN59: CLIMATE FORCING | AO59: UNKNOWN CAPABILITY | AP59: OCEANIC & ATMOSPHERIC RESEARCH | AQ59: CLIMATE RESEARCH | AR59: CLIMATE OBSERVATIONS & SERVICES | AS59: OAR CLI. RSRCH OBSERVATIONS & SVCS BASE | AT59: AEROSOLS | AU59: 50 | AV59: OFFICE OF OCEANIC & ATMOSPHERIC RESEARCH | AW59: 24 | AX59: GEOPHYSICAL FLUID DYNAMICS LABORATORY
A60: CL | B60: CLF | C60: XXX | D60: ORF | E60: 37 | F60: 03-01-06-000 | G60: 3 | H60: D8R1F24 | I60: 0 | J60: 0 | K60: 0 | L60: 0 | M60: 0 | N60: 0 | O60: 0 | P60: 0 | Q60: 0 | R60: 0 | S60: 0 | T60: 0 | U60: 0 | V60: 0 | W60: 0 | X60: 0 | Y60: 0 | Z60: 0 | AA60: 0 | AB60: 58.44 | AC60: -58.44 | AD60: 0 | AE60: 0 | AF60: 0 | AG60: 0 | AH60: 58.44 | AI60: -58.44 | AJ60: 0 | AK60: 0 | AL60: 0 | AM60: CLIMATE | AN60: CLIMATE FORCING | AO60: UNKNOWN CAPABILITY | AP60: OCEANIC & ATMOSPHERIC RESEARCH | AQ60: CLIMATE RESEARCH | AR60: CLIMATE OBSERVATIONS & SERVICES | AS60: OAR CLI. RSRCH OBSERVATIONS & SVCS BASE | AT60: AEROSOLS | AU60: 06 | AV60: STAFF OFCS OF THE OFC OF THE UNDER SEC | AW60: 99 | AX60: COMMON SERVICES
A61: CL | B61: CLF | C61: XXX | D61: ORF | E61: 37 | F61: 03-01-06-000 | G61: 3 | H61: D8R1F24 | I61: 0 | J61: 0 | K61: 0 | L61: 0 | M61: 0 | N61: 0 | O61: 0 | P61: 0 | Q61: 0 | R61: 0 | S61: 0 | T61: 0 | U61: 0 | V61: 0 | W61: 0 | X61: 0 | Y61: 0 | Z61: 0 | AA61: 0 | AB61: 0 | AC61: 0 | AD61: 0 | AE61: 0 | AF61: 0 | AG61: 0 | AH61: 0 | AI61: 0 | AJ61: 0 | AK61: 0 | AL61: 0 | AM61: CLIMATE | AN61: CLIMATE FORCING | AO61: UNKNOWN CAPABILITY | AP61: OCEANIC & ATMOSPHERIC RESEARCH | AQ61: CLIMATE RESEARCH | AR61: CLIMATE OBSERVATIONS & SERVICES | AS61: OAR CLI. RSRCH OBSERVATIONS & SVCS BASE | AT61: AEROSOLS | AU61: 50 | AV61: OFFICE OF OCEANIC & ATMOSPHERIC RESEARCH | AW61: 44 | AX61: CLIMATE PROGRAM OFFICE
A62: CL | B62: CLF | C62: XXX | D62: ORF | E62: 37 | F62: 03-01-06-000 | G62: 3 | H62: D8R1F24 | I62: 0 | J62: -29.22 | K62: 29.22 | L62: 0 | M62: 0 | N62: 0 | O62: 0 | P62: 0 | Q62: 0 | R62: 0 | S62: 0 | T62: 0 | U62: 0 | V62: 0 | W62: 0 | X62: 0 | Y62: 0 | Z62: 0 | AA62: 0 | AB62: 29.22 | AC62: -29.22 | AD62: 0 | AE62: 0 | AF62: 0 | AG62: 0 | AH62: 0 | AI62: 0 | AJ62: 0 | AK62: 0 | AL62: 0 | AM62: CLIMATE | AN62: CLIMATE FORCING | AO62: UNKNOWN CAPABILITY | AP62: OCEANIC & ATMOSPHERIC RESEARCH | AQ62: CLIMATE RESEARCH | AR62: CLIMATE OBSERVATIONS & SERVICES | AS62: OAR CLI. RSRCH OBSERVATIONS & SVCS BASE | AT62: AEROSOLS | AU62: 50 | AV62: OFFICE OF OCEANIC & ATMOSPHERIC RESEARCH | AW62: 36 | AX62: CHEMICAL SCIENCES DIVISION
A63: CL | B63: CLF | C63: XXX | D63: ORF | E63: 37 | F63: 03-01-07-001 | G63: 3 | H63: 0000000 | I63: 73786.5 | J63: 0 | K63: 73786.5 | L63: 0 | M63: 0 | N63: 0 | O63: 6403.96054 | P63: 0 | Q63: 6403.96054 | R63: 0 | S63: 0 | T63: 0 | U63: 0 | V63: 0 | W63: 0 | X63: 0 | Y63: 0 | Z63: 0 | AA63: 0 | AB63: 0 | AC63: 0 | AD63: 0 | AE63: 0 | AF63: 0 | AG63: 80190.46054 | AH63: 0 | AI63: 80190.46054 | AJ63: 0 | AK63: 0 | AL63: 0 | AM63: CLIMATE | AN63: CLIMATE FORCING | AO63: UNKNOWN CAPABILITY | AP63: OCEANIC & ATMOSPHERIC RESEARCH | AQ63: CLIMATE RESEARCH | AR63: LABORATORIES & JOINT INSTITUTES | AS63: AERONOMY LABORATORY (AL) | AT63: NULL | AU63: 50 | AV63: OFFICE OF OCEANIC & ATMOSPHERIC RESEARCH | AW63: 36 | AX63: CHEMICAL SCIENCES DIVISION
A64: CL | B64: CLF | C64: XXX | D64: ORF | E64: 37 | F64: 03-01-07-001 | G64: 3 | H64: 0000000 | I64: 0 | J64: 0 | K64: 0 | L64: 0 | M64: 0 | N64: 0 | O64: 0 | P64: 0 | Q64: 0 | R64: 0 | S64: 0 | T64: 0 | U64: 22524.3 | V64: 0 | W64: 22524.3 | X64: 0 | Y64: 0 | Z64: 0 | AA64: 0 | AB64: 0 | AC64: 0 | AD64: 0 | AE64: 0 | AF64: 0 | AG64: 22524.3 | AH64: 0 | AI64: 22524.3 | AJ64: 0 | AK64: 0 | AL64: 0 | AM64: CLIMATE | AN64: CLIMATE FORCING | AO64: UNKNOWN CAPABILITY | AP64: OCEANIC & ATMOSPHERIC RESEARCH | AQ64: CLIMATE RESEARCH | AR64: LABORATORIES & JOINT INSTITUTES | AS64: AERONOMY LABORATORY (AL) | AT64: NULL | AU64: 50 | AV64: OFFICE OF OCEANIC & ATMOSPHERIC RESEARCH | AW64: 37 | AX64: GLOBAL SYSTEMS DIVISION
A65: CL | B65: CLF | C65: XXX | D65: ORF | E65: 37 | F65: 03-01-07-001 | G65: 3 | H65: 0000000 | I65: 6472.5 | J65: 0 | K65: 6472.5 | L65: 0 | M65: 0 | N65: 0 | O65: 0 | P65: 0 | Q65: 0 | R65: 0 | S65: 0 | T65: 0 | U65: 0 | V65: 0 | W65: 0 | X65: 0 | Y65: 0 | Z65: 0 | AA65: 0 | AB65: 0 | AC65: 0 | AD65: 0 | AE65: 0 | AF65: 0 | AG65: 6472.5 | AH65: 0 | AI65: 6472.5 | AJ65: 0 | AK65: 0 | AL65: 0 | AM65: CLIMATE | AN65: CLIMATE FORCING | AO65: UNKNOWN CAPABILITY | AP65: OCEANIC & ATMOSPHERIC RESEARCH | AQ65: CLIMATE RESEARCH | AR65: LABORATORIES & JOINT INSTITUTES | AS65: AERONOMY LABORATORY (AL) | AT65: NULL | AU65: 50 | AV65: OFFICE OF OCEANIC & ATMOSPHERIC RESEARCH | AW65: 35 | AX65: PHYSICAL SCIENCES DIVISION
A66: CL | B66: CLF | C66: XXX | D66: ORF | E66: 37 | F66: 03-01-07-001 | G66: 3 | H66: D8R1G01 | I66: 0 | J66: 0 | K66: 0 | L66: 0 | M66: 0 | N66: 0 | O66: 0 | P66: 0 | Q66: 0 | R66: 0 | S66: 0 | T66: 0 | U66: 0 | V66: 0 | W66: 0 | X66: 0 | Y66: 0 | Z66: 0 | AA66: 0 | AB66: 2375.25 | AC66: -2375.25 | AD66: 0 | AE66: 0 | AF66: 0 | AG66: 0 | AH66: 2375.25 | AI66: -2375.25 | AJ66: 0 | AK66: 0 | AL66: 0 | AM66: CLIMATE | AN66: CLIMATE FORCING | AO66: UNKNOWN CAPABILITY | AP66: OCEANIC & ATMOSPHERIC RESEARCH | AQ66: CLIMATE RESEARCH | AR66: LABORATORIES & JOINT INSTITUTES | AS66: AERONOMY LABORATORY (AL) | AT66: AERONOMY | AU66: 06 | AV66: STAFF OFCS OF THE OFC OF THE UNDER SEC | AW66: 99 | AX66: COMMON SERVICES
A67: CL | B67: CLF | C67: XXX | D67: ORF | E67: 37 | F67: 03-01-07-001 | G67: 3 | H67: D8R1G17 | I67: 0 | J67: 15207.60744 | K67: -15207.60744 | L67: 0 | M67: 0.064621154 | N67: -0.064621154 | O67: 0 | P67: 78891.19488 | Q67: -78891.19488 | R67: 0 | S67: -0.088971154 | T67: 0.088971154 | U67: 0 | V67: 0 | W67: 0 | X67: 0 | Y67: 0 | Z67: 0 | AA67: 0 | AB67: -2648.46184 | AC67: 2648.46184 | AD67: 0 | AE67: 0 | AF67: 0 | AG67: 0 | AH67: 91450.34048 | AI67: -91450.34048 | AJ67: 0 | AK67: -0.02435 | AL67: 0.02435 | AM67: CLIMATE | AN67: CLIMATE FORCING | AO67: UNKNOWN CAPABILITY | AP67: OCEANIC & ATMOSPHERIC RESEARCH | AQ67: CLIMATE RESEARCH | AR67: LABORATORIES & JOINT INSTITUTES | AS67: AERONOMY LABORATORY (AL) | AT67: CONSULT AND ADVISE | AU67: 50 | AV67: OFFICE OF OCEANIC & ATMOSPHERIC RESEARCH | AW67: 36 | AX67: CHEMICAL SCIENCES DIVISION
A68: CL | B68: CLF | C68: XXX | D68: ORF | E68: 37 | F68: 03-01-07-001 | G68: 3 | H68: D8R1G17 | I68: 0 | J68: 0 | K68: 0 | L68: 0 | M68: 0 | N68: 0 | O68: 0 | P68: 0 | Q68: 0 | R68: 0 | S68: 0 | T68: 0 | U68: 0 | V68: 0 | W68: 0 | X68: 0 | Y68: 0 | Z68: 0 | AA68: 0 | AB68: 1.67528 | AC68: -1.67528 | AD68: 0 | AE68: 0 | AF68: 0 | AG68: 0 | AH68: 1.67528 | AI68: -1.67528 | AJ68: 0 | AK68: 0 | AL68: 0 | AM68: CLIMATE | AN68: CLIMATE FORCING | AO68: UNKNOWN CAPABILITY | AP68: OCEANIC & ATMOSPHERIC RESEARCH | AQ68: CLIMATE RESEARCH | AR68: LABORATORIES & JOINT INSTITUTES | AS68: AERONOMY LABORATORY (AL) | AT68: CONSULT AND ADVISE | AU68: 06 | AV68: STAFF OFCS OF THE OFC OF THE UNDER SEC | AW68: 99 | AX68: COMMON SERVICES
A69: CL | B69: CLF | C69: XXX | D69: ORF | E69: 37 | F69: 03-01-07-001 | G69: 3 | H69: D8R1G17 | I69: 0 | J69: -196.82592 | K69: 196.82592 | L69: 0 | M69: -0.003277885 | N69: 0.003277885 | O69: 0 | P69: 0 | Q69: 0 | R69: 0 | S69: 0 | T69: 0 | U69: 0 | V69: 0 | W69: 0 | X69: 0 | Y69: 0 | Z69: 0 | AA69: 0 | AB69: 0 | AC69: 0 | AD69: 0 | AE69: 0 | AF69: 0 | AG69: 0 | AH69: -196.82592 | AI69: 196.82592 | AJ69: 0 | AK69: -0.003277885 | AL69: 0.003277885 | AM69: CLIMATE | AN69: CLIMATE FORCING | AO69: UNKNOWN CAPABILITY | AP69: OCEANIC & ATMOSPHERIC RESEARCH | AQ69: CLIMATE RESEARCH | AR69: LABORATORIES & JOINT INSTITUTES | AS69: AERONOMY LABORATORY (AL) | AT69: CONSULT AND ADVISE | AU69: 50 | AV69: OFFICE OF OCEANIC & ATMOSPHERIC RESEARCH | AW69: 33 | AX69: EARTH SYSTEM RESEARCH LABORATORY
A70: CL | B70: CLF | C70: XXX | D70: ORF | E70: 37 | F70: 03-01-07-001 | G70: 3 | H70: D8R1G61 | I70: 0 | J70: 0 | K70: 0 | L70: 0 | M70: 0 | N70: 0 | O70: 0 | P70: 0 | Q70: 0 | R70: 0 | S70: 0 | T70: 0 | U70: 0 | V70: 0 | W70: 0 | X70: 0 | Y70: 0 | Z70: 0 | AA70: 0 | AB70: 2570.36652 | AC70: -2570.36652 | AD70: 0 | AE70: 0 | AF70: 0 | AG70: 0 | AH70: 2570.36652 | AI70: -2570.36652 | AJ70: 0 | AK70: 0 | AL70: 0 | AM70: CLIMATE | AN70: CLIMATE FORCING | AO70: UNKNOWN CAPABILITY | AP70: OCEANIC & ATMOSPHERIC RESEARCH | AQ70: CLIMATE RESEARCH | AR70: LABORATORIES & JOINT INSTITUTES | AS70: AERONOMY LABORATORY (AL) | AT70: MIDDLE ATMOSPHERIC RESEARCH | AU70: 06 | AV70: STAFF OFCS OF THE OFC OF THE UNDER SEC | AW70: 99 | AX70: COMMON SERVICES
A71: CL | B71: CLF | C71: XXX | D71: ORF | E71: 37 | F71: 03-01-07-001 | G71: 3 | H71: D8R1G61 | I71: 0 | J71: 6223.20742 | K71: =I71-J71 -> -6223.20742 | L71: 0 | M71: 0.017091828 | N71: =L71-M71 -> -0.017091828 | O71: 0 | P71: -700.5008 | Q71: =O71-P71 -> 700.5008 | R71: 0 | S71: -0.007492308 | T71: =R71-S71 -> 0.007492308 | U71: 0 | V71: 0 | W71: =U71-V71 -> 0 | X71: 0 | Y71: 0 | Z71: =X71-Y71 -> 0 | AA71: 0 | AB71: 0 | AC71: =AA71-AB71 -> 0 | AD71: 0 | AE71: 0 | AF71: =AD71-AE71 -> 0 | AG71: =I71+O71+U71+AA71 -> 0 | AH71: 5522.70662 | AI71: =AG71-AH71 -> -5522.70662 | AJ71: =L71+R71+X71+AD71 -> 0 | AK71: 0.00959952 | AL71: =AJ71-AK71 -> -0.00959952 | AM71: CLIMATE | AN71: CLIMATE FORCING | AO71: UNKNOWN CAPABILITY | AP71: OCEANIC & ATMOSPHERIC RESEARCH | AQ71: CLIMATE RESEARCH | AR71: LABORATORIES & JOINT INSTITUTES | AS71: AERONOMY LABORATORY (AL) | AT71: MIDDLE ATMOSPHERIC RESEARCH | AU71: 50 | AV71: OFFICE OF OCEANIC & ATMOSPHERIC RESEARCH | AW71: 36 | AX71: CHEMICAL SCIENCES DIVISION
A72: CL | B72: CLF | C72: XXX | D72: ORF | E72: 37 | F72: 03-01-07-001 | G72: 3 | H72: D8R1G79 | I72: 0 | J72: 22.53836 | K72: -22.53836 | L72: 0 | M72: 0 | N72: 0 | O72: 0 | P72: 0 | Q72: 0 | R72: 0 | S72: 0 | T72: 0 | U72: 0 | V72: 0 | W72: 0 | X72: 0 | Y72: 0 | Z72: 0 | AA72: 0 | AB72: 0 | AC72: 0 | AD72: 0 | AE72: 0 | AF72: 0 | AG72: 0 | AH72: 22.53836 | AI72: -22.53836 | AJ72: 0 | AK72: 0 | AL72: 0 | AM72: CLIMATE | AN72: CLIMATE FORCING | AO72: UNKNOWN CAPABILITY | AP72: OCEANIC & ATMOSPHERIC RESEARCH | AQ72: CLIMATE RESEARCH | AR72: LABORATORIES & JOINT INSTITUTES | AS72: AERONOMY LABORATORY (AL) | AT72: TROPOSPHERIC SAMPLING | AU72: 50 | AV72: OFFICE OF OCEANIC & ATMOSPHERIC RESEARCH | AW72: 36 | AX72: CHEMICAL SCIENCES DIVISION
A73: CL | B73: CLF | C73: XXX | D73: ORF | E73: 37 | F73: 03-01-07-001 | G73: 3 | H73: D8R1G95 | I73: 0 | J73: -1190.55916 | K73: 1190.55916 | L73: 0 | M73: -0.020837981 | N73: 0.020837981 | O73: 0 | P73: 0 | Q73: 0 | R73: 0 | S73: 0 | T73: 0 | U73: 0 | V73: 8495.55916 | W73: -8495.55916 | X73: 0 | Y73: 0 | Z73: 0 | AA73: 0 | AB73: 0 | AC73: 0 | AD73: 0 | AE73: 0 | AF73: 0 | AG73: 0 | AH73: 7305 | AI73: -7305 | AJ73: 0 | AK73: -0.020837981 | AL73: 0.020837981 | AM73: CLIMATE | AN73: CLIMATE FORCING | AO73: UNKNOWN CAPABILITY | AP73: OCEANIC & ATMOSPHERIC RESEARCH | AQ73: CLIMATE RESEARCH | AR73: LABORATORIES & JOINT INSTITUTES | AS73: AERONOMY LABORATORY (AL) | AT73: TROPICAL DYNAMICS & CLIMATE | AU73: 50 | AV73: OFFICE OF OCEANIC & ATMOSPHERIC RESEARCH | AW73: 35 | AX73: PHYSICAL SCIENCES DIVISION
A74: CL | B74: CLF | C74: XXX | D74: ORF | E74: 37 | F74: 03-01-07-001 | G74: 3 | H74: D8R1GA2 | I74: 0 | J74: 38976.44112 | K74: -38976.44112 | L74: 0 | M74: 0.163894231 | N74: -0.163894231 | O74: 0 | P74: -54631.6113 | Q74: 54631.6113 | R74: 0 | S74: -0.223364423 | T74: 0.223364423 | U74: 0 | V74: 0 | W74: 0 | X74: 0 | Y74: 0 | Z74: 0 | AA74: 0 | AB74: 2657.072 | AC74: -2657.072 | AD74: 0 | AE74: 0 | AF74: 0 | AG74: 0 | AH74: -12998.09818 | AI74: 12998.09818 | AJ74: 0 | AK74: -0.059470192 | AL74: 0.059470192 | AM74: CLIMATE | AN74: CLIMATE FORCING | AO74: UNKNOWN CAPABILITY | AP74: OCEANIC & ATMOSPHERIC RESEARCH | AQ74: CLIMATE RESEARCH | AR74: LABORATORIES & JOINT INSTITUTES | AS74: AERONOMY LABORATORY (AL) | AT74: ATMOSPHERIC MEASURINGS | AU74: 50 | AV74: OFFICE OF OCEANIC & ATMOSPHERIC RESEARCH | AW74: 36 | AX74: CHEMICAL SCIENCES DIVISION
A75: CL | B75: CLF | C75: XXX | D75: ORF | E75: 37 | F75: 03-01-07-001 | G75: 3 | H75: D8R1GA2 | I75: 0 | J75: 0 | K75: 0 | L75: 0 | M75: 0 | N75: 0 | O75: 0 | P75: 39.92426 | Q75: -39.92426 | R75: 0 | S75: 0 | T75: 0 | U75: 0 | V75: 28.3921 | W75: -28.3921 | X75: 0 | Y75: 0 | Z75: 0 | AA75: 0 | AB75: -68.31636 | AC75: 68.31636 | AD75: 0 | AE75: 0 | AF75: 0 | AG75: 0 | AH75: 0 | AI75: 0 | AJ75: 0 | AK75: 0 | AL75: 0 | AM75: CLIMATE | AN75: CLIMATE FORCING | AO75: UNKNOWN CAPABILITY | AP75: OCEANIC & ATMOSPHERIC RESEARCH | AQ75: CLIMATE RESEARCH | AR75: LABORATORIES & JOINT INSTITUTES | AS75: AERONOMY LABORATORY (AL) | AT75: ATMOSPHERIC MEASURINGS | AU75: 50 | AV75: OFFICE OF OCEANIC & ATMOSPHERIC RESEARCH | AW75: 33 | AX75: EARTH SYSTEM RESEARCH LABORATORY
A76: CL | B76: CLF | C76: XXX | D76: ORF | E76: 37 | F76: 03-01-07-001 | G76: 3 | H76: D8R1GA5 | I76: 0 | J76: 2166.11756 | K76: -2166.11756 | L76: 0 | M76: 0.012175 | N76: -0.012175 | O76: 0 | P76: 0 | Q76: 0 | R76: 0 | S76: 0 | T76: 0 | U76: 0 | V76: 0 | W76: 0 | X76: 0 | Y76: 0 | Z76: 0 | AA76: 0 | AB76: 0 | AC76: 0 | AD76: 0 | AE76: 0 | AF76: 0 | AG76: 0 | AH76: 2166.11756 | AI76: -2166.11756 | AJ76: 0 | AK76: 0.012175 | AL76: -0.012175 | AM76: CLIMATE | AN76: CLIMATE FORCING | AO76: UNKNOWN CAPABILITY | AP76: OCEANIC & ATMOSPHERIC RESEARCH | AQ76: CLIMATE RESEARCH | AR76: LABORATORIES & JOINT INSTITUTES | AS76: AERONOMY LABORATORY (AL) | AT76: POLLUTION CHEMISTRY | AU76: 50 | AV76: OFFICE OF OCEANIC & ATMOSPHERIC RESEARCH | AW76: 36 | AX76: CHEMICAL SCIENCES DIVISION
A77: CL | B77: CLF | C77: XXX | D77: ORF | E77: 37 | F77: 03-01-07-001 | G77: 3 | H77: D8R1GA5 | I77: 0 | J77: 0 | K77: 0 | L77: 0 | M77: 0 | N77: 0 | O77: 0 | P77: 0 | Q77: 0 | R77: 0 | S77: 0 | T77: 0 | U77: 0 | V77: 0 | W77: 0 | X77: 0 | Y77: 0 | Z77: 0 | AA77: 0 | AB77: 169.10588 | AC77: -169.10588 | AD77: 0 | AE77: 0 | AF77: 0 | AG77: 0 | AH77: 169.10588 | AI77: -169.10588 | AJ77: 0 | AK77: 0 | AL77: 0 | AM77: CLIMATE | AN77: CLIMATE FORCING | AO77: UNKNOWN CAPABILITY | AP77: OCEANIC & ATMOSPHERIC RESEARCH | AQ77: CLIMATE RESEARCH | AR77: LABORATORIES & JOINT INSTITUTES | AS77: AERONOMY LABORATORY (AL) | AT77: POLLUTION CHEMISTRY | AU77: 06 | AV77: STAFF OFCS OF THE OFC OF THE UNDER SEC | AW77: 99 | AX77: COMMON SERVICES
A78: CL | B78: CLF | C78: XXX | D78: ORF | E78: 37 | F78: 03-01-07-001 | G78: 3 | H78: D8R1GA6 | I78: 0 | J78: 0 | K78: 0 | L78: 0 | M78: 0 | N78: 0 | O78: 0 | P78: 0 | Q78: 0 | R78: 0 | S78: 0 | T78: 0 | U78: 0 | V78: 0 | W78: 0 | X78: 0 | Y78: 0 | Z78: 0 | AA78: 0 | AB78: 0 | AC78: 0 | AD78: 0 | AE78: 0 | AF78: 0 | AG78: 0 | AH78: 0 | AI78: 0 | AJ78: 0 | AK78: 0 | AL78: 0 | AM78: CLIMATE | AN78: CLIMATE FORCING | AO78: UNKNOWN CAPABILITY | AP78: OCEANIC & ATMOSPHERIC RESEARCH | AQ78: CLIMATE RESEARCH | AR78: LABORATORIES & JOINT INSTITUTES | AS78: AERONOMY LABORATORY (AL) | AT78: ACID RAIN FIELD STUDIES | AU78: 50 | AV78: OFFICE OF OCEANIC & ATMOSPHERIC RESEARCH | AW78: 36 | AX78: CHEMICAL SCIENCES DIVISION
A79: CL | B79: CLF | C79: XXX | D79: ORF | E79: 37 | F79: 03-01-07-001 | G79: 3 | H79: D8R1GA8 | I79: 0 | J79: 678.80008 | K79: -678.80008 | L79: 0 | M79: 0 | N79: 0 | O79: 0 | P79: 312.80984 | Q79: -312.80984 | R79: 0 | S79: 0 | T79: 0 | U79: 0 | V79: 700.86118 | W79: -700.86118 | X79: 0 | Y79: 0 | Z79: 0 | AA79: 0 | AB79: 0 | AC79: 0 | AD79: 0 | AE79: 0 | AF79: 0 | AG79: 0 | AH79: 1692.4711 | AI79: -1692.4711 | AJ79: 0 | AK79: 0 | AL79: 0 | AM79: CLIMATE | AN79: CLIMATE FORCING | AO79: UNKNOWN CAPABILITY | AP79: OCEANIC & ATMOSPHERIC RESEARCH | AQ79: CLIMATE RESEARCH | AR79: LABORATORIES & JOINT INSTITUTES | AS79: AERONOMY LABORATORY (AL) | AT79: SEMINARS/LECTURES | AU79: 50 | AV79: OFFICE OF OCEANIC & ATMOSPHERIC RESEARCH | AW79: 36 | AX79: CHEMICAL SCIENCES DIVISION
A80: CL | B80: CLF | C80: XXX | D80: ORF | E80: 37 | F80: 03-01-07-001 | G80: 3 | H80: D8R1GPD | I80: 0 | J80: 0 | K80: 0 | L80: 0 | M80: 0 | N80: 0 | O80: 0 | P80: 0 | Q80: 0 | R80: 0 | S80: 0 | T80: 0 | U80: 0 | V80: 0 | W80: 0 | X80: 0 | Y80: 0 | Z80: 0 | AA80: 0 | AB80: 25421.4 | AC80: -25421.4 | AD80: 0 | AE80: 0.058112211 | AF80: -0.058112211 | AG80: 0 | AH80: 25421.4 | AI80: -25421.4 | AJ80: 0 | AK80: 0.058112211 | AL80: -0.058112211 | AM80: CLIMATE | AN80: CLIMATE FORCING | AO80: UNKNOWN CAPABILITY | AP80: OCEANIC & ATMOSPHERIC RESEARCH | AQ80: CLIMATE RESEARCH | AR80: LABORATORIES & JOINT INSTITUTES | AS80: AERONOMY LABORATORY (AL) | AT80: PACS DISTRIBUTION | AU80: 50 | AV80: OFFICE OF OCEANIC & ATMOSPHERIC RESEARCH | AW80: 37 | AX80: GLOBAL SYSTEMS DIVISION
A81: CL | B81: CLF | C81: XXX | D81: ORF | E81: 37 | F81: 03-01-07-001 | G81: 3 | H81: D8R1GPD | I81: 0 | J81: 0 | K81: 0 | L81: 0 | M81: 0 | N81: 0 | O81: 0 | P81: 0 | Q81: 0 | R81: 0 | S81: 0 | T81: 0 | U81: 0 | V81: 0 | W81: 0 | X81: 0 | Y81: 0 | Z81: 0 | AA81: 0 | AB81: 0 | AC81: 0 | AD81: 0 | AE81: 0 | AF81: 0 | AG81: 0 | AH81: 0 | AI81: 0 | AJ81: 0 | AK81: 0 | AL81: 0 | AM81: CLIMATE | AN81: CLIMATE FORCING | AO81: UNKNOWN CAPABILITY | AP81: OCEANIC & ATMOSPHERIC RESEARCH | AQ81: CLIMATE RESEARCH | AR81: LABORATORIES & JOINT INSTITUTES | AS81: AERONOMY LABORATORY (AL) | AT81: PACS DISTRIBUTION | AU81: 50 | AV81: OFFICE OF OCEANIC & ATMOSPHERIC RESEARCH | AW81: 23 | AX81: ATLANTIC OCEANOGRAPHIC & MET LAB
A82: CL | B82: CLF | C82: XXX | D82: ORF | E82: 37 | F82: 03-01-07-005 | G82: 3 | H82: D8R1M02 | I82: 0 | J82: 0 | K82: 0 | L82: 0 | M82: 0 | N82: 0 | O82: 0 | P82: 0 | Q82: 0 | R82: 0 | S82: 0 | T82: 0 | U82: 0 | V82: 0 | W82: 0 | X82: 0 | Y82: 0 | Z82: 0 | AA82: 0 | AB82: 2032.03672 | AC82: -2032.03672 | AD82: 0 | AE82: 0 | AF82: 0 | AG82: 0 | AH82: 2032.03672 | AI82: -2032.03672 | AJ82: 0 | AK82: 0 | AL82: 0 | AM82: CLIMATE | AN82: CLIMATE FORCING | AO82: UNKNOWN CAPABILITY | AP82: OCEANIC & ATMOSPHERIC RESEARCH | AQ82: CLIMATE RESEARCH | AR82: LABORATORIES & JOINT INSTITUTES | AS82: CLIMATE MONITORING & DIAG. LAB. (CMDL) | AT82: OFFICE OF GMCC DIRECTOR | AU82: 06 | AV82: STAFF OFCS OF THE OFC OF THE UNDER SEC | AW82: 99 | AX82: COMMON SERVICES
A83: CL | B83: CLF | C83: XXX | D83: ORF | E83: 37 | F83: 03-01-07-005 | G83: 3 | H83: D8R1M02 | I83: 0 | J83: 436.839 | K83: -436.839 | L83: 0 | M83: 0 | N83: 0 | O83: 0 | P83: 422.29718 | Q83: -422.29718 | R83: 0 | S83: 0 | T83: 0 | U83: 0 | V83: 72.86494 | W83: -72.86494 | X83: 0 | Y83: 0 | Z83: 0 | AA83: 0 | AB83: -863.02244 | AC83: 863.02244 | AD83: 0 | AE83: 0 | AF83: 0 | AG83: 0 | AH83: 68.97868 | AI83: -68.97868 | AJ83: 0 | AK83: 0 | AL83: 0 | AM83: CLIMATE | AN83: CLIMATE FORCING | AO83: UNKNOWN CAPABILITY | AP83: OCEANIC & ATMOSPHERIC RESEARCH | AQ83: CLIMATE RESEARCH | AR83: LABORATORIES & JOINT INSTITUTES | AS83: CLIMATE MONITORING & DIAG. LAB. (CMDL) | AT83: OFFICE OF GMCC DIRECTOR | AU83: 50 | AV83: OFFICE OF OCEANIC & ATMOSPHERIC RESEARCH | AW83: 34 | AX83: GLOBAL MONITORING DIVISION
A84: CL | B84: CLF | C84: XXX | D84: ORF | E84: 37 | F84: 03-01-07-005 | G84: 3 | H84: D8R1M05 | I84: 0 | J84: 0.78894 | K84: -0.78894 | L84: 0 | M84: 0 | N84: 0 | O84: 0 | P84: 0 | Q84: 0 | R84: 0 | S84: 0 | T84: 0 | U84: 0 | V84: -0.78894 | W84: 0.78894 | X84: 0 | Y84: 0 | Z84: 0 | AA84: 0 | AB84: -0.00974 | AC84: 0.00974 | AD84: 0 | AE84: 0 | AF84: 0 | AG84: 0 | AH84: -0.00974 | AI84: 0.00974 | AJ84: 0 | AK84: 0 | AL84: 0 | AM84: CLIMATE | AN84: CLIMATE FORCING | AO84: UNKNOWN CAPABILITY | AP84: OCEANIC & ATMOSPHERIC RESEARCH | AQ84: CLIMATE RESEARCH | AR84: LABORATORIES & JOINT INSTITUTES | AS84: CLIMATE MONITORING & DIAG. LAB. (CMDL) | AT84: MAUNA LOA OBSERVATORY | AU84: 50 | AV84: OFFICE OF OCEANIC & ATMOSPHERIC RESEARCH | AW84: 31 | AX84: CLIMATE MONITORING AND DIAGNOSTICS LAB
A85: CL | B85: CLF | C85: XXX | D85: ORF | E85: 37 | F85: 03-01-07-005 | G85: 3 | H85: D8R1M05 | I85: 0 | J85: 93.34816 | K85: -93.34816 | L85: 0 | M85: 0 | N85: 0 | O85: 0 | P85: 113.91904 | Q85: -113.91904 | R85: 0 | S85: 0 | T85: 0 | U85: 0 | V85: 291.39158 | W85: -291.39158 | X85: 0 | Y85: 0 | Z85: 0 | AA85: 0 | AB85: 81.77704 | AC85: -81.77704 | AD85: 0 | AE85: 0 | AF85: 0 | AG85: 0 | AH85: 580.43582 | AI85: -580.43582 | AJ85: 0 | AK85: 0 | AL85: 0 | AM85: CLIMATE | AN85: CLIMATE FORCING | AO85: UNKNOWN CAPABILITY | AP85: OCEANIC & ATMOSPHERIC RESEARCH | AQ85: CLIMATE RESEARCH | AR85: LABORATORIES & JOINT INSTITUTES | AS85: CLIMATE MONITORING & DIAG. LAB. (CMDL) | AT85: MAUNA LOA OBSERVATORY | AU85: 50 | AV85: OFFICE OF OCEANIC & ATMOSPHERIC RESEARCH | AW85: 34 | AX85: GLOBAL MONITORING DIVISION
A86: CL | B86: CLF | C86: XXX | D86: ORF | E86: 37 | F86: 03-01-07-005 | G86: 3 | H86: D8R1M07 | I86: 0 | J86: 0 | K86: 0 | L86: 0 | M86: 0 | N86: 0 | O86: 0 | P86: 0 | Q86: 0 | R86: 0 | S86: 0 | T86: 0 | U86: 0 | V86: 0 | W86: 0 | X86: 0 | Y86: 0 | Z86: 0 | AA86: 0 | AB86: -1608.39542 | AC86: 1608.39542 | AD86: 0 | AE86: 0 | AF86: 0 | AG86: 0 | AH86: -1608.39542 | AI86: 1608.39542 | AJ86: 0 | AK86: 0 | AL86: 0 | AM86: CLIMATE | AN86: CLIMATE FORCING | AO86: UNKNOWN CAPABILITY | AP86: OCEANIC & ATMOSPHERIC RESEARCH | AQ86: CLIMATE RESEARCH | AR86: LABORATORIES & JOINT INSTITUTES | AS86: CLIMATE MONITORING & DIAG. LAB. (CMDL) | AT86: CARBON DIOXIDE | AU86: 50 | AV86: OFFICE OF OCEANIC & ATMOSPHERIC RESEARCH | AW86: 31 | AX86: CLIMATE MONITORING AND DIAGNOSTICS LAB
A87: CL | B87: CLF | C87: XXX | D87: ORF | E87: 37 | F87: 03-01-07-005 | G87: 3 | H87: D8R1M07 | I87: 0 | J87: 2182.90932 | K87: -2182.90932 | L87: 0 | M87: 0 | N87: 0 | O87: 0 | P87: 0 | Q87: 0 | R87: 0 | S87: 0 | T87: 0 | U87: 0 | V87: -2182.90932 | W87: 2182.90932 | X87: 0 | Y87: 0 | Z87: 0 | AA87: 0 | AB87: 0 | AC87: 0 | AD87: 0 | AE87: 0 | AF87: 0 | AG87: 0 | AH87: 0 | AI87: 0 | AJ87: 0 | AK87: 0 | AL87: 0 | AM87: CLIMATE | AN87: CLIMATE FORCING | AO87: UNKNOWN CAPABILITY | AP87: OCEANIC & ATMOSPHERIC RESEARCH | AQ87: CLIMATE RESEARCH | AR87: LABORATORIES & JOINT INSTITUTES | AS87: CLIMATE MONITORING & DIAG. LAB. (CMDL) | AT87: CARBON DIOXIDE | AU87: 50 | AV87: OFFICE OF OCEANIC & ATMOSPHERIC RESEARCH | AW87: 34 | AX87: GLOBAL MONITORING DIVISION
A88: CL | B88: CLF | C88: XXX | D88: ORF | E88: 37 | F88: 03-01-07-005 | G88: 3 | H88: D8R1M08 | I88: 0 | J88: 0 | K88: 0 | L88: 0 | M88: 0 | N88: 0 | O88: 0 | P88: 0 | Q88: 0 | R88: 0 | S88: 0 | T88: 0 | U88: 0 | V88: 0 | W88: 0 | X88: 0 | Y88: 0 | Z88: 0 | AA88: 0 | AB88: 0 | AC88: 0 | AD88: 0 | AE88: 0 | AF88: 0 | AG88: 0 | AH88: 0 | AI88: 0 | AJ88: 0 | AK88: 0 | AL88: 0 | AM88: CLIMATE | AN88: CLIMATE FORCING | AO88: UNKNOWN CAPABILITY | AP88: OCEANIC & ATMOSPHERIC RESEARCH | AQ88: CLIMATE RESEARCH | AR88: LABORATORIES & JOINT INSTITUTES | AS88: CLIMATE MONITORING & DIAG. LAB. (CMDL) | AT88: OFFICE OF DIRECTOR, GMCC SALARIES | AU88: 50 | AV88: OFFICE OF OCEANIC & ATMOSPHERIC RESEARCH | AW88: 33 | AX88: EARTH SYSTEM RESEARCH LABORATORY
A89: CL | B89: CLF | C89: XXX | D89: ORF | E89: 37 | F89: 03-01-07-005 | G89: 3 | H89: D8R1M08 | I89: 0 | J89: -89.63722 | K89: 89.63722 | L89: 0 | M89: -0.047529327 | N89: 0.047529327 | O89: 0 | P89: 800.01438 | Q89: -800.01438 | R89: 0 | S89: 0 | T89: 0 | U89: 0 | V89: -1280.6639 | W89: 1280.6639 | X89: 0 | Y89: 0 | Z89: 0 | AA89: 0 | AB89: -2886.53666 | AC89: 2886.53666 | AD89: 0 | AE89: 0 | AF89: 0 | AG89: 0 | AH89: -3456.8234 | AI89: 3456.8234 | AJ89: 0 | AK89: -0.047529327 | AL89: 0.047529327 | AM89: CLIMATE | AN89: CLIMATE FORCING | AO89: UNKNOWN CAPABILITY | AP89: OCEANIC & ATMOSPHERIC RESEARCH | AQ89: CLIMATE RESEARCH | AR89: LABORATORIES & JOINT INSTITUTES | AS89: CLIMATE MONITORING & DIAG. LAB. (CMDL) | AT89: OFFICE OF DIRECTOR, GMCC SALARIES | AU89: 50 | AV89: OFFICE OF OCEANIC & ATMOSPHERIC RESEARCH | AW89: 34 | AX89: GLOBAL MONITORING DIVISION
A90: CL | B90: CLF | C90: XXX | D90: ORF | E90: 37 | F90: 03-01-07-005 | G90: 3 | H90: D8R1M11 | I90: 0 | J90: 188.5664 | K90: -188.5664 | L90: 0 | M90: 0 | N90: 0 | O90: 0 | P90: 357.46774 | Q90: -357.46774 | R90: 0 | S90: 0 | T90: 0 | U90: 0 | V90: 245.80838 | W90: -245.80838 | X90: 0 | Y90: 0 | Z90: 0 | AA90: 0 | AB90: 235.34762 | AC90: -235.34762 | AD90: 0 | AE90: 0 | AF90: 0 | AG90: 0 | AH90: 1027.19014 | AI90: -1027.19014 | AJ90: 0 | AK90: 0 | AL90: 0 | AM90: CLIMATE | AN90: CLIMATE FORCING | AO90: UNKNOWN CAPABILITY | AP90: OCEANIC & ATMOSPHERIC RESEARCH | AQ90: CLIMATE RESEARCH | AR90: LABORATORIES & JOINT INSTITUTES | AS90: CLIMATE MONITORING & DIAG. LAB. (CMDL) | AT90: GMCC - BARROW | AU90: 50 | AV90: OFFICE OF OCEANIC & ATMOSPHERIC RESEARCH | AW90: 34 | AX90: GLOBAL MONITORING DIVISION
A91: CL | B91: CLF | C91: XXX | D91: ORF | E91: 37 | F91: 03-01-07-005 | G91: 3 | H91: D8R1M11 | I91: 0 | J91: 0 | K91: 0 | L91: 0 | M91: 0 | N91: 0 | O91: 0 | P91: 0 | Q91: 0 | R91: 0 | S91: 0 | T91: 0 | U91: 0 | V91: 0 | W91: 0 | X91: 0 | Y91: 0 | Z91: 0 | AA91: 0 | AB91: 0 | AC91: 0 | AD91: 0 | AE91: 0 | AF91: 0 | AG91: 0 | AH91: 0 | AI91: 0 | AJ91: 0 | AK91: 0 | AL91: 0 | AM91: CLIMATE | AN91: CLIMATE FORCING | AO91: UNKNOWN CAPABILITY | AP91: OCEANIC & ATMOSPHERIC RESEARCH | AQ91: CLIMATE RESEARCH | AR91: LABORATORIES & JOINT INSTITUTES | AS91: CLIMATE MONITORING & DIAG. LAB. (CMDL) | AT91: GMCC - BARROW | AU91: 50 | AV91: OFFICE OF OCEANIC & ATMOSPHERIC RESEARCH | AW91: 44 | AX91: CLIMATE PROGRAM OFFICE
A92: CL | B92: CLF | C92: XXX | D92: ORF | E92: 37 | F92: 03-01-07-005 | G92: 3 | H92: D8R1M26 | I92: 0 | J92: 0 | K92: 0 | L92: 0 | M92: 0 | N92: 0 | O92: 0 | P92: 0 | Q92: 0 | R92: 0 | S92: 0 | T92: 0 | U92: 0 | V92: 0 | W92: 0 | X92: 0 | Y92: 0 | Z92: 0 | AA92: 0 | AB92: 0 | AC92: 0 | AD92: 0 | AE92: 0 | AF92: 0 | AG92: 0 | AH92: 0 | AI92: 0 | AJ92: 0 | AK92: 0 | AL92: 0 | AM92: CLIMATE | AN92: CLIMATE FORCING | AO92: UNKNOWN CAPABILITY | AP92: OCEANIC & ATMOSPHERIC RESEARCH | AQ92: CLIMATE RESEARCH | AR92: LABORATORIES & JOINT INSTITUTES | AS92: CLIMATE MONITORING & DIAG. LAB. (CMDL) | AT92: ADAM GROUP (CO2) | AU92: 50 | AV92: OFFICE OF OCEANIC & ATMOSPHERIC RESEARCH | AW92: 34 | AX92: GLOBAL MONITORING DIVISION
A93: CL | B93: CLF | C93: XXX | D93: ORF | E93: 37 | F93: 03-01-07-005 | G93: 3 | H93: D8R1M28 | I93: 0 | J93: 31.0706 | K93: -31.0706 | L93: 0 | M93: 0 | N93: 0 | O93: 0 | P93: 35.551 | Q93: -35.551 | R93: 0 | S93: 0 | T93: 0 | U93: 0 | V93: 0 | W93: 0 | X93: 0 | Y93: 0 | Z93: 0 | AA93: 0 | AB93: 0 | AC93: 0 | AD93: 0 | AE93: 0 | AF93: 0 | AG93: 0 | AH93: 66.6216 | AI93: -66.6216 | AJ93: 0 | AK93: 0 | AL93: 0 | AM93: CLIMATE | AN93: CLIMATE FORCING | AO93: UNKNOWN CAPABILITY | AP93: OCEANIC & ATMOSPHERIC RESEARCH | AQ93: CLIMATE RESEARCH | AR93: LABORATORIES & JOINT INSTITUTES | AS93: CLIMATE MONITORING & DIAG. LAB. (CMDL) | AT93: MONITOR AEROSOLS & RADIATION | AU93: 50 | AV93: OFFICE OF OCEANIC & ATMOSPHERIC RESEARCH | AW93: 34 | AX93: GLOBAL MONITORING DIVISION
A94: CL | B94: CLF | C94: XXX | D94: ORF | E94: 37 | F94: 03-01-07-005 | G94: 3 | H94: D8R1M34 | I94: 0 | J94: 0 | K94: 0 | L94: 0 | M94: 0 | N94: 0 | O94: 0 | P94: 0 | Q94: 0 | R94: 0 | S94: 0 | T94: 0 | U94: 0 | V94: 0 | W94: 0 | X94: 0 | Y94: 0 | Z94: 0 | AA94: 0 | AB94: 18.8469 | AC94: -18.8469 | AD94: 0 | AE94: 0 | AF94: 0 | AG94: 0 | AH94: 18.8469 | AI94: -18.8469 | AJ94: 0 | AK94: 0 | AL94: 0 | AM94: CLIMATE | AN94: CLIMATE FORCING | AO94: UNKNOWN CAPABILITY | AP94: OCEANIC & ATMOSPHERIC RESEARCH | AQ94: CLIMATE RESEARCH | AR94: LABORATORIES & JOINT INSTITUTES | AS94: CLIMATE MONITORING & DIAG. LAB. (CMDL) | AT94: STRATOSPHERIC RESEARCH & MONITORING | AU94: 06 | AV94: STAFF OFCS OF THE OFC OF THE UNDER SEC | AW94: 99 | AX94: COMMON SERVICES
A95: CL | B95: CLF | C95: XXX | D95: ORF | E95: 37 | F95: 03-01-07-005 | G95: 3 | H95: D8R1M34 | I95: 0 | J95: 4018.93828 | K95: -4018.93828 | L95: 0 | M95: 0.007609375 | N95: -0.007609375 | O95: 0 | P95: 15.7788 | Q95: -15.7788 | R95: 0 | S95: 0 | T95: 0 | U95: 0 | V95: -3529.46432 | W95: 3529.46432 | X95: 0 | Y95: 0 | Z95: 0 | AA95: 0 | AB95: 197.5272 | AC95: -197.5272 | AD95: 0 | AE95: 0 | AF95: 0 | AG95: 0 | AH95: 702.77996 | AI95: -702.77996 | AJ95: 0 | AK95: 0.007609375 | AL95: -0.007609375 | AM95: CLIMATE | AN95: CLIMATE FORCING | AO95: UNKNOWN CAPABILITY | AP95: OCEANIC & ATMOSPHERIC RESEARCH | AQ95: CLIMATE RESEARCH | AR95: LABORATORIES & JOINT INSTITUTES | AS95: CLIMATE MONITORING & DIAG. LAB. (CMDL) | AT95: STRATOSPHERIC RESEARCH & MONITORING | AU95: 50 | AV95: OFFICE OF OCEANIC & ATMOSPHERIC RESEARCH | AW95: 34 | AX95: GLOBAL MONITORING DIVISION
A96: CL | B96: CLF | C96: XXX | D96: ORF | E96: 37 | F96: 03-01-07-005 | G96: 3 | H96: D8R1M46 | I96: 0 | J96: 177.49202 | K96: -177.49202 | L96: 0 | M96: 0 | N96: 0 | O96: 0 | P96: 1435.73444 | Q96: -1435.73444 | R96: 0 | S96: 0 | T96: 0 | U96: 0 | V96: -1087.92878 | W96: 1087.92878 | X96: 0 | Y96: 0 | Z96: 0 | AA96: 0 | AB96: 1070.70846 | AC96: -1070.70846 | AD96: 0 | AE96: 0 | AF96: 0 | AG96: 0 | AH96: 1596.00614 | AI96: -1596.00614 | AJ96: 0 | AK96: 0 | AL96: 0 | AM96: CLIMATE | AN96: CLIMATE FORCING | AO96: UNKNOWN CAPABILITY | AP96: OCEANIC & ATMOSPHERIC RESEARCH | AQ96: CLIMATE RESEARCH | AR96: LABORATORIES & JOINT INSTITUTES | AS96: CLIMATE MONITORING & DIAG. LAB. (CMDL) | AT96: RITS/HALO-CARBONS ETC. | AU96: 50 | AV96: OFFICE OF OCEANIC & ATMOSPHERIC RESEARCH | AW96: 31 | AX96: CLIMATE MONITORING AND DIAGNOSTICS LAB
A97: CL | B97: CLF | C97: XXX | D97: ORF | E97: 37 | F97: 03-01-07-005 | G97: 3 | H97: D8R1M46 | I97: 0 | J97: 0 | K97: 0 | L97: 0 | M97: 0 | N97: 0 | O97: 0 | P97: 0 | Q97: 0 | R97: 0 | S97: 0 | T97: 0 | U97: 0 | V97: 0 | W97: 0 | X97: 0 | Y97: 0 | Z97: 0 | AA97: 0 | AB97: 663.0018 | AC97: -663.0018 | AD97: 0 | AE97: 0 | AF97: 0 | AG97: 0 | AH97: 663.0018 | AI97: -663.0018 | AJ97: 0 | AK97: 0 | AL97: 0 | AM97: CLIMATE | AN97: CLIMATE FORCING | AO97: UNKNOWN CAPABILITY | AP97: OCEANIC & ATMOSPHERIC RESEARCH | AQ97: CLIMATE RESEARCH | AR97: LABORATORIES & JOINT INSTITUTES | AS97: CLIMATE MONITORING & DIAG. LAB. (CMDL) | AT97: RITS/HALO-CARBONS ETC. | AU97: 06 | AV97: STAFF OFCS OF THE OFC OF THE UNDER SEC | AW97: 99 | AX97: COMMON SERVICES
A98: CL | B98: CLF | C98: XXX | D98: ORF | E98: 37 | F98: 03-01-07-005 | G98: 3 | H98: D8R1M46 | I98: 0 | J98: 0 | K98: 0 | L98: 0 | M98: 0 | N98: 0 | O98: 0 | P98: 0 | Q98: 0 | R98: 0 | S98: 0 | T98: 0 | U98: 0 | V98: 0 | W98: 0 | X98: 0 | Y98: 0 | Z98: 0 | AA98: 0 | AB98: 0 | AC98: 0 | AD98: 0 | AE98: 0 | AF98: 0 | AG98: 0 | AH98: 0 | AI98: 0 | AJ98: 0 | AK98: 0 | AL98: 0 | AM98: CLIMATE | AN98: CLIMATE FORCING | AO98: UNKNOWN CAPABILITY | AP98: OCEANIC & ATMOSPHERIC RESEARCH | AQ98: CLIMATE RESEARCH | AR98: LABORATORIES & JOINT INSTITUTES | AS98: CLIMATE MONITORING & DIAG. LAB. (CMDL) | AT98: RITS/HALO-CARBONS ETC. | AU98: 50 | AV98: OFFICE OF OCEANIC & ATMOSPHERIC RESEARCH | AW98: 34 | AX98: GLOBAL MONITORING DIVISION
A99: CL | B99: CLF | C99: XXX | D99: ORF | E99: 37 | F99: 03-01-07-005 | G99: 3 | H99: D8R1MAS | I99: 0 | J99: 0 | K99: 0 | L99: 0 | M99: 0 | N99: 0 | O99: 0 | P99: 0 | Q99: 0 | R99: 0 | S99: 0 | T99: 0 | U99: 0 | V99: 0 | W99: 0 | X99: 0 | Y99: 0 | Z99: 0 | AA99: 0 | AB99: 0 | AC99: 0 | AD99: 0 | AE99: 0 | AF99: 0 | AG99: 0 | AH99: 0 | AI99: 0 | AJ99: 0 | AK99: 0 | AL99: 0 | AM99: CLIMATE | AN99: CLIMATE FORCING | AO99: UNKNOWN CAPABILITY | AP99: OCEANIC & ATMOSPHERIC RESEARCH | AQ99: CLIMATE RESEARCH | AR99: LABORATORIES & JOINT INSTITUTES | AS99: CLIMATE MONITORING & DIAG. LAB. (CMDL) | AT99: PMEL- AEROSOL STUDIES | AU99: 50 | AV99: OFFICE OF OCEANIC & ATMOSPHERIC RESEARCH | AW99: 27 | AX99: PACIFIC MARINE ENVIRONMENTAL LABORATORY
A100: CL | B100: CLF | C100: XXX | D100: ORF | E100: 37 | F100: 03-01-07-005 | G100: 3 | H100: D8R1MB1 | I100: 0 | J100: 3915.65532 | K100: -3915.65532 | L100: 0 | M100: 0.015921154 | N100: -0.015921154 | O100: 0 | P100: 0 | Q100: 0 | R100: 0 | S100: 0 | T100: 0 | U100: 0 | V100: 0 | W100: 0 | X100: 0 | Y100: 0 | Z100: 0 | AA100: 0 | AB100: 0 | AC100: 0 | AD100: 0 | AE100: 0 | AF100: 0 | AG100: 0 | AH100: 3915.65532 | AI100: -3915.65532 | AJ100: 0 | AK100: 0.015921154 | AL100: -0.015921154 | AM100: CLIMATE | AN100: CLIMATE FORCING | AO100: UNKNOWN CAPABILITY | AP100: OCEANIC & ATMOSPHERIC RESEARCH | AQ100: CLIMATE RESEARCH | AR100: LABORATORIES & JOINT INSTITUTES | AS100: CLIMATE MONITORING & DIAG. LAB. (CMDL) | AT100: RITS/METHANE & CO., AND OZONE ANALYSIS | AU100: 50 | AV100: OFFICE OF OCEANIC & ATMOSPHERIC RESEARCH | AW100: 34 | AX100: GLOBAL MONITORING DIVISION
A101: CL | B101: CLF | C101: XXX | D101: ORF | E101: 37 | F101: 03-01-07-005 | G101: 3 | H101: D8R1MPD | I101: 0 | J101: 0 | K101: 0 | L101: 0 | M101: 0 | N101: 0 | O101: 0 | P101: 0 | Q101: 0 | R101: 0 | S101: 0 | T101: 0 | U101: 0 | V101: 0 | W101: 0 | X101: 0 | Y101: 0 | Z101: 0 | AA101: 0 | AB101: 0 | AC101: 0 | AD101: 0 | AE101: 0 | AF101: 0 | AG101: 0 | AH101: 0 | AI101: 0 | AJ101: 0 | AK101: 0 | AL101: 0 | AM101: CLIMATE | AN101: CLIMATE FORCING | AO101: UNKNOWN CAPABILITY | AP101: OCEANIC & ATMOSPHERIC RESEARCH | AQ101: CLIMATE RESEARCH | AR101: LABORATORIES & JOINT INSTITUTES | AS101: CLIMATE MONITORING & DIAG. LAB. (CMDL) | AT101: PACS DISTRIBUTION | AU101: 50 | AV101: OFFICE OF OCEANIC & ATMOSPHERIC RESEARCH | AW101: 23 | AX101: ATLANTIC OCEANOGRAPHIC & MET LAB
A102: CL | B102: CLF | C102: XXX | D102: ORF | E102: 37 | F102: 03-01-07-005 | G102: 3 | H102: D8R1MRS | I102: 0 | J102: 0 | K102: 0 | L102: 0 | M102: 0 | N102: 0 | O102: 0 | P102: 0 | Q102: 0 | R102: 0 | S102: 0 | T102: 0 | U102: 0 | V102: 0 | W102: 0 | X102: 0 | Y102: 0 | Z102: 0 | AA102: 0 | AB102: 0 | AC102: 0 | AD102: 0 | AE102: 0 | AF102: 0 | AG102: 0 | AH102: 0 | AI102: 0 | AJ102: 0 | AK102: 0 | AL102: 0 | AM102: CLIMATE | AN102: CLIMATE FORCING | AO102: UNKNOWN CAPABILITY | AP102: OCEANIC & ATMOSPHERIC RESEARCH | AQ102: CLIMATE RESEARCH | AR102: LABORATORIES & JOINT INSTITUTES | AS102: CLIMATE MONITORING & DIAG. LAB. (CMDL) | AT102: OAR/HQ OPERATING SUPPORT | AU102: 50 | AV102: OFFICE OF OCEANIC & ATMOSPHERIC RESEARCH | AW102: 33 | AX102: EARTH SYSTEM RESEARCH LABORATORY
A103: CL | B103: CLF | C103: XXX | D103: ORF | E103: 37 | F103: 03-01-07-005 | G103: 3 | H103: D8R1MRS | I103: 0 | J103: 3020.25712 | K103: -3020.25712 | L103: 0 | M103: 0 | N103: 0 | O103: 0 | P103: 1875.8266 | Q103: -1875.8266 | R103: 0 | S103: 0 | T103: 0 | U103: 0 | V103: 1294.3973 | W103: -1294.3973 | X103: 0 | Y103: 0 | Z103: 0 | AA103: 0 | AB103: -7594.21956 | AC103: 7594.21956 | AD103: 0 | AE103: 0 | AF103: 0 | AG103: 0 | AH103: -1403.73854 | AI103: 1403.73854 | AJ103: 0 | AK103: 0 | AL103: 0 | AM103: CLIMATE | AN103: CLIMATE FORCING | AO103: UNKNOWN CAPABILITY | AP103: OCEANIC & ATMOSPHERIC RESEARCH | AQ103: CLIMATE RESEARCH | AR103: LABORATORIES & JOINT INSTITUTES | AS103: CLIMATE MONITORING & DIAG. LAB. (CMDL) | AT103: OAR/HQ OPERATING SUPPORT | AU103: 50 | AV103: OFFICE OF OCEANIC & ATMOSPHERIC RESEARCH | AW103: 34 | AX103: GLOBAL MONITORING DIVISION
A104: CL | B104: CLF | C104: XXX | D104: ORF | E104: 37 | F104: 03-01-07-005 | G104: 3 | H104: D8R1MRS | I104: 0 | J104: 0 | K104: 0 | L104: 0 | M104: 0 | N104: 0 | O104: 0 | P104: 0 | Q104: 0 | R104: 0 | S104: 0 | T104: 0 | U104: 0 | V104: 0 | W104: 0 | X104: 0 | Y104: 0 | Z104: 0 | AA104: 0 | AB104: 0 | AC104: 0 | AD104: 0 | AE104: 0 | AF104: 0 | AG104: 0 | AH104: 0 | AI104: 0 | AJ104: 0 | AK104: 0 | AL104: 0 | AM104: CLIMATE | AN104: CLIMATE FORCING | AO104: UNKNOWN CAPABILITY | AP104: OCEANIC & ATMOSPHERIC RESEARCH | AQ104: CLIMATE RESEARCH | AR104: LABORATORIES & JOINT INSTITUTES | AS104: CLIMATE MONITORING & DIAG. LAB. (CMDL) | AT104: OAR/HQ OPERATING SUPPORT | AU104: 50 | AV104: OFFICE OF OCEANIC & ATMOSPHERIC RESEARCH | AW104: 12 | AX104: INFORMATION MANAGEMENT DIVISION
A105: CL | B105: CLF | C105: XXX | D105: ORF | E105: 37 | F105: 03-01-07-005 | G105: 3 | H105: D8R1MRS | I105: 0 | J105: 0 | K105: 0 | L105: 0 | M105: 0 | N105: 0 | O105: 0 | P105: 0 | Q105: 0 | R105: 0 | S105: 0 | T105: 0 | U105: 0 | V105: 0 | W105: 0 | X105: 0 | Y105: 0 | Z105: 0 | AA105: 0 | AB105: 0 | AC105: 0 | AD105: 0 | AE105: 0 | AF105: 0 | AG105: 0 | AH105: 0 | AI105: 0 | AJ105: 0 | AK105: 0 | AL105: 0 | AM105: CLIMATE | AN105: CLIMATE FORCING | AO105: UNKNOWN CAPABILITY | AP105: OCEANIC & ATMOSPHERIC RESEARCH | AQ105: CLIMATE RESEARCH | AR105: LABORATORIES & JOINT INSTITUTES | AS105: CLIMATE MONITORING & DIAG. LAB. (CMDL) | AT105: OAR/HQ OPERATING SUPPORT | AU105: 50 | AV105: OFFICE OF OCEANIC & ATMOSPHERIC RESEARCH | AW105: 19 | AX105: LABORATORIES AND COOPERATIVE INSTITUTES
A106: CL | B106: CLF | C106: XXX | D106: ORF | E106: 37 | F106: 03-01-07-005 | G106: 3 | H106: D8R1MRS | I106: 0 | J106: 0 | K106: 0 | L106: 0 | M106: 0 | N106: 0 | O106: 0 | P106: 0 | Q106: 0 | R106: 0 | S106: 0 | T106: 0 | U106: 0 | V106: 0 | W106: 0 | X106: 0 | Y106: 0 | Z106: 0 | AA106: 0 | AB106: 0 | AC106: 0 | AD106: 0 | AE106: 0 | AF106: 0 | AG106: 0 | AH106: 0 | AI106: 0 | AJ106: 0 | AK106: 0 | AL106: 0 | AM106: CLIMATE | AN106: CLIMATE FORCING | AO106: UNKNOWN CAPABILITY | AP106: OCEANIC & ATMOSPHERIC RESEARCH | AQ106: CLIMATE RESEARCH | AR106: LABORATORIES & JOINT INSTITUTES | AS106: CLIMATE MONITORING & DIAG. LAB. (CMDL) | AT106: OAR/HQ OPERATING SUPPORT | AU106: 50 | AV106: OFFICE OF OCEANIC & ATMOSPHERIC RESEARCH | AW106: 01 | AX106: OFFICE OF OCEANIC & ATMOSPHERIC RESEARCH
A107: CL | B107: CLF | C107: XXX | D107: ORF | E107: 37 | F107: 03-01-07-006 | G107: 3 | H107: 0000000 | I107: 0 | J107: 0 | K107: 0 | L107: 0 | M107: 0 | N107: 0 | O107: 2594.18082 | P107: 0 | Q107: 2594.18082 | R107: 0 | S107: 0 | T107: 0 | U107: 0 | V107: 0 | W107: 0 | X107: 0 | Y107: 0 | Z107: 0 | AA107: 0 | AB107: 0 | AC107: 0 | AD107: 0 | AE107: 0 | AF107: 0 | AG107: 2594.18082 | AH107: 0 | AI107: 2594.18082 | AJ107: 0 | AK107: 0 | AL107: 0 | AM107: CLIMATE | AN107: CLIMATE FORCING | AO107: UNKNOWN CAPABILITY | AP107: OCEANIC & ATMOSPHERIC RESEARCH | AQ107: CLIMATE RESEARCH | AR107: LABORATORIES & JOINT INSTITUTES | AS107: ENVIRONMENTAL TECHNOLOGY LAB. (ETL) | AT107: NULL | AU107: 50 | AV107: OFFICE OF OCEANIC & ATMOSPHERIC RESEARCH | AW107: 36 | AX107: CHEMICAL SCIENCES DIVISION
A108: CL | B108: CLF | C108: XXX | D108: ORF | E108: 37 | F108: 03-01-07-006 | G108: 3 | H108: D8R1NAC | I108: 0 | J108: 0 | K108: 0 | L108: 0 | M108: 0 | N108: 0 | O108: 0 | P108: 2663 | Q108: -2663 | R108: 0 | S108: 0 | T108: 0 | U108: 0 | V108: 0 | W108: 0 | X108: 0 | Y108: 0 | Z108: 0 | AA108: 0 | AB108: 0 | AC108: 0 | AD108: 0 | AE108: 0 | AF108: 0 | AG108: 0 | AH108: 2663 | AI108: -2663 | AJ108: 0 | AK108: 0 | AL108: 0 | AM108: CLIMATE | AN108: CLIMATE FORCING | AO108: UNKNOWN CAPABILITY | AP108: OCEANIC & ATMOSPHERIC RESEARCH | AQ108: CLIMATE RESEARCH | AR108: LABORATORIES & JOINT INSTITUTES | AS108: ENVIRONMENTAL TECHNOLOGY LAB. (ETL) | AT108: AEROSOL/CLIMATE BASE | AU108: 50 | AV108: OFFICE OF OCEANIC & ATMOSPHERIC RESEARCH | AW108: 36 | AX108: CHEMICAL SCIENCES DIVISION
A109: CL | B109: CLF | C109: XXX | D109: ORF | E109: 85 | F109: 03-01-06-000 | G109: 3 | H109: E8R1F18 | I109: 0 | J109: 219140.5327 | K109: -219140.5327 | L109: 0 | M109: 0.773955385 | N109: -0.773955385 | O109: 0 | P109: 255273.6633 | Q109: -255273.6633 | R109: 0 | S109: 0.761911497 | T109: -0.761911497 | U109: 0 | V109: 151460.3019 | W109: -151460.3019 | X109: 0 | Y109: 0.756797996 | Z109: -0.756797996 | AA109: 0 | AB109: -611364.2647 | AC109: 611364.2647 | AD109: 0 | AE109: -2.255203346 | AF109: 2.255203346 | AG109: 0 | AH109: 14510.23318 | AI109: -14510.23318 | AJ109: 0 | AK109: 0.037461532 | AL109: -0.037461532 | AM109: CLIMATE | AN109: CLIMATE FORCING | AO109: UNKNOWN CAPABILITY | AP109: OCEANIC & ATMOSPHERIC RESEARCH | AQ109: CLIMATE RESEARCH | AR109: CLIMATE OBSERVATIONS & SERVICES | AS109: OAR CLMT RSRCH CLMT OBSERVTNS & SVC BASE | AT109: BASELINE OBSERVATIONS | AU109: 50 | AV109: OFFICE OF OCEANIC & ATMOSPHERIC RESEARCH | AW109: 34 | AX109: GLOBAL MONITORING DIVISION
A110: CL | B110: CLF | C110: XXX | D110: ORF | E110: 85 | F110: 03-01-06-000 | G110: 3 | H110: E8R1F21 | I110: 0 | J110: 436544.1118 | K110: -436544.1118 | L110: 0 | M110: 1.271725577 | N110: -1.271725577 | O110: 0 | P110: 371029.94 | Q110: -371029.94 | R110: 0 | S110: 0.698643643 | T110: -0.698643643 | U110: 0 | V110: 805435.1673 | W110: -805435.1673 | X110: 0 | Y110: 1.042208097 | Z110: -1.042208097 | AA110: 0 | AB110: -1600140.565 | AC110: 1600140.565 | AD110: 0 | AE110: -3.012577319 | AF110: 3.012577319 | AG110: 0 | AH110: 12868.65358 | AI110: -12868.65358 | AJ110: 0 | AK110: -2.000000165e-09 | AL110: 2.000000165e-09 | AM110: CLIMATE | AN110: CLIMATE FORCING | AO110: UNKNOWN CAPABILITY | AP110: OCEANIC & ATMOSPHERIC RESEARCH | AQ110: CLIMATE RESEARCH | AR110: CLIMATE OBSERVATIONS & SERVICES | AS110: OAR CLMT RSRCH CLMT OBSERVTNS & SVC BASE | AT110: CARBON CYCLE | AU110: 50 | AV110: OFFICE OF OCEANIC & ATMOSPHERIC RESEARCH | AW110: 34 | AX110: GLOBAL MONITORING DIVISION
A111: CL | B111: CLF | C111: XXX | D111: ORF | E111: 85 | F111: 03-01-06-000 | G111: 3 | H111: E8R1F21 | I111: 0 | J111: 0 | K111: 0 | L111: 0 | M111: 0 | N111: 0 | O111: 0 | P111: 0 | Q111: 0 | R111: 0 | S111: 0 | T111: 0 | U111: 0 | V111: 1413.14738 | W111: -1413.14738 | X111: 0 | Y111: 0 | Z111: 0 | AA111: 0 | AB111: -1413.14738 | AC111: 1413.14738 | AD111: 0 | AE111: 0 | AF111: 0 | AG111: 0 | AH111: 0 | AI111: 0 | AJ111: 0 | AK111: 0 | AL111: 0 | AM111: CLIMATE | AN111: CLIMATE FORCING | AO111: UNKNOWN CAPABILITY | AP111: OCEANIC & ATMOSPHERIC RESEARCH | AQ111: CLIMATE RESEARCH | AR111: CLIMATE OBSERVATIONS & SERVICES | AS111: OAR CLMT RSRCH CLMT OBSERVTNS & SVC BASE | AT111: CARBON CYCLE | AU111: 06 | AV111: STAFF OFCS OF THE OFC OF THE UNDER SEC | AW111: 57 | AX111: OFC OF THE CHIEF ADMINISTRATIVE OFFICER
A112: CL | B112: CLF | C112: XXX | D112: ORF | E112: 85 | F112: 03-01-06-000 | G112: 3 | H112: E8R1F24 | I112: 0 | J112: 73511.20848 | K112: -73511.20848 | L112: 0 | M112: 0.30240827 | N112: -0.30240827 | O112: 0 | P112: 80144.5186 | Q112: -80144.5186 | R112: 0 | S112: 0.258236434 | T112: -0.258236434 | U112: 0 | V112: -7556.74004 | W112: 7556.74004 | X112: 0 | Y112: 0.105117077 | Z112: -0.105117077 | AA112: 0 | AB112: -146289.2385 | AC112: 146289.2385 | AD112: 0 | AE112: -0.668103125 | AF112: 0.668103125 | AG112: 0 | AH112: -190.25142 | AI112: 190.25142 | AJ112: 0 | AK112: -0.002341344 | AL112: 0.002341344 | AM112: CLIMATE | AN112: CLIMATE FORCING | AO112: UNKNOWN CAPABILITY | AP112: OCEANIC & ATMOSPHERIC RESEARCH | AQ112: CLIMATE RESEARCH | AR112: CLIMATE OBSERVATIONS & SERVICES | AS112: OAR CLMT RSRCH CLMT OBSERVTNS & SVC BASE | AT112: AEROSOLS | AU112: 50 | AV112: OFFICE OF OCEANIC & ATMOSPHERIC RESEARCH | AW112: 34 | AX112: GLOBAL MONITORING DIVISION
A113: CL | B113: CLF | C113: XXX | D113: ORF | E113: 85 | F113: 03-01-06-000 | G113: 3 | H113: E8R1F24 | I113: 0 | J113: 316.55 | K113: -316.55 | L113: 0 | M113: 0 | N113: 0 | O113: 0 | P113: 0 | Q113: 0 | R113: 0 | S113: 0 | T113: 0 | U113: 0 | V113: -248.37 | W113: 248.37 | X113: 0 | Y113: 0 | Z113: 0 | AA113: 0 | AB113: -68.18 | AC113: 68.18 | AD113: 0 | AE113: 0 | AF113: 0 | AG113: 0 | AH113: 0 | AI113: 0 | AJ113: 0 | AK113: 0 | AL113: 0 | AM113: CLIMATE | AN113: CLIMATE FORCING | AO113: UNKNOWN CAPABILITY | AP113: OCEANIC & ATMOSPHERIC RESEARCH | AQ113: CLIMATE RESEARCH | AR113: CLIMATE OBSERVATIONS & SERVICES | AS113: OAR CLMT RSRCH CLMT OBSERVTNS & SVC BASE | AT113: AEROSOLS | AU113: 50 | AV113: OFFICE OF OCEANIC & ATMOSPHERIC RESEARCH | AW113: 27 | AX113: PACIFIC MARINE ENVIRONMENTAL LABORATORY
A114: CL | B114: CLF | C114: XXX | D114: ORF | E114: 85 | F114: 03-01-06-003 | G114: 3 | H114: 0000000 | I114: 0 | J114: 0 | K114: 0 | L114: 0 | M114: 0 | N114: 0 | O114: 0 | P114: 0 | Q114: 0 | R114: 0 | S114: 0 | T114: 0 | U114: 0 | V114: 0 | W114: 0 | X114: 0 | Y114: 0 | Z114: 0 | AA114: 62800 | AB114: 0 | AC114: 62800 | AD114: 0 | AE114: 0 | AF114: 0 | AG114: 62800 | AH114: 0 | AI114: 62800 | AJ114: 0 | AK114: 0 | AL114: 0 | AM114: CLIMATE | AN114: CLIMATE FORCING | AO114: UNKNOWN CAPABILITY | AP114: OCEANIC & ATMOSPHERIC RESEARCH | AQ114: CLIMATE RESEARCH | AR114: CLIMATE OBSERVATIONS & SERVICES | AS114: CLIMATE DATA & INFORMATION AND CLASS | AT114: NULL | AU114: 50 | AV114: OFFICE OF OCEANIC & ATMOSPHERIC RESEARCH | AW114: 44 | AX114: CLIMATE PROGRAM OFFICE
A115: CL | B115: CLF | C115: XXX | D115: ORF | E115: 85 | F115: 03-01-06-003 | G115: 3 | H115: 0000000 | I115: 0 | J115: 0 | K115: 0 | L115: 0 | M115: 0 | N115: 0 | O115: 0 | P115: 0 | Q115: 0 | R115: 0 | S115: 0 | T115: 0 | U115: 0 | V115: 0 | W115: 0 | X115: 0 | Y115: 0 | Z115: 0 | AA115: 0 | AB115: 0 | AC115: 0 | AD115: 0 | AE115: 0 | AF115: 0 | AG115: 0 | AH115: 0 | AI115: 0 | AJ115: 0 | AK115: 0 | AL115: 0 | AM115: CLIMATE | AN115: CLIMATE FORCING | AO115: UNKNOWN CAPABILITY | AP115: OCEANIC & ATMOSPHERIC RESEARCH | AQ115: CLIMATE RESEARCH | AR115: CLIMATE OBSERVATIONS & SERVICES | AS115: CLIMATE DATA & INFORMATION AND CLASS | AT115: NULL | AU115: 40 | AV115: NAT ENV SATELLITE, DATA & INFO SERVICE | AW115: 06 | AX115: NATIONAL CLIMATIC DATA CENTER, NESDIS
A116: CL | B116: CLF | C116: XXX | D116: ORF | E116: 85 | F116: 03-01-06-003 | G116: 3 | H116: E8R1JA1 | I116: 0 | J116: 0 | K116: 0 | L116: 0 | M116: 0 | N116: 0 | O116: 0 | P116: 0 | Q116: 0 | R116: 0 | S116: 0 | T116: 0 | U116: 0 | V116: 0 | W116: 0 | X116: 0 | Y116: 0 | Z116: 0 | AA116: 7750 | AB116: 7750 | AC116: 0 | AD116: 0 | AE116: 0 | AF116: 0 | AG116: 7750 | AH116: 7750 | AI116: 0 | AJ116: 0 | AK116: 0 | AL116: 0 | AM116: CLIMATE | AN116: CLIMATE FORCING | AO116: UNKNOWN CAPABILITY | AP116: OCEANIC & ATMOSPHERIC RESEARCH | AQ116: CLIMATE RESEARCH | AR116: CLIMATE OBSERVATIONS & SERVICES | AS116: CLIMATE DATA & INFORMATION AND CLASS | AT116: CLIMATE OBSERVATIONS & SERVICES-CD&I CLA | AU116: 40 | AV116: NAT ENV SATELLITE, DATA & INFO SERVICE | AW116: 09 | AX116: OFFICE OF SYSTEMS DEVELOPMENT
A117: CL | B117: CLF | C117: XXX | D117: ORF | E117: 85 | F117: 03-01-06-003 | G117: 3 | H117: E8R1JA1 | I117: 0 | J117: 0 | K117: 0 | L117: 0 | M117: 0 | N117: 0 | O117: 0 | P117: 0 | Q117: 0 | R117: 0 | S117: 0 | T117: 0 | U117: 809235 | V117: 725579.53 | W117: 83655.47 | X117: 3.41 | Y117: 4.113798077 | Z117: -0.703798077 | AA117: 574486 | AB117: 657017.8 | AC117: -82531.8 | AD117: 0.69 | AE117: 0.692312499 | AF117: -0.002312499 | AG117: 1383721 | AH117: 1382597.33 | AI117: 1123.67 | AJ117: 4.1 | AK117: 4.806110576 | AL117: -0.706110576 | AM117: CLIMATE | AN117: CLIMATE FORCING | AO117: UNKNOWN CAPABILITY | AP117: OCEANIC & ATMOSPHERIC RESEARCH | AQ117: CLIMATE RESEARCH | AR117: CLIMATE OBSERVATIONS & SERVICES | AS117: CLIMATE DATA & INFORMATION AND CLASS | AT117: CLIMATE OBSERVATIONS & SERVICES-CD&I CLA | AU117: 40 | AV117: NAT ENV SATELLITE, DATA & INFO SERVICE | AW117: 06 | AX117: NATIONAL CLIMATIC DATA CENTER, NESDIS
A118: CL | B118: CLF | C118: XXX | D118: ORF | E118: 85 | F118: 03-01-06-003 | G118: 3 | H118: E8R1JA1 | I118: 0 | J118: 0 | K118: 0 | L118: 0 | M118: 0 | N118: 0 | O118: 0 | P118: 0 | Q118: 0 | R118: 0 | S118: 0 | T118: 0 | U118: 0 | V118: 0 | W118: 0 | X118: 0 | Y118: 0 | Z118: 0 | AA118: 816000 | AB118: 816000 | AC118: 0 | AD118: 0 | AE118: 0 | AF118: 0 | AG118: 816000 | AH118: 816000 | AI118: 0 | AJ118: 0 | AK118: 0 | AL118: 0 | AM118: CLIMATE | AN118: CLIMATE FORCING | AO118: UNKNOWN CAPABILITY | AP118: OCEANIC & ATMOSPHERIC RESEARCH | AQ118: CLIMATE RESEARCH | AR118: CLIMATE OBSERVATIONS & SERVICES | AS118: CLIMATE DATA & INFORMATION AND CLASS | AT118: CLIMATE OBSERVATIONS & SERVICES-CD&I CLA | AU118: 50 | AV118: OFFICE OF OCEANIC & ATMOSPHERIC RESEARCH | AW118: 19 | AX118: LABORATORIES AND COOPERATIVE INSTITUTES
A119: CL | B119: CLF | C119: XXX | D119: ORF | E119: 85 | F119: 03-01-06-003 | G119: 3 | H119: E8R1JA1 | I119: 0 | J119: 0 | K119: 0 | L119: 0 | M119: 0 | N119: 0 | O119: 0 | P119: 0 | Q119: 0 | R119: 0 | S119: 0 | T119: 0 | U119: 0 | V119: 0 | W119: 0 | X119: 0 | Y119: 0 | Z119: 0 | AA119: 5000 | AB119: 5000 | AC119: 0 | AD119: 0 | AE119: 0 | AF119: 0 | AG119: 5000 | AH119: 5000 | AI119: 0 | AJ119: 0 | AK119: 0 | AL119: 0 | AM119: CLIMATE | AN119: CLIMATE FORCING | AO119: UNKNOWN CAPABILITY | AP119: OCEANIC & ATMOSPHERIC RESEARCH | AQ119: CLIMATE RESEARCH | AR119: CLIMATE OBSERVATIONS & SERVICES | AS119: CLIMATE DATA & INFORMATION AND CLASS | AT119: CLIMATE OBSERVATIONS & SERVICES-CD&I CLA | AU119: 50 | AV119: OFFICE OF OCEANIC & ATMOSPHERIC RESEARCH | AW119: 24 | AX119: GEOPHYSICAL FLUID DYNAMICS LABORATORY
A120: CL | B120: CLF | C120: XXX | D120: ORF | E120: 85 | F120: 03-01-06-003 | G120: 3 | H120: E8R1JA1 | I120: 0 | J120: 0 | K120: 0 | L120: 0 | M120: 0 | N120: 0 | O120: 0 | P120: 0 | Q120: 0 | R120: 0 | S120: 0 | T120: 0 | U120: 0 | V120: 0 | W120: 0 | X120: 0 | Y120: 0 | Z120: 0 | AA120: 34000 | AB120: 96800 | AC120: -62800 | AD120: 0 | AE120: 0 | AF120: 0 | AG120: 34000 | AH120: 96800 | AI120: -62800 | AJ120: 0 | AK120: 0 | AL120: 0 | AM120: CLIMATE | AN120: CLIMATE FORCING | AO120: UNKNOWN CAPABILITY | AP120: OCEANIC & ATMOSPHERIC RESEARCH | AQ120: CLIMATE RESEARCH | AR120: CLIMATE OBSERVATIONS & SERVICES | AS120: CLIMATE DATA & INFORMATION AND CLASS | AT120: CLIMATE OBSERVATIONS & SERVICES-CD&I CLA | AU120: 50 | AV120: OFFICE OF OCEANIC & ATMOSPHERIC RESEARCH | AW120: 44 | AX120: CLIMATE PROGRAM OFFICE
A121: CL | B121: CLF | C121: XXX | D121: ORF | E121: 85 | F121: 03-01-06-003 | G121: 3 | H121: E8R1JA1 | I121: 0 | J121: 0 | K121: 0 | L121: 0 | M121: 0 | N121: 0 | O121: 0 | P121: 0 | Q121: 0 | R121: 0 | S121: 0 | T121: 0 | U121: 661729 | V121: 237000 | W121: 424729 | X121: 0 | Y121: 0 | Z121: 0 | AA121: 225000 | AB121: 649670.02 | AC121: -424670.02 | AD121: 0 | AE121: 0 | AF121: 0 | AG121: 886729 | AH121: 886670.02 | AI121: 58.98 | AJ121: 0 | AK121: 0 | AL121: 0 | AM121: CLIMATE | AN121: CLIMATE FORCING | AO121: UNKNOWN CAPABILITY | AP121: OCEANIC & ATMOSPHERIC RESEARCH | AQ121: CLIMATE RESEARCH | AR121: CLIMATE OBSERVATIONS & SERVICES | AS121: CLIMATE DATA & INFORMATION AND CLASS | AT121: CLIMATE OBSERVATIONS & SERVICES-CD&I CLA | AU121: 50 | AV121: OFFICE OF OCEANIC & ATMOSPHERIC RESEARCH | AW121: 22 | AX121: AIR RESOURCES LABORATORY
A122: CL | B122: CLF | C122: XXX | D122: ORF | E122: 85 | F122: 03-01-06-004 | G122: 3 | H122: 0000000 | I122: 0 | J122: 0 | K122: 0 | L122: 0 | M122: 0 | N122: 0 | O122: 0 | P122: 0 | Q122: 0 | R122: 0 | S122: 0 | T122: 0 | U122: 630900 | V122: 0 | W122: 630900 | X122: 0 | Y122: 0 | Z122: 0 | AA122: 259100 | AB122: 0 | AC122: 259100 | AD122: 0 | AE122: 0 | AF122: 0 | AG122: 890000 | AH122: 0 | AI122: 890000 | AJ122: 0 | AK122: 0 | AL122: 0 | AM122: CLIMATE | AN122: CLIMATE FORCING | AO122: UNKNOWN CAPABILITY | AP122: OCEANIC & ATMOSPHERIC RESEARCH | AQ122: CLIMATE RESEARCH | AR122: CLIMATE OBSERVATIONS & SERVICES | AS122: CLIMATE BASE OPERATIONS | AT122: NULL | AU122: 50 | AV122: OFFICE OF OCEANIC & ATMOSPHERIC RESEARCH | AW122: 44 | AX122: CLIMATE PROGRAM OFFICE
A123: CL | B123: CLF | C123: XXX | D123: ORF | E123: 85 | F123: 03-01-06-004 | G123: 3 | H123: E8R1KA1 | I123: 0 | J123: 0 | K123: 0 | L123: 0 | M123: 0 | N123: 0 | O123: 0 | P123: 0 | Q123: 0 | R123: 0 | S123: 0 | T123: 0 | U123: 0 | V123: 0 | W123: 0 | X123: 0 | Y123: 0 | Z123: 0 | AA123: 0 | AB123: 890000 | AC123: -890000 | AD123: 0 | AE123: 0 | AF123: 0 | AG123: 0 | AH123: 890000 | AI123: -890000 | AJ123: 0 | AK123: 0 | AL123: 0 | AM123: CLIMATE | AN123: CLIMATE FORCING | AO123: UNKNOWN CAPABILITY | AP123: OCEANIC & ATMOSPHERIC RESEARCH | AQ123: CLIMATE RESEARCH | AR123: CLIMATE OBSERVATIONS & SERVICES | AS123: CLIMATE BASE OPERATIONS | AT123: CLIMATE OBSERVATIONS & SERVICES-CBO | AU123: 50 | AV123: OFFICE OF OCEANIC & ATMOSPHERIC RESEARCH | AW123: 44 | AX123: CLIMATE PROGRAM OFFICE
A124: CL | B124: CLF | C124: XXX | D124: ORF | E124: 85 | F124: 03-01-07-001 | G124: 3 | H124: 0000000 | I124: 0 | J124: 0 | K124: 0 | L124: 0 | M124: 0 | N124: 0 | O124: 0 | P124: 0 | Q124: 0 | R124: 0 | S124: 0 | T124: 0 | U124: 6798252 | V124: 0 | W124: 6798252 | X124: 0 | Y124: 0 | Z124: 0 | AA124: -216452 | AB124: 0 | AC124: -216452 | AD124: 0 | AE124: 0 | AF124: 0 | AG124: 6581800 | AH124: 0 | AI124: 6581800 | AJ124: 0 | AK124: 0 | AL124: 0 | AM124: CLIMATE | AN124: CLIMATE FORCING | AO124: UNKNOWN CAPABILITY | AP124: OCEANIC & ATMOSPHERIC RESEARCH | AQ124: CLIMATE RESEARCH | AR124: LABORATORIES & JOINT INSTITUTES | AS124: AERONOMY LABORATORY (AL) | AT124: NULL | AU124: 50 | AV124: OFFICE OF OCEANIC & ATMOSPHERIC RESEARCH | AW124: 36 | AX124: CHEMICAL SCIENCES DIVISION
A125: CL | B125: CLF | C125: XXX | D125: ORF | E125: 85 | F125: 03-01-07-001 | G125: 3 | H125: 0000000 | I125: 0 | J125: 0 | K125: 0 | L125: 0 | M125: 0 | N125: 0 | O125: 0 | P125: 0 | Q125: 0 | R125: 0 | S125: 0 | T125: 0 | U125: 40375 | V125: 0 | W125: 40375 | X125: 0 | Y125: 0 | Z125: 0 | AA125: 255776 | AB125: 0 | AC125: 255776 | AD125: 1.01 | AE125: 0 | AF125: 1.01 | AG125: 296151 | AH125: 0 | AI125: 296151 | AJ125: 1.01 | AK125: 0 | AL125: 1.01 | AM125: CLIMATE | AN125: CLIMATE FORCING | AO125: UNKNOWN CAPABILITY | AP125: OCEANIC & ATMOSPHERIC RESEARCH | AQ125: CLIMATE RESEARCH | AR125: LABORATORIES & JOINT INSTITUTES | AS125: AERONOMY LABORATORY (AL) | AT125: NULL | AU125: 50 | AV125: OFFICE OF OCEANIC & ATMOSPHERIC RESEARCH | AW125: 33 | AX125: EARTH SYSTEM RESEARCH LABORATORY
A126: CL | B126: CLF | C126: XXX | D126: ORF | E126: 85 | F126: 03-01-07-001 | G126: 3 | H126: 0000000 | I126: 0 | J126: 0 | K126: 0 | L126: 0 | M126: 0 | N126: 0 | O126: 0 | P126: 0 | Q126: 0 | R126: 0 | S126: 0 | T126: 0 | U126: 0 | V126: 0 | W126: 0 | X126: 0 | Y126: 0 | Z126: 0 | AA126: 35601 | AB126: 0 | AC126: 35601 | AD126: 0.19 | AE126: 0 | AF126: 0.19 | AG126: 35601 | AH126: 0 | AI126: 35601 | AJ126: 0.19 | AK126: 0 | AL126: 0.19 | AM126: CLIMATE | AN126: CLIMATE FORCING | AO126: UNKNOWN CAPABILITY | AP126: OCEANIC & ATMOSPHERIC RESEARCH | AQ126: CLIMATE RESEARCH | AR126: LABORATORIES & JOINT INSTITUTES | AS126: AERONOMY LABORATORY (AL) | AT126: NULL | AU126: 50 | AV126: OFFICE OF OCEANIC & ATMOSPHERIC RESEARCH | AW126: 37 | AX126: GLOBAL SYSTEMS DIVISION
A127: CL | B127: CLF | C127: XXX | D127: ORF | E127: 85 | F127: 03-01-07-001 | G127: 3 | H127: 0000000 | I127: 0 | J127: 0 | K127: 0 | L127: 0 | M127: 0 | N127: 0 | O127: 220057 | P127: 0 | Q127: 220057 | R127: 0.82 | S127: 0 | T127: 0.82 | U127: 263095 | V127: 0 | W127: 263095 | X127: 0.29 | Y127: 0 | Z127: 0.29 | AA127: 23848 | AB127: 0 | AC127: 23848 | AD127: 0.06 | AE127: 0 | AF127: 0.06 | AG127: 507000 | AH127: 0 | AI127: 507000 | AJ127: 1.17 | AK127: 0 | AL127: 1.17 | AM127: CLIMATE | AN127: CLIMATE FORCING | AO127: UNKNOWN CAPABILITY | AP127: OCEANIC & ATMOSPHERIC RESEARCH | AQ127: CLIMATE RESEARCH | AR127: LABORATORIES & JOINT INSTITUTES | AS127: AERONOMY LABORATORY (AL) | AT127: NULL | AU127: 50 | AV127: OFFICE OF OCEANIC & ATMOSPHERIC RESEARCH | AW127: 35 | AX127: PHYSICAL SCIENCES DIVISION
A128: CL | B128: CLF | C128: XXX | D128: ORF | E128: 85 | F128: 03-01-07-001 | G128: 3 | H128: E8R1G17 | I128: 0 | J128: 0 | K128: 0 | L128: 0 | M128: 0 | N128: 0 | O128: 0 | P128: 0 | Q128: 0 | R128: 0 | S128: 0 | T128: 0 | U128: 0 | V128: 0 | W128: 0 | X128: 0 | Y128: 0 | Z128: 0 | AA128: 0 | AB128: 267271.2882 | AC128: -267271.2882 | AD128: 0 | AE128: 1.788788461 | AF128: -1.788788461 | AG128: 0 | AH128: 267271.2882 | AI128: -267271.2882 | AJ128: 0 | AK128: 1.788788461 | AL128: -1.788788461 | AM128: CLIMATE | AN128: CLIMATE FORCING | AO128: UNKNOWN CAPABILITY | AP128: OCEANIC & ATMOSPHERIC RESEARCH | AQ128: CLIMATE RESEARCH | AR128: LABORATORIES & JOINT INSTITUTES | AS128: AERONOMY LABORATORY (AL) | AT128: CONSULT AND ADVISE | AU128: 50 | AV128: OFFICE OF OCEANIC & ATMOSPHERIC RESEARCH | AW128: 33 | AX128: EARTH SYSTEM RESEARCH LABORATORY
A129: CL | B129: CLF | C129: XXX | D129: ORF | E129: 85 | F129: 03-01-07-001 | G129: 3 | H129: E8R1G17 | I129: 0 | J129: 358957.2392 | K129: -358957.2392 | L129: 0 | M129: 0.192926923 | N129: -0.192926923 | O129: 0 | P129: 404594.4378 | Q129: -404594.4378 | R129: 0 | S129: 0.259252576 | T129: -0.259252576 | U129: 0 | V129: 412000.9968 | W129: -412000.9968 | X129: 0 | Y129: 0.244539556 | Z129: -0.244539556 | AA129: 0 | AB129: 812947.678 | AC129: -812947.678 | AD129: 0 | AE129: 0.647330702 | AF129: -0.647330702 | AG129: 0 | AH129: 1988500.352 | AI129: -1988500.352 | AJ129: 0 | AK129: 1.344049757 | AL129: -1.344049757 | AM129: CLIMATE | AN129: CLIMATE FORCING | AO129: UNKNOWN CAPABILITY | AP129: OCEANIC & ATMOSPHERIC RESEARCH | AQ129: CLIMATE RESEARCH | AR129: LABORATORIES & JOINT INSTITUTES | AS129: AERONOMY LABORATORY (AL) | AT129: CONSULT AND ADVISE | AU129: 50 | AV129: OFFICE OF OCEANIC & ATMOSPHERIC RESEARCH | AW129: 36 | AX129: CHEMICAL SCIENCES DIVISION
A130: CL | B130: CLF | C130: XXX | D130: ORF | E130: 85 | F130: 03-01-07-001 | G130: 3 | H130: E8R1G61 | I130: 0 | J130: 270222.4497 | K130: -270222.4497 | L130: 0 | M130: 0.899357885 | N130: -0.899357885 | O130: 0 | P130: 231017.9562 | Q130: -231017.9562 | R130: 0 | S130: 0.734770615 | T130: -0.734770615 | U130: 0 | V130: 250165.8222 | W130: -250165.8222 | X130: 0 | Y130: 0.864434367 | Z130: -0.864434367 | AA130: 0 | AB130: 368403.6562 | AC130: -368403.6562 | AD130: 0 | AE130: 0.801564537 | AF130: -0.801564537 | AG130: 0 | AH130: 1119809.884 | AI130: -1119809.884 | AJ130: 0 | AK130: 3.300127404 | AL130: -3.300127404 | AM130: CLIMATE | AN130: CLIMATE FORCING | AO130: UNKNOWN CAPABILITY | AP130: OCEANIC & ATMOSPHERIC RESEARCH | AQ130: CLIMATE RESEARCH | AR130: LABORATORIES & JOINT INSTITUTES | AS130: AERONOMY LABORATORY (AL) | AT130: MIDDLE ATMOSPHERIC RESEARCH | AU130: 50 | AV130: OFFICE OF OCEANIC & ATMOSPHERIC RESEARCH | AW130: 36 | AX130: CHEMICAL SCIENCES DIVISION
A131: CL | B131: CLF | C131: XXX | D131: ORF | E131: 85 | F131: 03-01-07-001 | G131: 3 | H131: E8R1G79 | I131: 0 | J131: 67006.5248 | K131: -67006.5248 | L131: 0 | M131: 0 | N131: 0 | O131: 0 | P131: 60606.92598 | Q131: -60606.92598 | R131: 0 | S131: 0 | T131: 0 | U131: 0 | V131: 170371.9436 | W131: -170371.9436 | X131: 0 | Y131: 0 | Z131: 0 | AA131: 0 | AB131: 121945.3552 | AC131: -121945.3552 | AD131: 0 | AE131: 0 | AF131: 0 | AG131: 0 | AH131: 419930.7496 | AI131: -419930.7496 | AJ131: 0 | AK131: 0 | AL131: 0 | AM131: CLIMATE | AN131: CLIMATE FORCING | AO131: UNKNOWN CAPABILITY | AP131: OCEANIC & ATMOSPHERIC RESEARCH | AQ131: CLIMATE RESEARCH | AR131: LABORATORIES & JOINT INSTITUTES | AS131: AERONOMY LABORATORY (AL) | AT131: TROPOSPHERIC SAMPLING | AU131: 50 | AV131: OFFICE OF OCEANIC & ATMOSPHERIC RESEARCH | AW131: 36 | AX131: CHEMICAL SCIENCES DIVISION
A132: CL | B132: CLF | C132: XXX | D132: ORF | E132: 85 | F132: 03-01-07-001 | G132: 3 | H132: E8R1G79 | I132: 0 | J132: 0 | K132: 0 | L132: 0 | M132: 0 | N132: 0 | O132: 0 | P132: 0 | Q132: 0 | R132: 0 | S132: 0 | T132: 0 | U132: 0 | V132: 0 | W132: 0 | X132: 0 | Y132: 0 | Z132: 0 | AA132: 0 | AB132: 0 | AC132: 0 | AD132: 0 | AE132: 0 | AF132: 0 | AG132: 0 | AH132: 0 | AI132: 0 | AJ132: 0 | AK132: 0 | AL132: 0 | AM132: CLIMATE | AN132: CLIMATE FORCING | AO132: UNKNOWN CAPABILITY | AP132: OCEANIC & ATMOSPHERIC RESEARCH | AQ132: CLIMATE RESEARCH | AR132: LABORATORIES & JOINT INSTITUTES | AS132: AERONOMY LABORATORY (AL) | AT132: TROPOSPHERIC SAMPLING | AU132: 50 | AV132: OFFICE OF OCEANIC & ATMOSPHERIC RESEARCH | AW132: 34 | AX132: GLOBAL MONITORING DIVISION
A133: CL | B133: CLF | C133: XXX | D133: ORF | E133: 85 | F133: 03-01-07-001 | G133: 3 | H133: E8R1G79 | I133: 0 | J133: 0 | K133: 0 | L133: 0 | M133: 0 | N133: 0 | O133: 0 | P133: 0 | Q133: 0 | R133: 0 | S133: 0 | T133: 0 | U133: 0 | V133: 291.65456 | W133: -291.65456 | X133: 0 | Y133: 0 | Z133: 0 | AA133: 0 | AB133: -291.65456 | AC133: 291.65456 | AD133: 0 | AE133: 0 | AF133: 0 | AG133: 0 | AH133: 0 | AI133: 0 | AJ133: 0 | AK133: 0 | AL133: 0 | AM133: CLIMATE | AN133: CLIMATE FORCING | AO133: UNKNOWN CAPABILITY | AP133: OCEANIC & ATMOSPHERIC RESEARCH | AQ133: CLIMATE RESEARCH | AR133: LABORATORIES & JOINT INSTITUTES | AS133: AERONOMY LABORATORY (AL) | AT133: TROPOSPHERIC SAMPLING | AU133: 06 | AV133: STAFF OFCS OF THE OFC OF THE UNDER SEC | AW133: 57 | AX133: OFC OF THE CHIEF ADMINISTRATIVE OFFICER
A134: CL | B134: CLF | C134: XXX | D134: ORF | E134: 85 | F134: 03-01-07-001 | G134: 3 | H134: E8R1G95 | I134: 0 | J134: 202855.0677 | K134: -202855.0677 | L134: 0 | M134: 0.567355002 | N134: -0.567355002 | O134: 0 | P134: 127986.3369 | Q134: -127986.3369 | R134: 0 | S134: 0.471490923 | T134: -0.471490923 | U134: 0 | V134: -30005.044 | W134: 30005.044 | X134: 0 | Y134: 0.390667655 | Z134: -0.390667655 | AA134: 0 | AB134: 178538.2616 | AC134: -178538.2616 | AD134: 0 | AE134: 0.181800848 | AF134: -0.181800848 | AG134: 0 | AH134: 479374.6222 | AI134: -479374.6222 | AJ134: 0 | AK134: 1.611314428 | AL134: -1.611314428 | AM134: CLIMATE | AN134: CLIMATE FORCING | AO134: UNKNOWN CAPABILITY | AP134: OCEANIC & ATMOSPHERIC RESEARCH | AQ134: CLIMATE RESEARCH | AR134: LABORATORIES & JOINT INSTITUTES | AS134: AERONOMY LABORATORY (AL) | AT134: TROPICAL DYNAMICS & CLIMATE | AU134: 50 | AV134: OFFICE OF OCEANIC & ATMOSPHERIC RESEARCH | AW134: 35 | AX134: PHYSICAL SCIENCES DIVISION
A135: CL | B135: CLF | C135: XXX | D135: ORF | E135: 85 | F135: 03-01-07-001 | G135: 3 | H135: E8R1GA2 | I135: 0 | J135: 368389.5624 | K135: =I135-J135 -> -368389.5624 | L135: 0 | M135: 1.437680192 | N135: =L135-M135 -> -1.437680192 | O135: 0 | P135: 435929.4691 | Q135: =O135-P135 -> -435929.4691 | R135: 0 | S135: 1.524347461 | T135: =R135-S135 -> -1.524347461 | U135: 0 | V135: 429932.3563 | W135: =U135-V135 -> -429932.3563 | X135: 0 | Y135: 1.529873039 | Z135: =X135-Y135 -> -1.529873039 | AA135: 0 | AB135: 352282.9627 | AC135: =AA135-AB135 -> -352282.9627 | AD135: 0 | AE135: 1.525593058 | AF135: =AD135-AE135 -> -1.525593058 | AG135: =I135+O135+U135+AA135 -> 0 | AH135: 1586534.35 | AI135: =AG135-AH135 -> -1586534.35 | AJ135: =L135+R135+X135+AD135 -> 0 | AK135: 6.01749375 | AL135: =AJ135-AK135 -> -6.01749375 | AM135: CLIMATE | AN135: CLIMATE FORCING | AO135: UNKNOWN CAPABILITY | AP135: OCEANIC & ATMOSPHERIC RESEARCH | AQ135: CLIMATE RESEARCH | AR135: LABORATORIES & JOINT INSTITUTES | AS135: AERONOMY LABORATORY (AL) | AT135: ATMOSPHERIC MEASURINGS | AU135: 50 | AV135: OFFICE OF OCEANIC & ATMOSPHERIC RESEARCH | AW135: 36 | AX135: CHEMICAL SCIENCES DIVISION
A136: CL | B136: CLF | C136: XXX | D136: ORF | E136: 85 | F136: 03-01-07-001 | G136: 3 | H136: E8R1GA5 | I136: 0 | J136: 152188.3474 | K136: -152188.3474 | L136: 0 | M136: 0.773580767 | N136: -0.773580767 | O136: 0 | P136: 167786.2951 | Q136: -167786.2951 | R136: 0 | S136: 0.701205074 | T136: -0.701205074 | U136: 0 | V136: 180871.1182 | W136: -180871.1182 | X136: 0 | Y136: 0.772119767 | Z136: -0.772119767 | AA136: 0 | AB136: 158493.2442 | AC136: -158493.2442 | AD136: 0 | AE136: 0.734564578 | AF136: -0.734564578 | AG136: 0 | AH136: 659339.0048 | AI136: -659339.0048 | AJ136: 0 | AK136: 2.981470186 | AL136: -2.981470186 | AM136: CLIMATE | AN136: CLIMATE FORCING | AO136: UNKNOWN CAPABILITY | AP136: OCEANIC & ATMOSPHERIC RESEARCH | AQ136: CLIMATE RESEARCH | AR136: LABORATORIES & JOINT INSTITUTES | AS136: AERONOMY LABORATORY (AL) | AT136: POLLUTION CHEMISTRY | AU136: 50 | AV136: OFFICE OF OCEANIC & ATMOSPHERIC RESEARCH | AW136: 36 | AX136: CHEMICAL SCIENCES DIVISION
A137: CL | B137: CLF | C137: XXX | D137: ORF | E137: 85 | F137: 03-01-07-001 | G137: 3 | H137: E8R1GA6 | I137: 0 | J137: 145220.1274 | K137: -145220.1274 | L137: 0 | M137: 0.567916922 | N137: -0.567916922 | O137: 0 | P137: 142763.2611 | Q137: -142763.2611 | R137: 0 | S137: 0.469149576 | T137: -0.469149576 | U137: 0 | V137: 117422.518 | W137: -117422.518 | X137: 0 | Y137: 0.431444539 | Z137: -0.431444539 | AA137: 0 | AB137: 80928.85158 | AC137: -80928.85158 | AD137: 0 | AE137: 0.37131877 | AF137: -0.37131877 | AG137: 0 | AH137: 486334.758 | AI137: -486334.758 | AJ137: 0 | AK137: 1.839829807 | AL137: -1.839829807 | AM137: CLIMATE | AN137: CLIMATE FORCING | AO137: UNKNOWN CAPABILITY | AP137: OCEANIC & ATMOSPHERIC RESEARCH | AQ137: CLIMATE RESEARCH | AR137: LABORATORIES & JOINT INSTITUTES | AS137: AERONOMY LABORATORY (AL) | AT137: ACID RAIN FIELD STUDIES | AU137: 50 | AV137: OFFICE OF OCEANIC & ATMOSPHERIC RESEARCH | AW137: 36 | AX137: CHEMICAL SCIENCES DIVISION
A138: CL | B138: CLF | C138: XXX | D138: ORF | E138: 85 | F138: 03-01-07-001 | G138: 3 | H138: E8R1GA8 | I138: 0 | J138: 651.2164 | K138: -651.2164 | L138: 0 | M138: 0 | N138: 0 | O138: 0 | P138: 875.22666 | Q138: -875.22666 | R138: 0 | S138: 0 | T138: 0 | U138: 0 | V138: 11.84384 | W138: -11.84384 | X138: 0 | Y138: 0 | Z138: 0 | AA138: 0 | AB138: 0 | AC138: 0 | AD138: 0 | AE138: 0 | AF138: 0 | AG138: 0 | AH138: 1538.2869 | AI138: -1538.2869 | AJ138: 0 | AK138: 0 | AL138: 0 | AM138: CLIMATE | AN138: CLIMATE FORCING | AO138: UNKNOWN CAPABILITY | AP138: OCEANIC & ATMOSPHERIC RESEARCH | AQ138: CLIMATE RESEARCH | AR138: LABORATORIES & JOINT INSTITUTES | AS138: AERONOMY LABORATORY (AL) | AT138: SEMINARS/LECTURES | AU138: 50 | AV138: OFFICE OF OCEANIC & ATMOSPHERIC RESEARCH | AW138: 36 | AX138: CHEMICAL SCIENCES DIVISION
A139: CL | B139: CLF | C139: XXX | D139: ORF | E139: 85 | F139: 03-01-07-001 | G139: 3 | H139: E8R1GB5 | I139: 0 | J139: 71403.83286 | K139: -71403.83286 | L139: 0 | M139: 0.228515385 | N139: -0.228515385 | O139: 0 | P139: 80565.54958 | Q139: -80565.54958 | R139: 0 | S139: 0.215328923 | T139: -0.215328923 | U139: 0 | V139: -26126.576 | W139: 26126.576 | X139: 0 | Y139: -0.074848154 | Z139: 0.074848154 | AA139: 0 | AB139: -5392.72632 | AC139: 5392.72632 | AD139: 0 | AE139: 0 | AF139: 0 | AG139: 0 | AH139: 120450.0801 | AI139: -120450.0801 | AJ139: 0 | AK139: 0.368996154 | AL139: -0.368996154 | AM139: CLIMATE | AN139: CLIMATE FORCING | AO139: UNKNOWN CAPABILITY | AP139: OCEANIC & ATMOSPHERIC RESEARCH | AQ139: CLIMATE RESEARCH | AR139: LABORATORIES & JOINT INSTITUTES | AS139: AERONOMY LABORATORY (AL) | AT139: ATM PRESSURE HET. LAB. | AU139: 50 | AV139: OFFICE OF OCEANIC & ATMOSPHERIC RESEARCH | AW139: 36 | AX139: CHEMICAL SCIENCES DIVISION
A140: CL | B140: CLF | C140: XXX | D140: ORF | E140: 85 | F140: 03-01-07-005 | G140: 3 | H140: 0000000 | I140: 0 | J140: 0 | K140: 0 | L140: 0 | M140: 0 | N140: 0 | O140: 0 | P140: 0 | Q140: 0 | R140: 0 | S140: 0 | T140: 0 | U140: 2923 | V140: 0 | W140: 2923 | X140: 0 | Y140: 0 | Z140: 0 | AA140: 0 | AB140: 0 | AC140: 0 | AD140: 0 | AE140: 0 | AF140: 0 | AG140: 2923 | AH140: 0 | AI140: 2923 | AJ140: 0 | AK140: 0 | AL140: 0 | AM140: CLIMATE | AN140: CLIMATE FORCING | AO140: UNKNOWN CAPABILITY | AP140: OCEANIC & ATMOSPHERIC RESEARCH | AQ140: CLIMATE RESEARCH | AR140: LABORATORIES & JOINT INSTITUTES | AS140: CLIMATE MONITORING & DIAG. LAB (CMDL) | AT140: NULL | AU140: 50 | AV140: OFFICE OF OCEANIC & ATMOSPHERIC RESEARCH | AW140: 36 | AX140: CHEMICAL SCIENCES DIVISION
A141: CL | B141: CLF | C141: XXX | D141: ORF | E141: 85 | F141: 03-01-07-005 | G141: 3 | H141: 0000000 | I141: 0 | J141: 0 | K141: 0 | L141: 0 | M141: 0 | N141: 0 | O141: 0 | P141: 0 | Q141: 0 | R141: 0 | S141: 0 | T141: 0 | U141: 13387 | V141: 0 | W141: 13387 | X141: 0 | Y141: 0 | Z141: 0 | AA141: 0 | AB141: 0 | AC141: 0 | AD141: 0 | AE141: 0 | AF141: 0 | AG141: 13387 | AH141: 0 | AI141: 13387 | AJ141: 0 | AK141: 0 | AL141: 0 | AM141: CLIMATE | AN141: CLIMATE FORCING | AO141: UNKNOWN CAPABILITY | AP141: OCEANIC & ATMOSPHERIC RESEARCH | AQ141: CLIMATE RESEARCH | AR141: LABORATORIES & JOINT INSTITUTES | AS141: CLIMATE MONITORING & DIAG. LAB (CMDL) | AT141: NULL | AU141: 50 | AV141: OFFICE OF OCEANIC & ATMOSPHERIC RESEARCH | AW141: 33 | AX141: EARTH SYSTEM RESEARCH LABORATORY
A142: CL | B142: CLF | C142: XXX | D142: ORF | E142: 85 | F142: 03-01-07-005 | G142: 3 | H142: 0000000 | I142: 1861240 | J142: 0 | K142: 1861240 | L142: 17.3 | M142: 0 | N142: 17.3 | O142: 2394039 | P142: 0 | Q142: 2394039 | R142: 18.1 | S142: 0 | T142: 18.1 | U142: 962506 | V142: 0 | W142: 962506 | X142: 1.09 | Y142: 0 | Z142: 1.09 | AA142: -51332.34 | AB142: 0 | AC142: -51332.34 | AD142: 0 | AE142: 0 | AF142: 0 | AG142: 5166452.66 | AH142: 0 | AI142: 5166452.66 | AJ142: 36.49 | AK142: 0 | AL142: 36.49 | AM142: CLIMATE | AN142: CLIMATE FORCING | AO142: UNKNOWN CAPABILITY | AP142: OCEANIC & ATMOSPHERIC RESEARCH | AQ142: CLIMATE RESEARCH | AR142: LABORATORIES & JOINT INSTITUTES | AS142: CLIMATE MONITORING & DIAG. LAB (CMDL) | AT142: NULL | AU142: 50 | AV142: OFFICE OF OCEANIC & ATMOSPHERIC RESEARCH | AW142: 34 | AX142: GLOBAL MONITORING DIVISION
A143: CL | B143: CLF | C143: XXX | D143: ORF | E143: 85 | F143: 03-01-07-005 | G143: 3 | H143: 0000000 | I143: 0 | J143: 0 | K143: 0 | L143: 0 | M143: 0 | N143: 0 | O143: 0 | P143: 0 | Q143: 0 | R143: 0 | S143: 0 | T143: 0 | U143: 0 | V143: 0 | W143: 0 | X143: 0 | Y143: 0 | Z143: 0 | AA143: 2508.34 | AB143: 0 | AC143: 2508.34 | AD143: 0 | AE143: 0 | AF143: 0 | AG143: 2508.34 | AH143: 0 | AI143: 2508.34 | AJ143: 0 | AK143: 0 | AL143: 0 | AM143: CLIMATE | AN143: CLIMATE FORCING | AO143: UNKNOWN CAPABILITY | AP143: OCEANIC & ATMOSPHERIC RESEARCH | AQ143: CLIMATE RESEARCH | AR143: LABORATORIES & JOINT INSTITUTES | AS143: CLIMATE MONITORING & DIAG. LAB (CMDL) | AT143: NULL | AU143: 50 | AV143: OFFICE OF OCEANIC & ATMOSPHERIC RESEARCH | AW143: 37 | AX143: GLOBAL SYSTEMS DIVISION
A144: CL | B144: CLF | C144: XXX | D144: ORF | E144: 85 | F144: 03-01-07-005 | G144: 3 | H144: 0000000 | I144: 0 | J144: 0 | K144: 0 | L144: 0 | M144: 0 | N144: 0 | O144: 0 | P144: 0 | Q144: 0 | R144: 0 | S144: 0 | T144: 0 | U144: 12995 | V144: 0 | W144: 12995 | X144: 0 | Y144: 0 | Z144: 0 | AA144: 0 | AB144: 0 | AC144: 0 | AD144: 0 | AE144: 0 | AF144: 0 | AG144: 12995 | AH144: 0 | AI144: 12995 | AJ144: 0 | AK144: 0 | AL144: 0 | AM144: CLIMATE | AN144: CLIMATE FORCING | AO144: UNKNOWN CAPABILITY | AP144: OCEANIC & ATMOSPHERIC RESEARCH | AQ144: CLIMATE RESEARCH | AR144: LABORATORIES & JOINT INSTITUTES | AS144: CLIMATE MONITORING & DIAG. LAB (CMDL) | AT144: NULL | AU144: 50 | AV144: OFFICE OF OCEANIC & ATMOSPHERIC RESEARCH | AW144: 35 | AX144: PHYSICAL SCIENCES DIVISION
A145: CL | B145: CLF | C145: XXX | D145: ORF | E145: 85 | F145: 03-01-07-005 | G145: 3 | H145: E8R1M02 | I145: 0 | J145: 0 | K145: 0 | L145: 0 | M145: 0 | N145: 0 | O145: 0 | P145: 0 | Q145: 0 | R145: 0 | S145: 0 | T145: 0 | U145: 0 | V145: 0 | W145: 0 | X145: 0 | Y145: 0 | Z145: 0 | AA145: 0 | AB145: 2443.12316 | AC145: -2443.12316 | AD145: 0 | AE145: 0 | AF145: 0 | AG145: 0 | AH145: 2443.12316 | AI145: -2443.12316 | AJ145: 0 | AK145: 0 | AL145: 0 | AM145: CLIMATE | AN145: CLIMATE FORCING | AO145: UNKNOWN CAPABILITY | AP145: OCEANIC & ATMOSPHERIC RESEARCH | AQ145: CLIMATE RESEARCH | AR145: LABORATORIES & JOINT INSTITUTES | AS145: CLIMATE MONITORING & DIAG. LAB (CMDL) | AT145: OFFICE OF GMCC DIRECTOR | AU145: 50 | AV145: OFFICE OF OCEANIC & ATMOSPHERIC RESEARCH | AW145: 37 | AX145: GLOBAL SYSTEMS DIVISION
A146: CL | B146: CLF | C146: XXX | D146: ORF | E146: 85 | F146: 03-01-07-005 | G146: 3 | H146: E8R1M02 | I146: 0 | J146: 23577.51086 | K146: -23577.51086 | L146: 0 | M146: 0 | N146: 0 | O146: 0 | P146: 105227.551 | Q146: -105227.551 | R146: 0 | S146: 0 | T146: 0 | U146: 0 | V146: 290565.3553 | W146: -290565.3553 | X146: 0 | Y146: 0 | Z146: 0 | AA146: 0 | AB146: -302081.8144 | AC146: 302081.8144 | AD146: 0 | AE146: 0 | AF146: 0 | AG146: 0 | AH146: 117288.6027 | AI146: -117288.6027 | AJ146: 0 | AK146: 0 | AL146: 0 | AM146: CLIMATE | AN146: CLIMATE FORCING | AO146: UNKNOWN CAPABILITY | AP146: OCEANIC & ATMOSPHERIC RESEARCH | AQ146: CLIMATE RESEARCH | AR146: LABORATORIES & JOINT INSTITUTES | AS146: CLIMATE MONITORING & DIAG. LAB (CMDL) | AT146: OFFICE OF GMCC DIRECTOR | AU146: 50 | AV146: OFFICE OF OCEANIC & ATMOSPHERIC RESEARCH | AW146: 34 | AX146: GLOBAL MONITORING DIVISION
A147: CL | B147: CLF | C147: XXX | D147: ORF | E147: 85 | F147: 03-01-07-005 | G147: 3 | H147: E8R1M02 | I147: 0 | J147: 0 | K147: 0 | L147: 0 | M147: 0 | N147: 0 | O147: 0 | P147: 0 | Q147: 0 | R147: 0 | S147: 0 | T147: 0 | U147: 0 | V147: 0 | W147: 0 | X147: 0 | Y147: 0 | Z147: 0 | AA147: 0 | AB147: 0 | AC147: 0 | AD147: 0 | AE147: 0 | AF147: 0 | AG147: 0 | AH147: 0 | AI147: 0 | AJ147: 0 | AK147: 0 | AL147: 0 | AM147: CLIMATE | AN147: CLIMATE FORCING | AO147: UNKNOWN CAPABILITY | AP147: OCEANIC & ATMOSPHERIC RESEARCH | AQ147: CLIMATE RESEARCH | AR147: LABORATORIES & JOINT INSTITUTES | AS147: CLIMATE MONITORING & DIAG. LAB (CMDL) | AT147: OFFICE OF GMCC DIRECTOR | AU147: 50 | AV147: OFFICE OF OCEANIC & ATMOSPHERIC RESEARCH | AW147: 24 | AX147: GEOPHYSICAL FLUID DYNAMICS LABORATORY
A148: CL | B148: CLF | C148: XXX | D148: ORF | E148: 85 | F148: 03-01-07-005 | G148: 3 | H148: E8R1M02 | I148: 0 | J148: 0 | K148: 0 | L148: 0 | M148: 0 | N148: 0 | O148: 0 | P148: 0 | Q148: 0 | R148: 0 | S148: 0 | T148: 0 | U148: 0 | V148: 61.15746 | W148: -61.15746 | X148: 0 | Y148: 0 | Z148: 0 | AA148: 0 | AB148: -61.15746 | AC148: 61.15746 | AD148: 0 | AE148: 0 | AF148: 0 | AG148: 0 | AH148: 0 | AI148: 0 | AJ148: 0 | AK148: 0 | AL148: 0 | AM148: CLIMATE | AN148: CLIMATE FORCING | AO148: UNKNOWN CAPABILITY | AP148: OCEANIC & ATMOSPHERIC RESEARCH | AQ148: CLIMATE RESEARCH | AR148: LABORATORIES & JOINT INSTITUTES | AS148: CLIMATE MONITORING & DIAG. LAB (CMDL) | AT148: OFFICE OF GMCC DIRECTOR | AU148: 50 | AV148: OFFICE OF OCEANIC & ATMOSPHERIC RESEARCH | AW148: 33 | AX148: EARTH SYSTEM RESEARCH LABORATORY
A149: CL | B149: CLF | C149: XXX | D149: ORF | E149: 85 | F149: 03-01-07-005 | G149: 3 | H149: E8R1M05 | I149: 0 | J149: 0 | K149: 0 | L149: 0 | M149: 0 | N149: 0 | O149: 0 | P149: 2205.3308 | Q149: -2205.3308 | R149: 0 | S149: 0 | T149: 0 | U149: 0 | V149: 4588.72828 | W149: -4588.72828 | X149: 0 | Y149: 0 | Z149: 0 | AA149: 0 | AB149: -6457.39598 | AC149: 6457.39598 | AD149: 0 | AE149: 0 | AF149: 0 | AG149: 0 | AH149: 336.6631 | AI149: -336.6631 | AJ149: 0 | AK149: 0 | AL149: 0 | AM149: CLIMATE | AN149: CLIMATE FORCING | AO149: UNKNOWN CAPABILITY | AP149: OCEANIC & ATMOSPHERIC RESEARCH | AQ149: CLIMATE RESEARCH | AR149: LABORATORIES & JOINT INSTITUTES | AS149: CLIMATE MONITORING & DIAG. LAB (CMDL) | AT149: MAUNA LOA OBSERVATORY | AU149: 50 | AV149: OFFICE OF OCEANIC & ATMOSPHERIC RESEARCH | AW149: 31 | AX149: CLIMATE MONITORING AND DIAGNOSTICS LAB
A150: CL | B150: CLF | C150: XXX | D150: ORF | E150: 85 | F150: 03-01-07-005 | G150: 3 | H150: E8R1M05 | I150: 0 | J150: 32089.49166 | K150: -32089.49166 | L150: 0 | M150: 0 | N150: 0 | O150: 0 | P150: 95123.84966 | Q150: -95123.84966 | R150: 0 | S150: 0 | T150: 0 | U150: 0 | V150: 178029.5998 | W150: -178029.5998 | X150: 0 | Y150: 0.074923077 | Z150: -0.074923077 | AA150: 0 | AB150: -242750.8674 | AC150: 242750.8674 | AD150: 0 | AE150: 0 | AF150: 0 | AG150: 0 | AH150: 62492.07376 | AI150: -62492.07376 | AJ150: 0 | AK150: 0.074923077 | AL150: -0.074923077 | AM150: CLIMATE | AN150: CLIMATE FORCING | AO150: UNKNOWN CAPABILITY | AP150: OCEANIC & ATMOSPHERIC RESEARCH | AQ150: CLIMATE RESEARCH | AR150: LABORATORIES & JOINT INSTITUTES | AS150: CLIMATE MONITORING & DIAG. LAB (CMDL) | AT150: MAUNA LOA OBSERVATORY | AU150: 50 | AV150: OFFICE OF OCEANIC & ATMOSPHERIC RESEARCH | AW150: 34 | AX150: GLOBAL MONITORING DIVISION
A151: CL | B151: CLF | C151: XXX | D151: ORF | E151: 85 | F151: 03-01-07-005 | G151: 3 | H151: E8R1M05 | I151: 0 | J151: 0 | K151: 0 | L151: 0 | M151: 0 | N151: 0 | O151: 0 | P151: 0 | Q151: 0 | R151: 0 | S151: 0 | T151: 0 | U151: 0 | V151: 109.6237 | W151: -109.6237 | X151: 0 | Y151: 0 | Z151: 0 | AA151: 0 | AB151: -109.6237 | AC151: 109.6237 | AD151: 0 | AE151: 0 | AF151: 0 | AG151: 0 | AH151: 0 | AI151: 0 | AJ151: 0 | AK151: 0 | AL151: 0 | AM151: CLIMATE | AN151: CLIMATE FORCING | AO151: UNKNOWN CAPABILITY | AP151: OCEANIC & ATMOSPHERIC RESEARCH | AQ151: CLIMATE RESEARCH | AR151: LABORATORIES & JOINT INSTITUTES | AS151: CLIMATE MONITORING & DIAG. LAB (CMDL) | AT151: MAUNA LOA OBSERVATORY | AU151: 50 | AV151: OFFICE OF OCEANIC & ATMOSPHERIC RESEARCH | AW151: 10 | AX151: OFFICE OF CH FIN / CH ADMIN OFFCR
A152: CL | B152: CLF | C152: XXX | D152: ORF | E152: 85 | F152: 03-01-07-005 | G152: 3 | H152: E8R1M07 | I152: 0 | J152: 0 | K152: 0 | L152: 0 | M152: 0 | N152: 0 | O152: 0 | P152: 0 | Q152: 0 | R152: 0 | S152: 0 | T152: 0 | U152: 0 | V152: 0 | W152: 0 | X152: 0 | Y152: 0 | Z152: 0 | AA152: 0 | AB152: 922.65072 | AC152: -922.65072 | AD152: 0 | AE152: 0 | AF152: 0 | AG152: 0 | AH152: 922.65072 | AI152: -922.65072 | AJ152: 0 | AK152: 0 | AL152: 0 | AM152: CLIMATE | AN152: CLIMATE FORCING | AO152: UNKNOWN CAPABILITY | AP152: OCEANIC & ATMOSPHERIC RESEARCH | AQ152: CLIMATE RESEARCH | AR152: LABORATORIES & JOINT INSTITUTES | AS152: CLIMATE MONITORING & DIAG. LAB (CMDL) | AT152: CARBON DIOXIDE | AU152: 99 | AV152: CAMS SYSTEM - FINANCE USE ONLY | AW152: 03 | AX152: ACCOUNTING USE ONLY - NOAA
A153: CL | B153: CLF | C153: XXX | D153: ORF | E153: 85 | F153: 03-01-07-005 | G153: 3 | H153: E8R1M07 | I153: 0 | J153: 29048.6734 | K153: -29048.6734 | L153: 0 | M153: 0 | N153: 0 | O153: 0 | P153: 73336.1125 | Q153: -73336.1125 | R153: 0 | S153: 0 | T153: 0 | U153: 0 | V153: 40842.56668 | W153: -40842.56668 | X153: 0 | Y153: 0 | Z153: 0 | AA153: 0 | AB153: -60950.15384 | AC153: 60950.15384 | AD153: 0 | AE153: 0 | AF153: 0 | AG153: 0 | AH153: 82277.19874 | AI153: -82277.19874 | AJ153: 0 | AK153: 0 | AL153: 0 | AM153: CLIMATE | AN153: CLIMATE FORCING | AO153: UNKNOWN CAPABILITY | AP153: OCEANIC & ATMOSPHERIC RESEARCH | AQ153: CLIMATE RESEARCH | AR153: LABORATORIES & JOINT INSTITUTES | AS153: CLIMATE MONITORING & DIAG. LAB (CMDL) | AT153: CARBON DIOXIDE | AU153: 50 | AV153: OFFICE OF OCEANIC & ATMOSPHERIC RESEARCH | AW153: 34 | AX153: GLOBAL MONITORING DIVISION
A154: CL | B154: CLF | C154: XXX | D154: ORF | E154: 85 | F154: 03-01-07-005 | G154: 3 | H154: E8R1M08 | I154: 0 | J154: 0 | K154: 0 | L154: 0 | M154: 0 | N154: 0 | O154: 0 | P154: 0 | Q154: 0 | R154: 0 | S154: 0 | T154: 0 | U154: 0 | V154: 12657.13 | W154: -12657.13 | X154: 0 | Y154: 0 | Z154: 0 | AA154: 0 | AB154: 0 | AC154: 0 | AD154: 0 | AE154: 0 | AF154: 0 | AG154: 0 | AH154: 12657.13 | AI154: -12657.13 | AJ154: 0 | AK154: 0 | AL154: 0 | AM154: CLIMATE | AN154: CLIMATE FORCING | AO154: UNKNOWN CAPABILITY | AP154: OCEANIC & ATMOSPHERIC RESEARCH | AQ154: CLIMATE RESEARCH | AR154: LABORATORIES & JOINT INSTITUTES | AS154: CLIMATE MONITORING & DIAG. LAB (CMDL) | AT154: OFFICE OF DIRECTOR, GMCC SALARIES | AU154: 50 | AV154: OFFICE OF OCEANIC & ATMOSPHERIC RESEARCH | AW154: 35 | AX154: PHYSICAL SCIENCES DIVISION
A155: CL | B155: CLF | C155: XXX | D155: ORF | E155: 85 | F155: 03-01-07-005 | G155: 3 | H155: E8R1M08 | I155: 0 | J155: 1372618.714 | K155: -1372618.714 | L155: 0 | M155: 4.866487983 | N155: -4.866487983 | O155: 0 | P155: 1595514.153 | Q155: -1595514.153 | R155: 0 | S155: 4.457389251 | T155: -4.457389251 | U155: 0 | V155: 1287178.207 | W155: -1287178.207 | X155: 0 | Y155: 5.35197079 | Z155: -5.35197079 | AA155: 0 | AB155: 117897.2553 | AC155: -117897.2553 | AD155: 0 | AE155: 4.037829386 | AF155: -4.037829386 | AG155: 0 | AH155: 4373208.329 | AI155: -4373208.329 | AJ155: 0 | AK155: 18.71367741 | AL155: -18.71367741 | AM155: CLIMATE | AN155: CLIMATE FORCING | AO155: UNKNOWN CAPABILITY | AP155: OCEANIC & ATMOSPHERIC RESEARCH | AQ155: CLIMATE RESEARCH | AR155: LABORATORIES & JOINT INSTITUTES | AS155: CLIMATE MONITORING & DIAG. LAB (CMDL) | AT155: OFFICE OF DIRECTOR, GMCC SALARIES | AU155: 50 | AV155: OFFICE OF OCEANIC & ATMOSPHERIC RESEARCH | AW155: 34 | AX155: GLOBAL MONITORING DIVISION
A156: CL | B156: CLF | C156: XXX | D156: ORF | E156: 85 | F156: 03-01-07-005 | G156: 3 | H156: E8R1M08 | I156: 0 | J156: 0 | K156: 0 | L156: 0 | M156: 0 | N156: 0 | O156: 0 | P156: 0 | Q156: 0 | R156: 0 | S156: 0 | T156: 0 | U156: 0 | V156: 0 | W156: 0 | X156: 0 | Y156: 0 | Z156: 0 | AA156: 0 | AB156: 13038.938 | AC156: -13038.938 | AD156: 0 | AE156: 0 | AF156: 0 | AG156: 0 | AH156: 13038.938 | AI156: -13038.938 | AJ156: 0 | AK156: 0 | AL156: 0 | AM156: CLIMATE | AN156: CLIMATE FORCING | AO156: UNKNOWN CAPABILITY | AP156: OCEANIC & ATMOSPHERIC RESEARCH | AQ156: CLIMATE RESEARCH | AR156: LABORATORIES & JOINT INSTITUTES | AS156: CLIMATE MONITORING & DIAG. LAB (CMDL) | AT156: OFFICE OF DIRECTOR, GMCC SALARIES | AU156: 50 | AV156: OFFICE OF OCEANIC & ATMOSPHERIC RESEARCH | AW156: 33 | AX156: EARTH SYSTEM RESEARCH LABORATORY
A157: CL | B157: CLF | C157: XXX | D157: ORF | E157: 85 | F157: 03-01-07-005 | G157: 3 | H157: E8R1M08 | I157: 0 | J157: 0 | K157: 0 | L157: 0 | M157: 0 | N157: 0 | O157: 0 | P157: 0 | Q157: 0 | R157: 0 | S157: 0 | T157: 0 | U157: 0 | V157: 2815.81452 | W157: -2815.81452 | X157: 0 | Y157: 0 | Z157: 0 | AA157: 0 | AB157: 33.0186 | AC157: -33.0186 | AD157: 0 | AE157: 0 | AF157: 0 | AG157: 0 | AH157: 2848.83312 | AI157: -2848.83312 | AJ157: 0 | AK157: 0 | AL157: 0 | AM157: CLIMATE | AN157: CLIMATE FORCING | AO157: UNKNOWN CAPABILITY | AP157: OCEANIC & ATMOSPHERIC RESEARCH | AQ157: CLIMATE RESEARCH | AR157: LABORATORIES & JOINT INSTITUTES | AS157: CLIMATE MONITORING & DIAG. LAB (CMDL) | AT157: OFFICE OF DIRECTOR, GMCC SALARIES | AU157: 50 | AV157: OFFICE OF OCEANIC & ATMOSPHERIC RESEARCH | AW157: 36 | AX157: CHEMICAL SCIENCES DIVISION
A158: CL | B158: CLF | C158: XXX | D158: ORF | E158: 85 | F158: 03-01-07-005 | G158: 3 | H158: E8R1M11 | I158: 0 | J158: 3313.3532 | K158: -3313.3532 | L158: 0 | M158: 0 | N158: 0 | O158: 0 | P158: 14050.70972 | Q158: -14050.70972 | R158: 0 | S158: 0 | T158: 0 | U158: 0 | V158: 18641.61976 | W158: -18641.61976 | X158: 0 | Y158: 0 | Z158: 0 | AA158: 0 | AB158: -5789.93326 | AC158: 5789.93326 | AD158: 0 | AE158: 0 | AF158: 0 | AG158: 0 | AH158: 30215.74942 | AI158: -30215.74942 | AJ158: 0 | AK158: 0 | AL158: 0 | AM158: CLIMATE | AN158: CLIMATE FORCING | AO158: UNKNOWN CAPABILITY | AP158: OCEANIC & ATMOSPHERIC RESEARCH | AQ158: CLIMATE RESEARCH | AR158: LABORATORIES & JOINT INSTITUTES | AS158: CLIMATE MONITORING & DIAG. LAB (CMDL) | AT158: GMCC - BARROW | AU158: 50 | AV158: OFFICE OF OCEANIC & ATMOSPHERIC RESEARCH | AW158: 34 | AX158: GLOBAL MONITORING DIVISION
A159: CL | B159: CLF | C159: XXX | D159: ORF | E159: 85 | F159: 03-01-07-005 | G159: 3 | H159: E8R1M14 | I159: 0 | J159: 16634.69276 | K159: -16634.69276 | L159: 0 | M159: 0 | N159: 0 | O159: 0 | P159: 30451.35028 | Q159: -30451.35028 | R159: 0 | S159: 0 | T159: 0 | U159: 0 | V159: 18570.12816 | W159: -18570.12816 | X159: 0 | Y159: 0 | Z159: 0 | AA159: 0 | AB159: -30029.59854 | AC159: 30029.59854 | AD159: 0 | AE159: 0 | AF159: 0 | AG159: 0 | AH159: 35626.57266 | AI159: -35626.57266 | AJ159: 0 | AK159: 0 | AL159: 0 | AM159: CLIMATE | AN159: CLIMATE FORCING | AO159: UNKNOWN CAPABILITY | AP159: OCEANIC & ATMOSPHERIC RESEARCH | AQ159: CLIMATE RESEARCH | AR159: LABORATORIES & JOINT INSTITUTES | AS159: CLIMATE MONITORING & DIAG. LAB (CMDL) | AT159: GMCC - SAMOA | AU159: 50 | AV159: OFFICE OF OCEANIC & ATMOSPHERIC RESEARCH | AW159: 34 | AX159: GLOBAL MONITORING DIVISION
A160: CL | B160: CLF | C160: XXX | D160: ORF | E160: 85 | F160: 03-01-07-005 | G160: 3 | H160: E8R1M16 | I160: 0 | J160: 0 | K160: 0 | L160: 0 | M160: 0 | N160: 0 | O160: 0 | P160: 1135.21648 | Q160: -1135.21648 | R160: 0 | S160: 0 | T160: 0 | U160: 0 | V160: 2166.43898 | W160: -2166.43898 | X160: 0 | Y160: 0 | Z160: 0 | AA160: 0 | AB160: -3301.65546 | AC160: 3301.65546 | AD160: 0 | AE160: 0 | AF160: 0 | AG160: 0 | AH160: 0 | AI160: 0 | AJ160: 0 | AK160: 0 | AL160: 0 | AM160: CLIMATE | AN160: CLIMATE FORCING | AO160: UNKNOWN CAPABILITY | AP160: OCEANIC & ATMOSPHERIC RESEARCH | AQ160: CLIMATE RESEARCH | AR160: LABORATORIES & JOINT INSTITUTES | AS160: CLIMATE MONITORING & DIAG. LAB (CMDL) | AT160: GMCC - SOUTH POLE | AU160: 50 | AV160: OFFICE OF OCEANIC & ATMOSPHERIC RESEARCH | AW160: 34 | AX160: GLOBAL MONITORING DIVISION
A161: CL | B161: CLF | C161: XXX | D161: ORF | E161: 85 | F161: 03-01-07-005 | G161: 3 | H161: E8R1M26 | I161: 0 | J161: 2096.00904 | K161: -2096.00904 | L161: 0 | M161: 0 | N161: 0 | O161: 0 | P161: 2096.00904 | Q161: -2096.00904 | R161: 0 | S161: 0 | T161: 0 | U161: 0 | V161: 2160.63394 | W161: -2160.63394 | X161: 0 | Y161: 0 | Z161: 0 | AA161: 0 | AB161: -641.63224 | AC161: 641.63224 | AD161: 0 | AE161: 0 | AF161: 0 | AG161: 0 | AH161: 5711.01978 | AI161: -5711.01978 | AJ161: 0 | AK161: 0 | AL161: 0 | AM161: CLIMATE | AN161: CLIMATE FORCING | AO161: UNKNOWN CAPABILITY | AP161: OCEANIC & ATMOSPHERIC RESEARCH | AQ161: CLIMATE RESEARCH | AR161: LABORATORIES & JOINT INSTITUTES | AS161: CLIMATE MONITORING & DIAG. LAB (CMDL) | AT161: ADAM GROUP (CO2) | AU161: 50 | AV161: OFFICE OF OCEANIC & ATMOSPHERIC RESEARCH | AW161: 31 | AX161: CLIMATE MONITORING AND DIAGNOSTICS LAB
A162: CL | B162: CLF | C162: XXX | D162: ORF | E162: 85 | F162: 03-01-07-005 | G162: 3 | H162: E8R1M26 | I162: 0 | J162: 302.15428 | K162: -302.15428 | L162: 0 | M162: 0 | N162: 0 | O162: 0 | P162: 25211.7952 | Q162: -25211.7952 | R162: 0 | S162: 0 | T162: 0 | U162: 0 | V162: 25491.17736 | W162: -25491.17736 | X162: 0 | Y162: 0 | Z162: 0 | AA162: 0 | AB162: -50359.10186 | AC162: 50359.10186 | AD162: 0 | AE162: 0 | AF162: 0 | AG162: 0 | AH162: 646.02498 | AI162: -646.02498 | AJ162: 0 | AK162: 0 | AL162: 0 | AM162: CLIMATE | AN162: CLIMATE FORCING | AO162: UNKNOWN CAPABILITY | AP162: OCEANIC & ATMOSPHERIC RESEARCH | AQ162: CLIMATE RESEARCH | AR162: LABORATORIES & JOINT INSTITUTES | AS162: CLIMATE MONITORING & DIAG. LAB (CMDL) | AT162: ADAM GROUP (CO2) | AU162: 50 | AV162: OFFICE OF OCEANIC & ATMOSPHERIC RESEARCH | AW162: 34 | AX162: GLOBAL MONITORING DIVISION
A163: CL | B163: CLF | C163: XXX | D163: ORF | E163: 85 | F163: 03-01-07-005 | G163: 3 | H163: E8R1M28 | I163: 0 | J163: 426.68992 | K163: -426.68992 | L163: 0 | M163: 0 | N163: 0 | O163: 0 | P163: 94.5754 | Q163: -94.5754 | R163: 0 | S163: 0 | T163: 0 | U163: 0 | V163: 4552.22276 | W163: -4552.22276 | X163: 0 | Y163: 0 | Z163: 0 | AA163: 0 | AB163: 22291.18802 | AC163: -22291.18802 | AD163: 0 | AE163: 0 | AF163: 0 | AG163: 0 | AH163: 27364.6761 | AI163: -27364.6761 | AJ163: 0 | AK163: 0 | AL163: 0 | AM163: CLIMATE | AN163: CLIMATE FORCING | AO163: UNKNOWN CAPABILITY | AP163: OCEANIC & ATMOSPHERIC RESEARCH | AQ163: CLIMATE RESEARCH | AR163: LABORATORIES & JOINT INSTITUTES | AS163: CLIMATE MONITORING & DIAG. LAB (CMDL) | AT163: MONITOR AEROSOLS & RADIATION | AU163: 50 | AV163: OFFICE OF OCEANIC & ATMOSPHERIC RESEARCH | AW163: 34 | AX163: GLOBAL MONITORING DIVISION
A164: CL | B164: CLF | C164: XXX | D164: ORF | E164: 85 | F164: 03-01-07-005 | G164: 3 | H164: E8R1M34 | I164: 0 | J164: 5310.90058 | K164: -5310.90058 | L164: 0 | M164: 0 | N164: 0 | O164: 0 | P164: 77672.53582 | Q164: -77672.53582 | R164: 0 | S164: 0 | T164: 0 | U164: 0 | V164: 120646.6041 | W164: -120646.6041 | X164: 0 | Y164: 0 | Z164: 0 | AA164: 0 | AB164: 41610.04946 | AC164: -41610.04946 | AD164: 0 | AE164: 0.075391346 | AF164: -0.075391346 | AG164: 0 | AH164: 245240.09 | AI164: -245240.09 | AJ164: 0 | AK164: 0.075391346 | AL164: -0.075391346 | AM164: CLIMATE | AN164: CLIMATE FORCING | AO164: UNKNOWN CAPABILITY | AP164: OCEANIC & ATMOSPHERIC RESEARCH | AQ164: CLIMATE RESEARCH | AR164: LABORATORIES & JOINT INSTITUTES | AS164: CLIMATE MONITORING & DIAG. LAB (CMDL) | AT164: STRATOSPHERIC RESEARCH & MONITORING | AU164: 50 | AV164: OFFICE OF OCEANIC & ATMOSPHERIC RESEARCH | AW164: 34 | AX164: GLOBAL MONITORING DIVISION
A165: CL | B165: CLF | C165: XXX | D165: ORF | E165: 85 | F165: 03-01-07-005 | G165: 3 | H165: E8R1M34 | I165: 0 | J165: 0 | K165: 0 | L165: 0 | M165: 0 | N165: 0 | O165: 0 | P165: 112.61388 | Q165: -112.61388 | R165: 0 | S165: 0 | T165: 0 | U165: 0 | V165: 0 | W165: 0 | X165: 0 | Y165: 0 | Z165: 0 | AA165: 0 | AB165: -112.61388 | AC165: 112.61388 | AD165: 0 | AE165: 0 | AF165: 0 | AG165: 0 | AH165: 0 | AI165: 0 | AJ165: 0 | AK165: 0 | AL165: 0 | AM165: CLIMATE | AN165: CLIMATE FORCING | AO165: UNKNOWN CAPABILITY | AP165: OCEANIC & ATMOSPHERIC RESEARCH | AQ165: CLIMATE RESEARCH | AR165: LABORATORIES & JOINT INSTITUTES | AS165: CLIMATE MONITORING & DIAG. LAB (CMDL) | AT165: STRATOSPHERIC RESEARCH & MONITORING | AU165: 50 | AV165: OFFICE OF OCEANIC & ATMOSPHERIC RESEARCH | AW165: 33 | AX165: EARTH SYSTEM RESEARCH LABORATORY
A166: CL | B166: CLF | C166: XXX | D166: ORF | E166: 85 | F166: 03-01-07-005 | G166: 3 | H166: E8R1M34 | I166: 0 | J166: 0 | K166: 0 | L166: 0 | M166: 0 | N166: 0 | O166: 0 | P166: 65.00476 | Q166: -65.00476 | R166: 0 | S166: 0 | T166: 0 | U166: 0 | V166: 0.7792 | W166: -0.7792 | X166: 0 | Y166: 0 | Z166: 0 | AA166: 0 | AB166: 1.34412 | AC166: -1.34412 | AD166: 0 | AE166: 0 | AF166: 0 | AG166: 0 | AH166: 67.12808 | AI166: -67.12808 | AJ166: 0 | AK166: 0 | AL166: 0 | AM166: CLIMATE | AN166: CLIMATE FORCING | AO166: UNKNOWN CAPABILITY | AP166: OCEANIC & ATMOSPHERIC RESEARCH | AQ166: CLIMATE RESEARCH | AR166: LABORATORIES & JOINT INSTITUTES | AS166: CLIMATE MONITORING & DIAG. LAB (CMDL) | AT166: STRATOSPHERIC RESEARCH & MONITORING | AU166: 50 | AV166: OFFICE OF OCEANIC & ATMOSPHERIC RESEARCH | AW166: 31 | AX166: CLIMATE MONITORING AND DIAGNOSTICS LAB
A167: CL | B167: CLF | C167: XXX | D167: ORF | E167: 85 | F167: 03-01-07-005 | G167: 3 | H167: E8R1M46 | I167: 0 | J167: 0 | K167: 0 | L167: 0 | M167: 0 | N167: 0 | O167: 0 | P167: 12.54512 | Q167: -12.54512 | R167: 0 | S167: 0 | T167: 0 | U167: 0 | V167: 5.9901 | W167: -5.9901 | X167: 0 | Y167: 0 | Z167: 0 | AA167: 0 | AB167: 117.28908 | AC167: -117.28908 | AD167: 0 | AE167: 0 | AF167: 0 | AG167: 0 | AH167: 135.8243 | AI167: -135.8243 | AJ167: 0 | AK167: 0 | AL167: 0 | AM167: CLIMATE | AN167: CLIMATE FORCING | AO167: UNKNOWN CAPABILITY | AP167: OCEANIC & ATMOSPHERIC RESEARCH | AQ167: CLIMATE RESEARCH | AR167: LABORATORIES & JOINT INSTITUTES | AS167: CLIMATE MONITORING & DIAG. LAB (CMDL) | AT167: RITS/HALO-CARBONS ETC. | AU167: 50 | AV167: OFFICE OF OCEANIC & ATMOSPHERIC RESEARCH | AW167: 31 | AX167: CLIMATE MONITORING AND DIAGNOSTICS LAB
A168: CL | B168: CLF | C168: XXX | D168: ORF | E168: 85 | F168: 03-01-07-005 | G168: 3 | H168: E8R1M46 | I168: 0 | J168: 2409.86106 | K168: -2409.86106 | L168: 0 | M168: 0 | N168: 0 | O168: 0 | P168: 3940.9014 | Q168: -3940.9014 | R168: 0 | S168: 0 | T168: 0 | U168: 0 | V168: 9384.28546 | W168: -9384.28546 | X168: 0 | Y168: 0 | Z168: 0 | AA168: 0 | AB168: 44987.26784 | AC168: -44987.26784 | AD168: 0 | AE168: 0 | AF168: 0 | AG168: 0 | AH168: 60722.31576 | AI168: -60722.31576 | AJ168: 0 | AK168: 0 | AL168: 0 | AM168: CLIMATE | AN168: CLIMATE FORCING | AO168: UNKNOWN CAPABILITY | AP168: OCEANIC & ATMOSPHERIC RESEARCH | AQ168: CLIMATE RESEARCH | AR168: LABORATORIES & JOINT INSTITUTES | AS168: CLIMATE MONITORING & DIAG. LAB (CMDL) | AT168: RITS/HALO-CARBONS ETC. | AU168: 50 | AV168: OFFICE OF OCEANIC & ATMOSPHERIC RESEARCH | AW168: 34 | AX168: GLOBAL MONITORING DIVISION
A169: CL | B169: CLF | C169: XXX | D169: ORF | E169: 85 | F169: 03-01-07-005 | G169: 3 | H169: E8R1MAS | I169: 0 | J169: 0 | K169: 0 | L169: 0 | M169: 0 | N169: 0 | O169: 0 | P169: 0 | Q169: 0 | R169: 0 | S169: 0 | T169: 0 | U169: 0 | V169: 0 | W169: 0 | X169: 0 | Y169: 0 | Z169: 0 | AA169: 0 | AB169: 0 | AC169: 0 | AD169: 0 | AE169: 0 | AF169: 0 | AG169: 0 | AH169: 0 | AI169: 0 | AJ169: 0 | AK169: 0 | AL169: 0 | AM169: CLIMATE | AN169: CLIMATE FORCING | AO169: UNKNOWN CAPABILITY | AP169: OCEANIC & ATMOSPHERIC RESEARCH | AQ169: CLIMATE RESEARCH | AR169: LABORATORIES & JOINT INSTITUTES | AS169: CLIMATE MONITORING & DIAG. LAB (CMDL) | AT169: PMEL- AEROSOL STUDIES | AU169: 50 | AV169: OFFICE OF OCEANIC & ATMOSPHERIC RESEARCH | AW169: 27 | AX169: PACIFIC MARINE ENVIRONMENTAL LABORATORY
A170: CL | B170: CLF | C170: XXX | D170: ORF | E170: 85 | F170: 03-01-07-005 | G170: 3 | H170: E8R1MB1 | I170: 0 | J170: 0 | K170: 0 | L170: 0 | M170: 0 | N170: 0 | O170: 0 | P170: 0 | Q170: 0 | R170: 0 | S170: 0 | T170: 0 | U170: 0 | V170: 0 | W170: 0 | X170: 0 | Y170: 0 | Z170: 0 | AA170: 0 | AB170: 918.27746 | AC170: -918.27746 | AD170: 0 | AE170: 0 | AF170: 0 | AG170: 0 | AH170: 918.27746 | AI170: -918.27746 | AJ170: 0 | AK170: 0 | AL170: 0 | AM170: CLIMATE | AN170: CLIMATE FORCING | AO170: UNKNOWN CAPABILITY | AP170: OCEANIC & ATMOSPHERIC RESEARCH | AQ170: CLIMATE RESEARCH | AR170: LABORATORIES & JOINT INSTITUTES | AS170: CLIMATE MONITORING & DIAG. LAB (CMDL) | AT170: RITS/METHANE & CO., AND OZONE ANALYSIS | AU170: 50 | AV170: OFFICE OF OCEANIC & ATMOSPHERIC RESEARCH | AW170: 31 | AX170: CLIMATE MONITORING AND DIAGNOSTICS LAB
A171: CL | B171: CLF | C171: XXX | D171: ORF | E171: 85 | F171: 03-01-07-005 | G171: 3 | H171: E8R1MB1 | I171: 0 | J171: 8919.1615 | K171: -8919.1615 | L171: 0 | M171: 0 | N171: 0 | O171: 0 | P171: 9234.18232 | Q171: -9234.18232 | R171: 0 | S171: 0 | T171: 0 | U171: 0 | V171: 3815.8398 | W171: -3815.8398 | X171: 0 | Y171: 0 | Z171: 0 | AA171: 0 | AB171: 1245.0155 | AC171: -1245.0155 | AD171: 0 | AE171: 0 | AF171: 0 | AG171: 0 | AH171: 23214.19912 | AI171: -23214.19912 | AJ171: 0 | AK171: 0 | AL171: 0 | AM171: CLIMATE | AN171: CLIMATE FORCING | AO171: UNKNOWN CAPABILITY | AP171: OCEANIC & ATMOSPHERIC RESEARCH | AQ171: CLIMATE RESEARCH | AR171: LABORATORIES & JOINT INSTITUTES | AS171: CLIMATE MONITORING & DIAG. LAB (CMDL) | AT171: RITS/METHANE & CO., AND OZONE ANALYSIS | AU171: 50 | AV171: OFFICE OF OCEANIC & ATMOSPHERIC RESEARCH | AW171: 34 | AX171: GLOBAL MONITORING DIVISION
A172: CL | B172: CLF | C172: XXX | D172: ORF | E172: 85 | F172: 03-01-07-005 | G172: 3 | H172: E8R1MRS | I172: 0 | J172: 0 | K172: 0 | L172: 0 | M172: 0 | N172: 0 | O172: 0 | P172: 0 | Q172: 0 | R172: 0 | S172: 0 | T172: 0 | U172: 0 | V172: 0 | W172: 0 | X172: 0 | Y172: 0 | Z172: 0 | AA172: 0 | AB172: 0 | AC172: 0 | AD172: 0 | AE172: 0 | AF172: 0 | AG172: 0 | AH172: 0 | AI172: 0 | AJ172: 0 | AK172: 0 | AL172: 0 | AM172: CLIMATE | AN172: CLIMATE FORCING | AO172: UNKNOWN CAPABILITY | AP172: OCEANIC & ATMOSPHERIC RESEARCH | AQ172: CLIMATE RESEARCH | AR172: LABORATORIES & JOINT INSTITUTES | AS172: CLIMATE MONITORING & DIAG. LAB (CMDL) | AT172: OAR/HQ OPERATING SUPPORT | AU172: 50 | AV172: OFFICE OF OCEANIC & ATMOSPHERIC RESEARCH | AW172: 35 | AX172: PHYSICAL SCIENCES DIVISION
A173: CL | B173: CLF | C173: XXX | D173: ORF | E173: 85 | F173: 03-01-07-005 | G173: 3 | H173: E8R1MRS | I173: 0 | J173: 0 | K173: 0 | L173: 0 | M173: 0 | N173: 0 | O173: 0 | P173: 0 | Q173: 0 | R173: 0 | S173: 0 | T173: 0 | U173: 346841.4 | V173: 0 | W173: 346841.4 | X173: 0 | Y173: 0 | Z173: 0 | AA173: 175481.684 | AB173: 521279.3943 | AC173: -345797.7103 | AD173: 0 | AE173: 0 | AF173: 0 | AG173: 522323.084 | AH173: 521279.3943 | AI173: 1043.6897 | AJ173: 0 | AK173: 0 | AL173: 0 | AM173: CLIMATE | AN173: CLIMATE FORCING | AO173: UNKNOWN CAPABILITY | AP173: OCEANIC & ATMOSPHERIC RESEARCH | AQ173: CLIMATE RESEARCH | AR173: LABORATORIES & JOINT INSTITUTES | AS173: CLIMATE MONITORING & DIAG. LAB (CMDL) | AT173: OAR/HQ OPERATING SUPPORT | AU173: 50 | AV173: OFFICE OF OCEANIC & ATMOSPHERIC RESEARCH | AW173: 01 | AX173: OFFICE OF OCEANIC & ATMOSPHERIC RESEARCH
A174: CL | B174: CLF | C174: XXX | D174: ORF | E174: 85 | F174: 03-01-07-005 | G174: 3 | H174: E8R1MRS | I174: 0 | J174: 0 | K174: 0 | L174: 0 | M174: 0 | N174: 0 | O174: 0 | P174: 0 | Q174: 0 | R174: 0 | S174: 0 | T174: 0 | U174: 0 | V174: 0 | W174: 0 | X174: 0 | Y174: 0 | Z174: 0 | AA174: 99348 | AB174: 99348 | AC174: 0 | AD174: 0 | AE174: 0 | AF174: 0 | AG174: 99348 | AH174: 99348 | AI174: 0 | AJ174: 0 | AK174: 0 | AL174: 0 | AM174: CLIMATE | AN174: CLIMATE FORCING | AO174: UNKNOWN CAPABILITY | AP174: OCEANIC & ATMOSPHERIC RESEARCH | AQ174: CLIMATE RESEARCH | AR174: LABORATORIES & JOINT INSTITUTES | AS174: CLIMATE MONITORING & DIAG. LAB (CMDL) | AT174: OAR/HQ OPERATING SUPPORT | AU174: 50 | AV174: OFFICE OF OCEANIC & ATMOSPHERIC RESEARCH | AW174: 10 | AX174: OFFICE OF CH FIN / CH ADMIN OFFCR
A175: CL | B175: CLF | C175: XXX | D175: ORF | E175: 85 | F175: 03-01-07-005 | G175: 3 | H175: E8R1MRS | I175: 0 | J175: 0 | K175: 0 | L175: 0 | M175: 0 | N175: 0 | O175: 0 | P175: 0 | Q175: 0 | R175: 0 | S175: 0 | T175: 0 | U175: 0 | V175: 0 | W175: 0 | X175: 0 | Y175: 0 | Z175: 0 | AA175: 4383 | AB175: 4383 | AC175: 0 | AD175: 0 | AE175: 0 | AF175: 0 | AG175: 4383 | AH175: 4383 | AI175: 0 | AJ175: 0 | AK175: 0 | AL175: 0 | AM175: CLIMATE | AN175: CLIMATE FORCING | AO175: UNKNOWN CAPABILITY | AP175: OCEANIC & ATMOSPHERIC RESEARCH | AQ175: CLIMATE RESEARCH | AR175: LABORATORIES & JOINT INSTITUTES | AS175: CLIMATE MONITORING & DIAG. LAB (CMDL) | AT175: OAR/HQ OPERATING SUPPORT | AU175: 30 | AV175: NAT. MARINE FISHERIES SER - OFF OF ASST | AW175: 41 | AX175: NORTHWEST FISHERIES SCIENCE CENTER
A176: CL | B176: CLF | C176: XXX | D176: ORF | E176: 85 | F176: 03-01-07-005 | G176: 3 | H176: E8R1MRS | I176: 0 | J176: 0 | K176: 0 | L176: 0 | M176: 0 | N176: 0 | O176: 0 | P176: 0 | Q176: 0 | R176: 0 | S176: 0 | T176: 0 | U176: 0 | V176: 0 | W176: 0 | X176: 0 | Y176: 0 | Z176: 0 | AA176: 5649.2 | AB176: 5649.2 | AC176: 0 | AD176: 0 | AE176: 0 | AF176: 0 | AG176: 5649.2 | AH176: 5649.2 | AI176: 0 | AJ176: 0 | AK176: 0 | AL176: 0 | AM176: CLIMATE | AN176: CLIMATE FORCING | AO176: UNKNOWN CAPABILITY | AP176: OCEANIC & ATMOSPHERIC RESEARCH | AQ176: CLIMATE RESEARCH | AR176: LABORATORIES & JOINT INSTITUTES | AS176: CLIMATE MONITORING & DIAG. LAB (CMDL) | AT176: OAR/HQ OPERATING SUPPORT | AU176: 50 | AV176: OFFICE OF OCEANIC & ATMOSPHERIC RESEARCH | AW176: 12 | AX176: INFORMATION MANAGEMENT DIVISION
A177: CL | B177: CLF | C177: XXX | D177: ORF | E177: 85 | F177: 03-01-07-005 | G177: 3 | H177: E8R1MRS | I177: 0 | J177: 213.3547 | K177: -213.3547 | L177: 0 | M177: 0 | N177: 0 | O177: 0 | P177: 605.83774 | Q177: -605.83774 | R177: 0 | S177: 0 | T177: 0 | U177: 0 | V177: 3492.9101 | W177: -3492.9101 | X177: 0 | Y177: 0 | Z177: 0 | AA177: 0 | AB177: 17916.73974 | AC177: -17916.73974 | AD177: 0 | AE177: 0 | AF177: 0 | AG177: 0 | AH177: 22228.84228 | AI177: -22228.84228 | AJ177: 0 | AK177: 0 | AL177: 0 | AM177: CLIMATE | AN177: CLIMATE FORCING | AO177: UNKNOWN CAPABILITY | AP177: OCEANIC & ATMOSPHERIC RESEARCH | AQ177: CLIMATE RESEARCH | AR177: LABORATORIES & JOINT INSTITUTES | AS177: CLIMATE MONITORING & DIAG. LAB (CMDL) | AT177: OAR/HQ OPERATING SUPPORT | AU177: 50 | AV177: OFFICE OF OCEANIC & ATMOSPHERIC RESEARCH | AW177: 34 | AX177: GLOBAL MONITORING DIVISION
A178: CL | B178: CLF | C178: XXX | D178: ORF | E178: 85 | F178: 03-01-07-005 | G178: 3 | H178: E8R1MRS | I178: 0 | J178: 0 | K178: 0 | L178: 0 | M178: 0 | N178: 0 | O178: 0 | P178: 0 | Q178: 0 | R178: 0 | S178: 0 | T178: 0 | U178: 97400 | V178: 0 | W178: 97400 | X178: 0 | Y178: 0 | Z178: 0 | AA178: 17695.632 | AB178: 115095.632 | AC178: -97400 | AD178: 0 | AE178: 0 | AF178: 0 | AG178: 115095.632 | AH178: 115095.632 | AI178: 0 | AJ178: 0 | AK178: 0 | AL178: 0 | AM178: CLIMATE | AN178: CLIMATE FORCING | AO178: UNKNOWN CAPABILITY | AP178: OCEANIC & ATMOSPHERIC RESEARCH | AQ178: CLIMATE RESEARCH | AR178: LABORATORIES & JOINT INSTITUTES | AS178: CLIMATE MONITORING & DIAG. LAB (CMDL) | AT178: OAR/HQ OPERATING SUPPORT | AU178: 50 | AV178: OFFICE OF OCEANIC & ATMOSPHERIC RESEARCH | AW178: 44 | AX178: CLIMATE PROGRAM OFFICE
A179: CL | B179: CLF | C179: XXX | D179: ORF | E179: 85 | F179: 03-01-07-006 | G179: 3 | H179: 0000000 | I179: 0 | J179: 0 | K179: 0 | L179: 0 | M179: 0 | N179: 0 | O179: 0 | P179: 0 | Q179: 0 | R179: 0 | S179: 0 | T179: 0 | U179: 105757 | V179: 0 | W179: 105757 | X179: 0 | Y179: 0 | Z179: 0 | AA179: 109772 | AB179: 0 | AC179: 109772 | AD179: 0 | AE179: 0 | AF179: 0 | AG179: 215529 | AH179: 0 | AI179: 215529 | AJ179: 0 | AK179: 0 | AL179: 0 | AM179: CLIMATE | AN179: CLIMATE FORCING | AO179: UNKNOWN CAPABILITY | AP179: OCEANIC & ATMOSPHERIC RESEARCH | AQ179: CLIMATE RESEARCH | AR179: LABORATORIES & JOINT INSTITUTES | AS179: ENVIRONMENTAL TECHNOLOGY LAB. (ETL) | AT179: NULL | AU179: 50 | AV179: OFFICE OF OCEANIC & ATMOSPHERIC RESEARCH | AW179: 36 | AX179: CHEMICAL SCIENCES DIVISION
A180: CL | B180: CLF | C180: XXX | D180: ORF | E180: 85 | F180: 03-01-07-006 | G180: 3 | H180: E8R1NAC | I180: 0 | J180: 141588.94 | K180: -141588.94 | L180: 0 | M180: 0.602403847 | N180: -0.602403847 | O180: 0 | P180: -31817.44 | Q180: 31817.44 | R180: 0 | S180: -0.168269231 | T180: 0.168269231 | U180: 0 | V180: -25183.73 | W180: 25183.73 | X180: 0 | Y180: -0.096394231 | Z180: 0.096394231 | AA180: 0 | AB180: 130324.24 | AC180: -130324.24 | AD180: 0 | AE180: -0.102403846 | AF180: 0.102403846 | AG180: 0 | AH180: 214912.01 | AI180: -214912.01 | AJ180: 0 | AK180: 0.235336539 | AL180: -0.235336539 | AM180: CLIMATE | AN180: CLIMATE FORCING | AO180: UNKNOWN CAPABILITY | AP180: OCEANIC & ATMOSPHERIC RESEARCH | AQ180: CLIMATE RESEARCH | AR180: LABORATORIES & JOINT INSTITUTES | AS180: ENVIRONMENTAL TECHNOLOGY LAB. (ETL) | AT180: AEROSOL/CLIMATE BASE | AU180: 50 | AV180: OFFICE OF OCEANIC & ATMOSPHERIC RESEARCH | AW180: 36 | AX180: CHEMICAL SCIENCES DIVISION
A181: CL | B181: CLF | C181: XXX | D181: ORF | E181: 85 | F181: 03-01-07-006 | G181: 3 | H181: E8R1NRS | I181: 0 | J181: 0 | K181: 0 | L181: 0 | M181: 0 | N181: 0 | O181: 0 | P181: 0 | Q181: 0 | R181: 0 | S181: 0 | T181: 0 | U181: 2536.296 | V181: 0 | W181: 2536.296 | X181: 0 | Y181: 0 | Z181: 0 | AA181: -129.542 | AB181: 2406.754 | AC181: -2536.296 | AD181: 0 | AE181: 0 | AF181: 0 | AG181: 2406.754 | AH181: 2406.754 | AI181: 0 | AJ181: 0 | AK181: 0 | AL181: 0 | AM181: CLIMATE | AN181: CLIMATE FORCING | AO181: UNKNOWN CAPABILITY | AP181: OCEANIC & ATMOSPHERIC RESEARCH | AQ181: CLIMATE RESEARCH | AR181: LABORATORIES & JOINT INSTITUTES | AS181: ENVIRONMENTAL TECHNOLOGY LAB. (ETL) | AT181: OAR/HQ OPERATING SUPPORT | AU181: 50 | AV181: OFFICE OF OCEANIC & ATMOSPHERIC RESEARCH | AW181: 01 | AX181: OFFICE OF OCEANIC & ATMOSPHERIC RESEARCH
A182: CL | B182: CLF | C182: XXX | D182: ORF | E182: 85 | F182: 03-01-07-006 | G182: 3 | H182: E8R1NRS | I182: 0 | J182: 0 | K182: 0 | L182: 0 | M182: 0 | N182: 0 | O182: 0 | P182: 0 | Q182: 0 | R182: 0 | S182: 0 | T182: 0 | U182: 0 | V182: 0 | W182: 0 | X182: 0 | Y182: 0 | Z182: 0 | AA182: 974 | AB182: 974 | AC182: 0 | AD182: 0 | AE182: 0 | AF182: 0 | AG182: 974 | AH182: 974 | AI182: 0 | AJ182: 0 | AK182: 0 | AL182: 0 | AM182: CLIMATE | AN182: CLIMATE FORCING | AO182: UNKNOWN CAPABILITY | AP182: OCEANIC & ATMOSPHERIC RESEARCH | AQ182: CLIMATE RESEARCH | AR182: LABORATORIES & JOINT INSTITUTES | AS182: ENVIRONMENTAL TECHNOLOGY LAB. (ETL) | AT182: OAR/HQ OPERATING SUPPORT | AU182: 01 | AV182: OFFICE OF UNDER SECRETARY | AW182: 00 | AX182: OFFICE OF UNDER SECRETARY
A183: CL | B183: COA | C183: TBD | D183: ORF | E183: 1 | F183: 03-01-06-000 | G183: 3 | H183: 38R1F03 | I183: 0 | J183: 0 | K183: 0 | L183: 0 | M183: 0 | N183: 0 | O183: 0 | P183: 0 | Q183: 0 | R183: 0 | S183: 0 | T183: 0 | U183: 0 | V183: 0 | W183: 0 | X183: 0 | Y183: 0 | Z183: 0 | AA183: 0 | AB183: 0 | AC183: 0 | AD183: 0 | AE183: 0 | AF183: 0 | AG183: 0 | AH183: 0 | AI183: 0 | AJ183: 0 | AK183: 0 | AL183: 0 | AM183: CLIMATE | AN183: CLIMATE OBSERVATIONS AND ANALYSIS | AO183: TO BE DETERMINED | AP183: OCEANIC & ATMOSPHERIC RESEARCH | AQ183: CLIMATE RESEARCH | AR183: CLIMATE OBSERVATIONS & SERVICES | AS183: BASE | AT183: CLIMATE DATA AND INFORMATION | AU183: 50 | AV183: OFFICE OF OCEANIC & ATMOSPHERIC RESEARCH | AW183: 22 | AX183: AIR RESOURCES LABORATORY
A184: CL | B184: COA | C184: TBD | D184: ORF | E184: 1 | F184: 05-02-01-000 | G184: 5 | H184: 58N3AG1 | I184: 0 | J184: 0 | K184: 0 | L184: 0 | M184: 0 | N184: 0 | O184: 0 | P184: 0 | Q184: 0 | R184: 0 | S184: 0 | T184: 0 | U184: 0 | V184: 0 | W184: 0 | X184: 0 | Y184: 0 | Z184: 0 | AA184: 0 | AB184: 0 | AC184: 0 | AD184: 0 | AE184: 0 | AF184: 0 | AG184: 0 | AH184: 0 | AI184: 0 | AJ184: 0 | AK184: 0 | AL184: 0 | AM184: CLIMATE | AN184: CLIMATE OBSERVATIONS AND ANALYSIS | AO184: TO BE DETERMINED | AP184: NAT'L ENVRNMNTL SATLLTE, DATA & INFO SVC | AQ184: NOAA'S DATA CENTERS & INFORMATION SRVCS | AR184: ARCHIVE, ACCESS & ASSESSMENT | AS184: BASE | AT184: DATA MANAGEMENT IMPROVEMENT (BASE ESDIM) | AU184: 40 | AV184: NAT ENV SATELLITE, DATA & INFO SERVICE | AW184: 08 | AX184: NATIONAL GEOPHYSICAL DATA CENTER
A185: CL | B185: COA | C185: TBD | D185: ORF | E185: 1 | F185: 05-02-01-000 | G185: 5 | H185: 58N3AG1 | I185: 0 | J185: 0 | K185: 0 | L185: 0 | M185: 0 | N185: 0 | O185: 0 | P185: 0 | Q185: 0 | R185: 0 | S185: 0 | T185: 0 | U185: 0 | V185: 0 | W185: 0 | X185: 0 | Y185: 0 | Z185: 0 | AA185: 0 | AB185: 1051.92 | AC185: -1051.92 | AD185: 0 | AE185: 0 | AF185: 0 | AG185: 0 | AH185: 1051.92 | AI185: -1051.92 | AJ185: 0 | AK185: 0 | AL185: 0 | AM185: CLIMATE | AN185: CLIMATE OBSERVATIONS AND ANALYSIS | AO185: TO BE DETERMINED | AP185: NAT'L ENVRNMNTL SATLLTE, DATA & INFO SVC | AQ185: NOAA'S DATA CENTERS & INFORMATION SRVCS | AR185: ARCHIVE, ACCESS & ASSESSMENT | AS185: BASE | AT185: DATA MANAGEMENT IMPROVEMENT (BASE ESDIM) | AU185: 06 | AV185: STAFF OFCS OF THE OFC OF THE UNDER SEC | AW185: 99 | AX185: COMMON SERVICES
A186: CL | B186: COA | C186: TBD | D186: ORF | E186: 1 | F186: 05-02-01-000 | G186: 5 | H186: 58N3AG1 | I186: 0 | J186: 0 | K186: 0 | L186: 0 | M186: 0 | N186: 0 | O186: 0 | P186: 0 | Q186: 0 | R186: 0 | S186: 0 | T186: 0 | U186: 0 | V186: 0 | W186: 0 | X186: 0 | Y186: 0 | Z186: 0 | AA186: 0 | AB186: 0 | AC186: 0 | AD186: 0 | AE186: 0 | AF186: 0 | AG186: 0 | AH186: 0 | AI186: 0 | AJ186: 0 | AK186: 0 | AL186: 0 | AM186: CLIMATE | AN186: CLIMATE OBSERVATIONS AND ANALYSIS | AO186: TO BE DETERMINED | AP186: NAT'L ENVRNMNTL SATLLTE, DATA & INFO SVC | AQ186: NOAA'S DATA CENTERS & INFORMATION SRVCS | AR186: ARCHIVE, ACCESS & ASSESSMENT | AS186: BASE | AT186: DATA MANAGEMENT IMPROVEMENT (BASE ESDIM) | AU186: 50 | AV186: OFFICE OF OCEANIC & ATMOSPHERIC RESEARCH | AW186: 22 | AX186: AIR RESOURCES LABORATORY
A187: CL | B187: COA | C187: XXX | D187: ORF | E187: 1 | F187: 03-01-04-000 | G187: 3 | H187: 38R1D03 | I187: 0 | J187: 0 | K187: 0 | L187: 0 | M187: 0 | N187: 0 | O187: 0 | P187: 0 | Q187: 0 | R187: 0 | S187: 0 | T187: 0 | U187: 0 | V187: 0 | W187: 0 | X187: 0 | Y187: 0 | Z187: 0 | AA187: 0 | AB187: 0 | AC187: 0 | AD187: 0 | AE187: 0 | AF187: 0 | AG187: 0 | AH187: 0 | AI187: 0 | AJ187: 0 | AK187: 0 | AL187: 0 | AM187: CLIMATE | AN187: CLIMATE OBSERVATIONS AND ANALYSIS | AO187: UNKNOWN CAPABILITY | AP187: OCEANIC & ATMOSPHERIC RESEARCH | AQ187: CLIMATE RESEARCH | AR187: GLOBAL CHANGE | AS187: BASE | AT187: VARIABILITY BEYOND ENSO | AU187: 50 | AV187: OFFICE OF OCEANIC & ATMOSPHERIC RESEARCH | AW187: 43 | AX187: OFFICE OF GLOBAL PROGRAMS
A188: CL | B188: COA | C188: XXX | D188: ORF | E188: 1 | F188: 03-01-06-006 | G188: 3 | H188: 38R1F06 | I188: 0 | J188: 0 | K188: 0 | L188: 0 | M188: 0 | N188: 0 | O188: 0 | P188: 0 | Q188: 0 | R188: 0 | S188: 0 | T188: 0 | U188: 0 | V188: 0 | W188: 0 | X188: 0 | Y188: 0 | Z188: 0 | AA188: 0 | AB188: 0 | AC188: 0 | AD188: 0 | AE188: 0 | AF188: 0 | AG188: 0 | AH188: 0 | AI188: 0 | AJ188: 0 | AK188: 0 | AL188: 0 | AM188: CLIMATE | AN188: CLIMATE OBSERVATIONS AND ANALYSIS | AO188: UNKNOWN CAPABILITY | AP188: OCEANIC & ATMOSPHERIC RESEARCH | AQ188: CLIMATE RESEARCH | AR188: CLIMATE OBSERVATIONS & SERVICES | AS188: ARGO RELATED COSTS (OCEAN OBS/OCEAN SYS) | AT188: OCEAN OBSERVATIONS | AU188: 50 | AV188: OFFICE OF OCEANIC & ATMOSPHERIC RESEARCH | AW188: 06 | AX188: OFFICE OF SCIENTIFIC SUPPORT
A189: CL | B189: COA | C189: XXX | D189: ORF | E189: 1 | F189: 03-01-07-003 | G189: 3 | H189: 38R1J12 | I189: 0 | J189: 0 | K189: 0 | L189: 0 | M189: 0 | N189: 0 | O189: 0 | P189: 0 | Q189: 0 | R189: 0 | S189: 0 | T189: 0 | U189: 0 | V189: 0 | W189: 0 | X189: 0 | Y189: 0 | Z189: 0 | AA189: 0 | AB189: -4538.353 | AC189: 4538.353 | AD189: 0 | AE189: 0 | AF189: 0 | AG189: 0 | AH189: -4538.353 | AI189: 4538.353 | AJ189: 0 | AK189: 0 | AL189: 0 | AM189: CLIMATE | AN189: CLIMATE OBSERVATIONS AND ANALYSIS | AO189: UNKNOWN CAPABILITY | AP189: OCEANIC & ATMOSPHERIC RESEARCH | AQ189: CLIMATE RESEARCH | AR189: LABORATORIES & JOINT INSTITUTES | AS189: AIR RESOURCES LAB. (ARL) | AT189: ACID RAIN TRANSPORT | AU189: 50 | AV189: OFFICE OF OCEANIC & ATMOSPHERIC RESEARCH | AW189: 22 | AX189: AIR RESOURCES LABORATORY
A190: CL | B190: COA | C190: XXX | D190: ORF | E190: 1 | F190: 03-01-07-003 | G190: 3 | H190: 38R1J32 | I190: 0 | J190: 0 | K190: 0 | L190: 0 | M190: 0 | N190: 0 | O190: 0 | P190: 0 | Q190: 0 | R190: 0 | S190: 0 | T190: 0 | U190: 0 | V190: 0 | W190: 0 | X190: 0 | Y190: 0 | Z190: 0 | AA190: 0 | AB190: 0 | AC190: 0 | AD190: 0 | AE190: 0 | AF190: 0 | AG190: 0 | AH190: 0 | AI190: 0 | AJ190: 0 | AK190: 0 | AL190: 0 | AM190: CLIMATE | AN190: CLIMATE OBSERVATIONS AND ANALYSIS | AO190: UNKNOWN CAPABILITY | AP190: OCEANIC & ATMOSPHERIC RESEARCH | AQ190: CLIMATE RESEARCH | AR190: LABORATORIES & JOINT INSTITUTES | AS190: AIR RESOURCES LAB. (ARL) | AT190: DYNAMIC PROCESSES | AU190: 50 | AV190: OFFICE OF OCEANIC & ATMOSPHERIC RESEARCH | AW190: 22 | AX190: AIR RESOURCES LABORATORY
A191: CL | B191: COA | C191: XXX | D191: ORF | E191: 1 | F191: 05-02-01-000 | G191: 5 | H191: 58N3A23 | I191: 0 | J191: 0 | K191: 0 | L191: 0 | M191: 0 | N191: 0 | O191: 0 | P191: 0 | Q191: 0 | R191: 0 | S191: 0 | T191: 0 | U191: 0 | V191: 0 | W191: 0 | X191: 0 | Y191: 0 | Z191: 0 | AA191: 0 | AB191: 0 | AC191: 0 | AD191: 0 | AE191: 0 | AF191: 0 | AG191: 0 | AH191: 0 | AI191: 0 | AJ191: 0 | AK191: 0 | AL191: 0 | AM191: CLIMATE | AN191: CLIMATE OBSERVATIONS AND ANALYSIS | AO191: UNKNOWN CAPABILITY | AP191: NAT'L ENVRNMNTL SATLLTE, DATA & INFO SVC | AQ191: NOAA'S DATA CENTERS & INFORMATION SRVCS | AR191: ARCHIVE, ACCESS & ASSESSMENT | AS191: BASE | AT191: CLIMATE DATABASE MODERNIZATION | AU191: 50 | AV191: OFFICE OF OCEANIC & ATMOSPHERIC RESEARCH | AW191: 22 | AX191: AIR RESOURCES LABORATORY
A192: CL | B192: COA | C192: XXX | D192: ORF | E192: 1 | F192: 05-02-01-000 | G192: 5 | H192: 58N3A23 | I192: 0 | J192: 0 | K192: 0 | L192: 0 | M192: 0 | N192: 0 | O192: 0 | P192: 0 | Q192: 0 | R192: 0 | S192: 0 | T192: 0 | U192: 0 | V192: 0 | W192: 0 | X192: 0 | Y192: 0 | Z192: 0 | AA192: 0 | AB192: 4537.82864 | AC192: -4537.82864 | AD192: 0 | AE192: 0 | AF192: 0 | AG192: 0 | AH192: 4537.82864 | AI192: -4537.82864 | AJ192: 0 | AK192: 0 | AL192: 0 | AM192: CLIMATE | AN192: CLIMATE OBSERVATIONS AND ANALYSIS | AO192: UNKNOWN CAPABILITY | AP192: NAT'L ENVRNMNTL SATLLTE, DATA & INFO SVC | AQ192: NOAA'S DATA CENTERS & INFORMATION SRVCS | AR192: ARCHIVE, ACCESS & ASSESSMENT | AS192: BASE | AT192: CLIMATE DATABASE MODERNIZATION | AU192: 06 | AV192: STAFF OFCS OF THE OFC OF THE UNDER SEC | AW192: 99 | AX192: COMMON SERVICES
A193: CL | B193: COA | C193: XXX | D193: ORF | E193: 1 | F193: 05-02-02-000 | G193: 5 | H193: 58N3BDM | I193: 0 | J193: 0 | K193: 0 | L193: 0 | M193: 0 | N193: 0 | O193: 0 | P193: 0 | Q193: 0 | R193: 0 | S193: 0 | T193: 0 | U193: 0 | V193: 0 | W193: 0 | X193: 0 | Y193: 0 | Z193: 0 | AA193: 0 | AB193: 0 | AC193: 0 | AD193: 0 | AE193: 0 | AF193: 0 | AG193: 0 | AH193: 0 | AI193: 0 | AJ193: 0 | AK193: 0 | AL193: 0 | AM193: CLIMATE | AN193: CLIMATE OBSERVATIONS AND ANALYSIS | AO193: UNKNOWN CAPABILITY | AP193: NAT'L ENVRNMNTL SATLLTE, DATA & INFO SVC | AQ193: NOAA'S DATA CENTERS & INFORMATION SRVCS | AR193: ENVIRONMENTAL DATA SYSTEMS MODERNIZATION | AS193: BASE | AT193: ESDIM | AU193: 30 | AV193: NAT. MARINE FISHERIES SER - OFF OF ASST | AW193: 51 | AX193: SOUTHWEST FISHERIES SCIENCE CENTER
A194: CL | B194: COA | C194: XXX | D194: ORF | E194: 1 | F194: 05-02-02-000 | G194: 5 | H194: 58N3BDM | I194: 0 | J194: 0 | K194: 0 | L194: 0 | M194: 0 | N194: 0 | O194: 0 | P194: 0 | Q194: 0 | R194: 0 | S194: 0 | T194: 0 | U194: 0 | V194: 0 | W194: 0 | X194: 0 | Y194: 0 | Z194: 0 | AA194: 343.904 | AB194: 343.904 | AC194: 0 | AD194: 0 | AE194: 0 | AF194: 0 | AG194: 343.904 | AH194: 343.904 | AI194: 0 | AJ194: 0 | AK194: 0 | AL194: 0 | AM194: CLIMATE | AN194: CLIMATE OBSERVATIONS AND ANALYSIS | AO194: UNKNOWN CAPABILITY | AP194: NAT'L ENVRNMNTL SATLLTE, DATA & INFO SVC | AQ194: NOAA'S DATA CENTERS & INFORMATION SRVCS | AR194: ENVIRONMENTAL DATA SYSTEMS MODERNIZATION | AS194: BASE | AT194: ESDIM | AU194: 30 | AV194: NAT. MARINE FISHERIES SER - OFF OF ASST | AW194: 14 | AX194: OFC OF OPERATIONS, MANAGEMENT AND INFORM
A195: CL | B195: COA | C195: XXX | D195: ORF | E195: 37 | F195: 03-01-06-000 | G195: 3 | H195: 0000000 | I195: 13076.81686 | J195: 0 | K195: 13076.81686 | L195: 0 | M195: 0 | N195: 0 | O195: 0 | P195: 0 | Q195: 0 | R195: 0 | S195: 0 | T195: 0 | U195: 0 | V195: 0 | W195: 0 | X195: 0 | Y195: 0 | Z195: 0 | AA195: 0 | AB195: 0 | AC195: 0 | AD195: 0 | AE195: 0 | AF195: 0 | AG195: 13076.81686 | AH195: 0 | AI195: 13076.81686 | AJ195: 0 | AK195: 0 | AL195: 0 | AM195: CLIMATE | AN195: CLIMATE OBSERVATIONS AND ANALYSIS | AO195: UNKNOWN CAPABILITY | AP195: OCEANIC & ATMOSPHERIC RESEARCH | AQ195: CLIMATE RESEARCH | AR195: CLIMATE OBSERVATIONS & SERVICES | AS195: OAR CLI. RSRCH OBSERVATIONS & SVCS BASE | AT195: NULL | AU195: 50 | AV195: OFFICE OF OCEANIC & ATMOSPHERIC RESEARCH | AW195: 34 | AX195: GLOBAL MONITORING DIVISION
A196: CL | B196: COA | C196: XXX | D196: ORF | E196: 37 | F196: 03-01-06-000 | G196: 3 | H196: D8R1F17 | I196: 0 | J196: 0 | K196: 0 | L196: 0 | M196: 0 | N196: 0 | O196: 0 | P196: 0 | Q196: 0 | R196: 0 | S196: 0 | T196: 0 | U196: 0 | V196: 0 | W196: 0 | X196: 0 | Y196: 0 | Z196: 0 | AA196: 0 | AB196: 79.83878 | AC196: -79.83878 | AD196: 0 | AE196: 0 | AF196: 0 | AG196: 0 | AH196: 79.83878 | AI196: -79.83878 | AJ196: 0 | AK196: 0 | AL196: 0 | AM196: CLIMATE | AN196: CLIMATE OBSERVATIONS AND ANALYSIS | AO196: UNKNOWN CAPABILITY | AP196: OCEANIC & ATMOSPHERIC RESEARCH | AQ196: CLIMATE RESEARCH | AR196: CLIMATE OBSERVATIONS & SERVICES | AS196: OAR CLI. RSRCH OBSERVATIONS & SVCS BASE | AT196: CLIMATE REFERENCE NETWORK | AU196: 06 | AV196: STAFF OFCS OF THE OFC OF THE UNDER SEC | AW196: 99 | AX196: COMMON SERVICES
A197: CL | B197: COA | C197: XXX | D197: ORF | E197: 37 | F197: 03-01-06-000 | G197: 3 | H197: D8R1F17 | I197: 0 | J197: 0 | K197: 0 | L197: 0 | M197: 0 | N197: 0 | O197: 0 | P197: 0 | Q197: 0 | R197: 0 | S197: 0 | T197: 0 | U197: 0 | V197: 0 | W197: 0 | X197: 0 | Y197: 0 | Z197: 0 | AA197: 0 | AB197: 0 | AC197: 0 | AD197: 0 | AE197: 0 | AF197: 0 | AG197: 0 | AH197: 0 | AI197: 0 | AJ197: 0 | AK197: 0 | AL197: 0 | AM197: CLIMATE | AN197: CLIMATE OBSERVATIONS AND ANALYSIS | AO197: UNKNOWN CAPABILITY | AP197: OCEANIC & ATMOSPHERIC RESEARCH | AQ197: CLIMATE RESEARCH | AR197: CLIMATE OBSERVATIONS & SERVICES | AS197: OAR CLI. RSRCH OBSERVATIONS & SVCS BASE | AT197: CLIMATE REFERENCE NETWORK | AU197: 40 | AV197: NAT ENV SATELLITE, DATA & INFO SERVICE | AW197: 06 | AX197: NATIONAL CLIMATIC DATA CENTER, NESDIS
A198: CL | B198: COA | C198: XXX | D198: ORF | E198: 37 | F198: 03-01-06-000 | G198: 3 | H198: D8R1F17 | I198: 38960 | J198: 0 | K198: 38960 | L198: 0 | M198: 0 | N198: 0 | O198: 0 | P198: 0 | Q198: 0 | R198: 0 | S198: 0 | T198: 0 | U198: 0 | V198: 38960 | W198: -38960 | X198: 0 | Y198: 0 | Z198: 0 | AA198: 0 | AB198: 0 | AC198: 0 | AD198: 0 | AE198: 0 | AF198: 0 | AG198: 38960 | AH198: 38960 | AI198: 0 | AJ198: 0 | AK198: 0 | AL198: 0 | AM198: CLIMATE | AN198: CLIMATE OBSERVATIONS AND ANALYSIS | AO198: UNKNOWN CAPABILITY | AP198: OCEANIC & ATMOSPHERIC RESEARCH | AQ198: CLIMATE RESEARCH | AR198: CLIMATE OBSERVATIONS & SERVICES | AS198: OAR CLI. RSRCH OBSERVATIONS & SVCS BASE | AT198: CLIMATE REFERENCE NETWORK | AU198: 50 | AV198: OFFICE OF OCEANIC & ATMOSPHERIC RESEARCH | AW198: 01 | AX198: OFFICE OF OCEANIC & ATMOSPHERIC RESEARCH
A199: CL | B199: COA | C199: XXX | D199: ORF | E199: 37 | F199: 03-01-06-000 | G199: 3 | H199: D8R1F17 | I199: 0 | J199: 0 | K199: =I199-J199 -> 0 | L199: 0 | M199: 0 | N199: =L199-M199 -> 0 | O199: 0 | P199: 0 | Q199: =O199-P199 -> 0 | R199: 0 | S199: 0 | T199: =R199-S199 -> 0 | U199: 0 | V199: 0 | W199: =U199-V199 -> 0 | X199: 0 | Y199: 0 | Z199: =X199-Y199 -> 0 | AA199: 0 | AB199: 0 | AC199: =AA199-AB199 -> 0 | AD199: 0 | AE199: 0 | AF199: =AD199-AE199 -> 0 | AG199: =I199+O199+U199+AA199 -> 0 | AH199: 0 | AI199: =AG199-AH199 -> 0 | AJ199: =L199+R199+X199+AD199 -> 0 | AK199: 0 | AL199: =AJ199-AK199 -> 0 | AM199: CLIMATE | AN199: CLIMATE OBSERVATIONS AND ANALYSIS | AO199: UNKNOWN CAPABILITY | AP199: OCEANIC & ATMOSPHERIC RESEARCH | AQ199: CLIMATE RESEARCH | AR199: CLIMATE OBSERVATIONS & SERVICES | AS199: OAR CLI. RSRCH OBSERVATIONS & SVCS BASE | AT199: CLIMATE REFERENCE NETWORK | AU199: 40 | AV199: NAT ENV SATELLITE, DATA & INFO SERVICE | AW199: 09 | AX199: OFFICE OF SYSTEMS DEVELOPMENT
A200: CL | B200: COA | C200: XXX | D200: ORF | E200: 37 | F200: 03-01-06-000 | G200: 3 | H200: D8R1F20 | I200: 0 | J200: 0 | K200: 0 | L200: 0 | M200: 0 | N200: 0 | O200: 0 | P200: 0 | Q200: 0 | R200: 0 | S200: 0 | T200: 0 | U200: 0 | V200: 0 | W200: 0 | X200: 0 | Y200: 0 | Z200: 0 | AA200: 0 | AB200: 0 | AC200: 0 | AD200: 0 | AE200: 0 | AF200: 0 | AG200: 0 | AH200: 0 | AI200: 0 | AJ200: 0 | AK200: 0 | AL200: 0 | AM200: CLIMATE | AN200: CLIMATE OBSERVATIONS AND ANALYSIS | AO200: UNKNOWN CAPABILITY | AP200: OCEANIC & ATMOSPHERIC RESEARCH | AQ200: CLIMATE RESEARCH | AR200: CLIMATE OBSERVATIONS & SERVICES | AS200: OAR CLI. RSRCH OBSERVATIONS & SVCS BASE | AT200: NWS CLIMATE SERVICES | AU200: 50 | AV200: OFFICE OF OCEANIC & ATMOSPHERIC RESEARCH | AW200: 44 | AX200: CLIMATE PROGRAM OFFICE
A201: CL | B201: COA | C201: XXX | D201: ORF | E201: 37 | F201: 03-01-06-000 | G201: 3 | H201: D8R1F20 | I201: 0 | J201: 0 | K201: 0 | L201: 0 | M201: 0 | N201: 0 | O201: 0 | P201: 0 | Q201: 0 | R201: 0 | S201: 0 | T201: 0 | U201: 0 | V201: 0 | W201: 0 | X201: 0 | Y201: 0 | Z201: 0 | AA201: 0 | AB201: 0 | AC201: 0 | AD201: 0 | AE201: 0 | AF201: 0 | AG201: 0 | AH201: 0 | AI201: 0 | AJ201: 0 | AK201: 0 | AL201: 0 | AM201: CLIMATE | AN201: CLIMATE OBSERVATIONS AND ANALYSIS | AO201: UNKNOWN CAPABILITY | AP201: OCEANIC & ATMOSPHERIC RESEARCH | AQ201: CLIMATE RESEARCH | AR201: CLIMATE OBSERVATIONS & SERVICES | AS201: OAR CLI. RSRCH OBSERVATIONS & SVCS BASE | AT201: NWS CLIMATE SERVICES | AU201: 40 | AV201: NAT ENV SATELLITE, DATA & INFO SERVICE | AW201: 06 | AX201: NATIONAL CLIMATIC DATA CENTER, NESDIS
A202: CL | B202: COA | C202: XXX | D202: ORF | E202: 37 | F202: 03-01-06-000 | G202: 3 | H202: D8R1F20 | I202: 0 | J202: 0 | K202: 0 | L202: 0 | M202: 0 | N202: 0 | O202: 0 | P202: 0 | Q202: 0 | R202: 0 | S202: 0 | T202: 0 | U202: 0 | V202: 0 | W202: 0 | X202: 0 | Y202: 0 | Z202: 0 | AA202: 0 | AB202: 0 | AC202: 0 | AD202: 0 | AE202: 0 | AF202: 0 | AG202: 0 | AH202: 0 | AI202: 0 | AJ202: 0 | AK202: 0 | AL202: 0 | AM202: CLIMATE | AN202: CLIMATE OBSERVATIONS AND ANALYSIS | AO202: UNKNOWN CAPABILITY | AP202: OCEANIC & ATMOSPHERIC RESEARCH | AQ202: CLIMATE RESEARCH | AR202: CLIMATE OBSERVATIONS & SERVICES | AS202: OAR CLI. RSRCH OBSERVATIONS & SVCS BASE | AT202: NWS CLIMATE SERVICES | AU202: 20 | AV202: NATIONAL WEATHER SERVICE - OFFICE OF AA | AW202: 10 | AX202: NATIONAL WEATHER SERVICE-EASTERN REG
... 923 more rows

Sheet Macro1 (hidden)
A1: Macro1 | B1: Auto_Open
A2: =ALIGNMENT(2,FALSE,2,0,FALSE) -> TRUE | B2: =WORKBOOK.SELECT("Goal_Prog_Act_CBS Prog_Project-") -> TRUE
A3: =BORDER(0,1,1,1,1,0,0,5,5,5,5) -> TRUE | B3: =WINDOW.RESTORE() -> TRUE
A4: =PATTERNS(1,0,8,TRUE) -> TRUE | B4: =WINDOW.SIZE(82.5,42.75) -> TRUE
A5: =FORMAT.FONT("Dialog",10,FALSE,FALSE,FALSE,FALSE,1,FALSE,FALSE) -> TRUE | B5: =ERROR(FALSE) -> TRUE
A6: =RETURN() -> TRUE | B6: =WORKBOOK.HIDE("Macro1",TRUE) -> TRUE
B7: =EDIT.COLOR(1,0,0,0) -> TRUE
A8: Macro10 | B8: =EDIT.COLOR(3,255,0,0) -> TRUE
A9: =WORKBOOK.SELECT("Goal_Prog_Act_CBS Prog_Project-") -> TRUE | B9: =EDIT.COLOR(6,0,0,153) -> TRUE
A10: =SELECT("R6C1:R16250C4,R6C6:R16250C7,R6C38:R16250C40") -> TRUE | B10: =EDIT.COLOR(9,0,51,153) -> TRUE
A11: =RUN("Macro1") ->  | B11: =EDIT.COLOR(5,172,168,153) -> TRUE
A12: =SELECT("R6C5:R16250C5,R6C8:R16250C37") -> TRUE | B12: =EDIT.COLOR(7,204,204,153) -> TRUE
A13: =RUN("Macro2") ->  | B13: =EDIT.COLOR(4,212,212,212) -> TRUE
A14: =SELECT("R6C41:R16250C41,R6C43:R16250C43") -> TRUE | B14: =EDIT.COLOR(8,247,247,231) -> TRUE
A15: =RUN("Macro3") ->  | B15: =EDIT.COLOR(2,255,255,255) -> TRUE
A16: =SELECT("R6C42:R16250C42,R6C44:R16250C44,R6C46:R16250C49") -> TRUE | B16: =RUN("Macro10") -> 
A17: =RUN("Macro4") ->  | B17: =RUN("Macro12") -> 
A18: =SELECT("R6C45:R16250C45") -> TRUE | B18: =DELETE.NAME("Auto_Open") -> TRUE
A19: =RUN("Macro5") ->  | B19: =WORKBOOK.SELECT("Goal_Prog_Act_CBS Prog_Project-") -> TRUE
A20: =SELECT("R6C8:R16250C8,R6C9:R16250C9,R6C10:R16250C10,R6C14:R16250C14,R6C15:R16250C15,R6C16:R16250C16,R6C20:R16250C20,R6C21:R16250C21,R6C22:R16250C22,R6C26:R16250C26,R6C27:R16250C27,R6C28:R16250C28") -> TRUE | B20: =SELECT("R1:R16384") -> TRUE
A21: =FORMAT.NUMBER("###,###,##0 ;[Color3]<###,###,##0>") -> TRUE | B21: =COLUMN.WIDTH(,,,3) -> TRUE
A22: =SELECT("R6C32:R16250C32,R6C33:R16250C33,R6C34:R16250C34") -> TRUE | B22: =ROW.HEIGHT(,,,3) -> TRUE
A23: =FORMAT.NUMBER("###,###,##0 ;[Color3]<###,###,##0>") -> TRUE | B23: =SELECT("R1C1") -> TRUE
A24: =SELECT("R6C11:R16250C11,R6C12:R16250C12,R6C13:R16250C13,R6C17:R16250C17,R6C18:R16250C18,R6C19:R16250C19,R6C23:R16250C23,R6C24:R16250C24,R6C25:R16250C25,R6C29:R16250C29,R6C30:R16250C30,R6C31:R16250C31") -> TRUE | B24: =WINDOW.MAXIMIZE() -> TRUE
A25: =FORMAT.NUMBER("###,###,##0.0") -> TRUE | B25: =RETURN() -> TRUE
A26: =SELECT("R6C35:R16250C35,R6C36:R16250C36,R6C37:R16250C37") -> TRUE
A27: =FORMAT.NUMBER("###,###,##0.0") -> TRUE
A28: =SELECT("R6C45:R16250C45") -> TRUE
A29: =FORMAT.NUMBER("0#0") -> TRUE
A30: =SELECT("R6C5:R16250C5") -> TRUE
A31: =FORMAT.NUMBER("0000") -> TRUE
A32: =SELECT("R16250C8,R16250C9,R16250C10,R16250C14,R16250C15,R16250C16,R16250C20,R16250C21,R16250C22,R16250C26,R16250C27,R16250C28,R16250C32,R16250C33,R16250C34") -> TRUE
A33: =FORMAT.NUMBER("###,###,##0 ;[Color3]<###,###,##0>") -> TRUE
A34: =SELECT("R16250C11,R16250C12,R16250C13,R16250C17,R16250C18,R16250C19,R16250C23,R16250C24,R16250C25,R16250C29,R16250C30,R16250C31,R16250C35,R16250C36,R16250C37") -> TRUE
A35: =FORMAT.NUMBER("###,###,##0.0") -> TRUE
A36: =SELECT("R3C1:R3C2,R5C5,R5C8:R5C37") -> TRUE
A37: =RUN("Macro6") -> 
A38: =SELECT("R5C1:R5C4,R5C6:R5C7,R5C38:R5C40") -> TRUE
A39: =RUN("Macro7") -> 
A40: =SELECT("R5C41:R5C49") -> TRUE
A41: =RUN("Macro8") -> 
A42: =SELECT("R16250C1:R16250C49,R16250C8,R16250C9,R16250C10,R16250C11,R16250C12,R16250C13,R16250C14,R16250C15,R16250C16,R16250C17,R16250C18,R16250C19,R16250C20,R16250C21,R16250C22,R16250C23,R16250C24,R16250C25") -> TRUE
A43: =RUN("Macro9") -> 
A44: =SELECT("R16250C26,R16250C27,R16250C28,R16250C29,R16250C30,R16250C31,R16250C32,R16250C33,R16250C34,R16250C35,R16250C36,R16250C37") -> TRUE
A45: =RUN("Macro9") -> 
A46: =RETURN() -> TRUE
A48: Macro2
A49: =ALIGNMENT(4,FALSE,2,0,FALSE) -> TRUE
A50: =BORDER(0,1,1,1,1,0,0,5,5,5,5) -> TRUE
A51: =PATTERNS(1,0,8,TRUE) -> TRUE
A52: =FORMAT.FONT("Dialog",10,FALSE,FALSE,FALSE,FALSE,1,FALSE,FALSE) -> TRUE
A53: =RETURN() -> TRUE
A55: Macro3
A56: =ALIGNMENT(2,FALSE,1,0,FALSE) -> TRUE
A57: =BORDER(0,1,1,1,1,0,0,5,5,5,5) -> TRUE
A58: =PATTERNS(1,0,8,TRUE) -> TRUE
A59: =FORMAT.FONT("Dialog",10,FALSE,FALSE,FALSE,FALSE,1,FALSE,FALSE) -> TRUE
A60: =RETURN() -> TRUE
A62: Macro4
A63: =ALIGNMENT(2,FALSE,1,0,FALSE) -> TRUE
A64: =BORDER(0,1,1,1,1,0,0,5,5,5,5) -> TRUE
A65: =PATTERNS(1,0,8,TRUE) -> TRUE
A66: =FORMAT.FONT("Dialog",10,FALSE,FALSE,FALSE,FALSE,1,FALSE,FALSE) -> TRUE
A67: =RETURN() -> TRUE
A69: Macro5
A70: =ALIGNMENT(4,FALSE,1,0,FALSE) -> TRUE
A71: =BORDER(0,1,1,1,1,0,0,5,5,5,5) -> TRUE
A72: =PATTERNS(1,0,8,TRUE) -> TRUE
A73: =FORMAT.FONT("Dialog",10,FALSE,FALSE,FALSE,FALSE,1,FALSE,FALSE) -> TRUE
A74: =RETURN() -> TRUE
A76: Macro6
A77: =ALIGNMENT(3,FALSE,2,0,FALSE) -> TRUE
A78: =BORDER(0,1,1,1,1,0,0,1,1,1,1) -> TRUE
A79: =PATTERNS(1,0,7,TRUE) -> TRUE
A80: =FORMAT.FONT("Dialog",10,TRUE,FALSE,FALSE,FALSE,6,FALSE,FALSE) -> TRUE
A81: =RETURN() -> TRUE
A83: Macro7
A84: =ALIGNMENT(3,FALSE,2,0,FALSE) -> TRUE
A85: =BORDER(0,1,1,1,1,0,0,1,1,1,1) -> TRUE
A86: =PATTERNS(1,0,7,TRUE) -> TRUE
A87: =FORMAT.FONT("Dialog",10,TRUE,FALSE,FALSE,FALSE,6,FALSE,FALSE) -> TRUE
A88: =RETURN() -> TRUE
A90: Macro8
A91: =ALIGNMENT(2,FALSE,1,0,FALSE) -> TRUE
A92: =BORDER(0,1,1,1,1,0,0,1,1,1,1) -> TRUE
A93: =PATTERNS(1,0,7,TRUE) -> TRUE
A94: =FORMAT.FONT("Dialog",10,FALSE,FALSE,FALSE,FALSE,9,FALSE,FALSE) -> TRUE
A95: =RETURN() -> TRUE
A97: Macro9
A98: =ALIGNMENT(4,FALSE,1,0,FALSE) -> TRUE
A99: =BORDER(0,1,1,1,1,0,0,5,5,5,5) -> TRUE
A100: =PATTERNS(1,0,8,TRUE) -> TRUE
A101: =FORMAT.FONT("Dialog",10,TRUE,FALSE,FALSE,FALSE,1,FALSE,FALSE) -> TRUE
A102: =RETURN() -> TRUE
A104: Macro11
A105: =WORKBOOK.SELECT("Goal_Prog_Act_CBS Prog_Project-") -> TRUE
A106: =SELECT("R16250C37,R16250C36,R16250C35,R16250C34,R16250C33,R16250C32,R16250C31,R16250C25,R16250C19,R16250C13,R16250C28,R16250C22,R16250C16,R16250C10,R16250C37,R16250C36,R16250C35,R16250C34,R16250C33,R16250C32") -> TRUE
A107: =CLEAR(3) -> TRUE
A108: =SELECT("R16250C31,R16250C25,R16250C19,R16250C13,R16250C28,R16250C22,R16250C16,R16250C10,R16250C37,R16250C36,R16250C35,R16250C34,R16250C33,R16250C32,R16250C31,R16250C25,R16250C19,R16250C13,R16250C28,R16250C22") -> TRUE
A109: =CLEAR(3) -> TRUE
A110: =SELECT("R16250C16,R16250C10,R16250C37,R16250C36,R16250C35,R16250C34,R16250C33,R16250C32,R16250C31,R16250C25,R16250C19,R16250C13,R16250C28,R16250C22,R16250C16,R16250C10,R16250C37,R16250C36,R16250C35,R16250C34") -> TRUE
A111: =CLEAR(3) -> TRUE
A112: =SELECT("R16250C33,R16250C32,R16250C31,R16250C25,R16250C19,R16250C13,R16250C28,R16250C22,R16250C16,R16250C10,R16250C37,R16250C36,R16250C35,R16250C34,R16250C33,R16250C32,R16250C31,R16250C25,R16250C19,R16250C13") -> TRUE
A113: =CLEAR(3) -> TRUE
A114: =SELECT("R16250C28,R16250C22,R16250C16,R16250C10,R16250C37,R16250C36,R16250C35,R16250C34,R16250C33,R16250C32,R16250C31,R16250C25,R16250C19,R16250C13,R16250C28,R16250C22,R16250C16,R16250C10,R16250C37,R16250C36") -> TRUE
A115: =CLEAR(3) -> TRUE
A116: =SELECT("R16250C35,R16250C34,R16250C33,R16250C32,R16250C31,R16250C25,R16250C19,R16250C13,R16250C28,R16250C22,R16250C16,R16250C10,R16250C37,R16250C36,R16250C35,R16250C34,R16250C33,R16250C32,R16250C31,R16250C25") -> TRUE
A117: =CLEAR(3) -> TRUE
A118: =SELECT("R16250C19,R16250C13,R16250C28,R16250C22,R16250C16,R16250C10,R16250C37,R16250C36,R16250C35,R16250C34,R16250C33,R16250C32,R16250C31,R16250C25,R16250C19,R16250C13,R16250C28,R16250C22,R16250C16,R16250C10") -> TRUE
A119: =CLEAR(3) -> TRUE
A120: =SELECT("R16250C37,R16250C36,R16250C35,R16250C34,R16250C33,R16250C32,R16250C31,R16250C25,R16250C19,R16250C13,R16250C28,R16250C22,R16250C16,R16250C10,R16250C37,R16250C36,R16250C35,R16250C34,R16250C33,R16250C32") -> TRUE
A121: =CLEAR(3) -> TRUE
A122: =SELECT("R16250C31,R16250C25,R16250C19,R16250C13,R16250C28,R16250C22,R16250C16,R16250C10,R16250C37,R16250C36,R16250C35,R16250C34,R16250C33,R16250C32,R16250C31,R16250C25,R16250C19,R16250C13,R16250C28,R16250C22") -> TRUE
A123: =CLEAR(3) -> TRUE
A124: =SELECT("R16250C16,R16250C10,R16250C37,R16250C36,R16250C35,R16250C34,R16250C33,R16250C32,R16250C31,R16250C25,R16250C19,R16250C13,R16250C28,R16250C22,R16250C16,R16250C10,R16250C37,R16250C36,R16250C35,R16250C34") -> TRUE
A125: =CLEAR(3) -> TRUE
A126: =SELECT("R16250C33,R16250C32,R16250C31,R16250C25,R16250C19,R16250C13,R16250C28,R16250C22,R16250C16,R16250C10,R16250C37,R16250C36,R16250C35,R16250C34,R16250C33,R16250C32,R16250C31,R16250C25,R16250C19,R16250C13") -> TRUE
A127: =CLEAR(3) -> TRUE
A128: =SELECT("R16250C28,R16250C22,R16250C16,R16250C10,R16250C37,R16250C36,R16250C35,R16250C34,R16250C33,R16250C32,R16250C31,R16250C25,R16250C19,R16250C13,R16250C28,R16250C22,R16250C16,R16250C10,R16250C37,R16250C36") -> TRUE
A129: =CLEAR(3) -> TRUE
A130: =SELECT("R16250C35,R16250C34,R16250C33,R16250C32,R16250C31,R16250C25,R16250C19,R16250C13,R16250C28,R16250C22,R16250C16,R16250C10,R16250C37,R16250C36,R16250C35,R16250C34,R16250C33,R16250C32,R16250C31,R16250C25") -> TRUE
A131: =CLEAR(3) -> TRUE
A132: =SELECT("R16250C19,R16250C13,R16250C28,R16250C22,R16250C16,R16250C10,R16250C37,R16250C36,R16250C35,R16250C34,R16250C33,R16250C32,R16250C31,R16250C25,R16250C19,R16250C13,R16250C28,R16250C22,R16250C16,R16250C10") -> TRUE
A133: =CLEAR(3) -> TRUE
A134: =SELECT("R16250C37,R16250C36,R16250C35,R16250C34,R16250C33,R16250C32,R16250C31,R16250C25,R16250C19,R16250C13,R16250C28,R16250C22,R16250C16,R16250C10,R16250C37,R16250C36,R16250C35,R16250C34,R16250C33,R16250C32") -> TRUE
A135: =CLEAR(3) -> TRUE
A136: =SELECT("R16250C31,R16250C25,R16250C19,R16250C13,R16250C28,R16250C22,R16250C16,R16250C10,R16250C37,R16250C36,R16250C35,R16250C34,R16250C33,R16250C32,R16250C31,R16250C25,R16250C19,R16250C13,R16250C28,R16250C22") -> TRUE
A137: =CLEAR(3) -> TRUE
A138: =SELECT("R16250C16,R16250C10,R16250C37,R16250C36,R16250C35,R16250C34,R16250C33,R16250C32,R16250C31,R16250C25,R16250C19,R16250C13,R16250C28,R16250C22,R16250C16,R16250C10,R16250C37,R16250C36,R16250C35,R16250C34") -> TRUE
A139: =CLEAR(3) -> TRUE
A140: =SELECT("R16250C33,R16250C32,R16250C31,R16250C25,R16250C19,R16250C13,R16250C28,R16250C22,R16250C16,R16250C10,R16250C37,R16250C36,R16250C35,R16250C34,R16250C33,R16250C32,R16250C31,R16250C25,R16250C19,R16250C13") -> TRUE
A141: =CLEAR(3) -> TRUE
A142: =SELECT("R16250C28,R16250C22,R16250C16,R16250C10,R16250C37,R16250C36,R16250C35,R16250C34,R16250C33,R16250C32,R16250C31,R16250C25,R16250C19,R16250C13,R16250C28,R16250C22,R16250C16,R16250C10,R16250C37,R16250C36") -> TRUE
A143: =CLEAR(3) -> TRUE
A144: =SELECT("R16250C35,R16250C34,R16250C33,R16250C32,R16250C31,R16250C25,R16250C19,R16250C13,R16250C28,R16250C22,R16250C16,R16250C10,R16250C37,R16250C36,R16250C35,R16250C34,R16250C33,R16250C32,R16250C31,R16250C25") -> TRUE
A145: =CLEAR(3) -> TRUE
A146: =SELECT("R16250C19,R16250C13,R16250C28,R16250C22,R16250C16,R16250C10,R16250C37,R16250C36,R16250C35,R16250C34,R16250C33,R16250C32,R16250C31,R16250C25,R16250C19,R16250C13,R16250C28,R16250C22,R16250C16,R16250C10") -> TRUE
A147: =CLEAR(3) -> TRUE
A148: =SELECT("R16250C37,R16250C36,R16250C35,R16250C34,R16250C33,R16250C32,R16250C31,R16250C25,R16250C19,R16250C13,R16250C28,R16250C22,R16250C16,R16250C10") -> TRUE
A149: =CLEAR(3) -> TRUE
A150: =RETURN() -> TRUE
A152: Macro12
A153: =WORKBOOK.SELECT("Goal_Prog_Act_CBS Prog_Project-") -> TRUE
A154: =SELECT("R6C37") -> TRUE
A155: =FORMULA("=RC[-2]-RC[-1]") -> TRUE
A156: =FILL.AUTO("RC:R[16244]C",4) -> TRUE
A157: =SELECT("R6C37") -> TRUE
A158: =SELECT("R6C36") -> TRUE
A159: =FORMULA("=RC[-24]+RC[-18]+RC[-12]+RC[-6]") -> TRUE
A160: =FILL.AUTO("RC:R[16244]C",4) -> TRUE
A161: =SELECT("R6C36") -> TRUE
A162: =SELECT("R6C35") -> TRUE
A163: =FORMULA("=RC[-24]+RC[-12]+RC[-6]") -> TRUE
A164: =FILL.AUTO("RC:R[16244]C",4) -> TRUE
A165: =SELECT("R6C35") -> TRUE
A166: =SELECT("R6C34") -> TRUE
A167: =FORMULA("=RC[-2]-RC[-1]") -> TRUE
A168: =FILL.AUTO("RC:R[16244]C",4) -> TRUE
A169: =SELECT("R6C34") -> TRUE
A170: =SELECT("R6C33") -> TRUE
A171: =FORMULA("=RC[-24]+RC[-18]+RC[-12]+RC[-6]") -> TRUE
A172: =FILL.AUTO("RC:R[16244]C",4) -> TRUE
A173: =SELECT("R6C33") -> TRUE
A174: =SELECT("R6C32") -> TRUE
A175: =FORMULA("=RC[-24]+RC[-18]+RC[-12]+RC[-6]") -> TRUE
A176: =FILL.AUTO("RC:R[16244]C",4) -> TRUE
A177: =SELECT("R6C32") -> TRUE
A178: =SELECT("R6C31") -> TRUE
A179: =FORMULA("=RC[-2]-RC[-1]") -> TRUE
A180: =FILL.AUTO("RC:R[16244]C",4) -> TRUE
A181: =SELECT("R6C31") -> TRUE
A182: =SELECT("R6C25") -> TRUE
A183: =FORMULA("=RC[-2]-RC[-1]") -> TRUE
A184: =FILL.AUTO("RC:R[16244]C",4) -> TRUE
A185: =SELECT("R6C25") -> TRUE
A186: =SELECT("R6C19") -> TRUE
A187: =FORMULA("=RC[-2]-RC[-1]") -> TRUE
A188: =FILL.AUTO("RC:R[16244]C",4) -> TRUE
A189: =SELECT("R6C19") -> TRUE
A190: =SELECT("R6C13") -> TRUE
A191: =FORMULA("=RC[-2]-RC[-1]") -> TRUE
A192: =FILL.AUTO("RC:R[16244]C",4) -> TRUE
A193: =SELECT("R6C13") -> TRUE
A194: =SELECT("R6C28") -> TRUE
A195: =FORMULA("=RC[-2]-RC[-1]") -> TRUE
A196: =FILL.AUTO("RC:R[16244]C",4) -> TRUE
A197: =SELECT("R6C28") -> TRUE
A198: =SELECT("R6C22") -> TRUE
A199: =FORMULA("=RC[-2]-RC[-1]") -> TRUE
A200: =FILL.AUTO("RC:R[16244]C",4) -> TRUE
A201: =SELECT("R6C22") -> TRUE
A202: =SELECT("R6C16") -> TRUE
A203: =FORMULA("=RC[-2]-RC[-1]") -> TRUE
A204: =FILL.AUTO("RC:R[16244]C",4) -> TRUE
A205: =SELECT("R6C16") -> TRUE
A206: =SELECT("R6C10") -> TRUE
A207: =FORMULA("=RC[-2]-RC[-1]") -> TRUE
A208: =FILL.AUTO("RC:R[16244]C",4) -> TRUE
A209: =SELECT("R6C10") -> TRUE
A210: =RUN("Macro11") -> 
... 62 more rows
